Workbook

Sheet Main
E2: CQG NYSE and Nasdaq Performance Dashboard | Y2: =RTD("cqg.rtd", ,"SystemInfo", "Linetime") -> 42704.38922
B4: Description | F4: Net | G4: % Net | I4: Open | J4: High | K4: Low | L4: 5-minute Charts | R4: Description | U4: Last | V4: Net | W4: % Net | Y4: Open | Z4: High | AA4: Low
F5: Change | G5: Change | U5: Price | V5: Change | W5: Change
A6: =Symbols!C5 -> X.US.SPC | B6: =RTD("cqg.rtd",,"ContractData",A6,"LongDescription",,"T")&" ("&RIGHT(A6,LEN(A6)-5)&")" -> S&P 500 (SPC) | E6: =IFERROR(RTD("cqg.rtd", ,"ContractData",A6, "LastTrade",, "T"),"") -> 2207.38 | F6: =IFERROR(RTD("cqg.rtd", ,"ContractData",A6, "NetChange",, "T"),"") -> 3.24 | G6: =IFERROR(RTD("cqg.rtd", ,"ContractData",A6, "PerCentNetLastTrade",, "T")/100,"") -> 0.001233750329 | H6: =G6 -> 0.001233750329 | I6: =IFERROR(RTD("cqg.rtd", ,"ContractData",A6, "Open",, "T"),"") -> 2204.97 | J6: =IFERROR(RTD("cqg.rtd", ,"ContractData",A6, "High",, "T"),"") -> 2214.1 | K6: =IFERROR(RTD("cqg.rtd", ,"ContractData",A6, "Low",, "T"),"") -> 2204.95 | L6: =B6 -> S&P 500 (SPC) | R6: =IFERROR(RTD("cqg.rtd", ,"ContractData",AB6, "LongDescription",, "T"),"")&" ("&RIGHT(AB6,LEN(AB6)-5)&")" -> NASDAQ Composite Index (NQCOMP) | U6: =IFERROR(RTD("cqg.rtd", ,"ContractData",AB6, "LastTrade",, "T"),"") -> 5367.22 | V6: =IFERROR(RTD("cqg.rtd", ,"ContractData",AB6, "NetChange",, "T"),"") -> -12.7 | W6: =IFERROR(RTD("cqg.rtd", ,"ContractData",AB6, "PerCentNetLastTrade",, "T")/100,"") -> -0.002360629898 | X6: =W6 -> -0.002360629898 | Y6: =IFERROR(RTD("cqg.rtd", ,"ContractData",AB6, "Open",, "T"),"") -> 5391.35 | Z6: =IFERROR(RTD("cqg.rtd", ,"ContractData",AB6, "High",, "T"),"") -> 5393.15 | AA6: =IFERROR(RTD("cqg.rtd", ,"ContractData",AB6, "Low",, "T"),"") -> 5366.97 | AB6: =Symbols!H5 -> X.US.NQCOMP
A7: =Symbols!C6 -> X.US.DJI | B7: =RTD("cqg.rtd",,"ContractData",A7,"LongDescription",,"T")&" ("&RIGHT(A7,LEN(A7)-5)&")" -> DJ Industrial Average (DJI) | E7: =IFERROR(RTD("cqg.rtd", ,"ContractData",A7, "LastTrade",, "T"),"") -> 19180.6 | F7: =IFERROR(RTD("cqg.rtd", ,"ContractData",A7, "NetChange",, "T"),"") -> 61.9 | G7: =IFERROR(RTD("cqg.rtd", ,"ContractData",A7, "PerCentNetLastTrade",, "T")/100,"") -> 0.003085515856 | H7: 0.003085515856 | I7: =IFERROR(RTD("cqg.rtd", ,"ContractData",A7, "Open",, "T"),"") -> 19135.6 | J7: =IFERROR(RTD("cqg.rtd", ,"ContractData",A7, "High",, "T"),"") -> 19225.2 | K7: =IFERROR(RTD("cqg.rtd", ,"ContractData",A7, "Low",, "T"),"") -> 19135.5 | R7: =IFERROR(RTD("cqg.rtd", ,"ContractData",AB7, "LongDescription",, "T"),"")&" ("&RIGHT(AB7,LEN(AB7)-5)&")" -> NASDAQ-100 Index (NDX) | U7: =IFERROR(RTD("cqg.rtd", ,"ContractData",AB7, "LastTrade",, "T"),"") -> 4850.94 | V7: =IFERROR(RTD("cqg.rtd", ,"ContractData",AB7, "NetChange",, "T"),"") -> -22.27 | W7: =IFERROR(RTD("cqg.rtd", ,"ContractData",AB7, "PerCentNetLastTrade",, "T")/100,"") -> -0.004569883096 | X7: -0.004569883096 | Y7: =IFERROR(RTD("cqg.rtd", ,"ContractData",AB7, "Open",, "T"),"") -> 4876.3 | Z7: =IFERROR(RTD("cqg.rtd", ,"ContractData",AB7, "High",, "T"),"") -> 4880.76 | AA7: =IFERROR(RTD("cqg.rtd", ,"ContractData",AB7, "Low",, "T"),"") -> 4850.61 | AB7: =Symbols!H6 -> X.US.NDX
A8: =Symbols!C7 -> X.US.NYK | B8: =RTD("cqg.rtd",,"ContractData",A8,"LongDescription",,"T")&" ("&RIGHT(A8,LEN(A8)-5)&")" -> NYSE Financial Index (NYK) | E8: =IFERROR(RTD("cqg.rtd", ,"ContractData",A8, "LastTrade",, "T"),"") -> 6733.38 | F8: =IFERROR(RTD("cqg.rtd", ,"ContractData",A8, "NetChange",, "T"),"") -> 29.9 | G8: =IFERROR(RTD("cqg.rtd", ,"ContractData",A8, "PerCentNetLastTrade",, "T")/100,"") -> 0.004460369838 | H8: 0.004460369838 | I8: =IFERROR(RTD("cqg.rtd", ,"ContractData",A8, "Open",, "T"),"") -> 6740.76 | J8: =IFERROR(RTD("cqg.rtd", ,"ContractData",A8, "High",, "T"),"") -> 6753.61 | K8: =IFERROR(RTD("cqg.rtd", ,"ContractData",A8, "Low",, "T"),"") -> 6732.17 | R8: =IFERROR(RTD("cqg.rtd", ,"ContractData",AB8, "LongDescription",, "T"),"")&" ("&RIGHT(AB8,LEN(AB8)-5)&")" -> NASDAQ Financial 100 (IXF) | U8: =IFERROR(RTD("cqg.rtd", ,"ContractData",AB8, "LastTrade",, "T"),"") -> 3854.4 | V8: =IFERROR(RTD("cqg.rtd", ,"ContractData",AB8, "NetChange",, "T"),"") -> 28.48 | W8: =IFERROR(RTD("cqg.rtd", ,"ContractData",AB8, "PerCentNetLastTrade",, "T")/100,"") -> 0.007443961191 | X8: 0.007443961191 | Y8: =IFERROR(RTD("cqg.rtd", ,"ContractData",AB8, "Open",, "T"),"") -> 3854.9 | Z8: =IFERROR(RTD("cqg.rtd", ,"ContractData",AB8, "High",, "T"),"") -> 3864.12 | AA8: =IFERROR(RTD("cqg.rtd", ,"ContractData",AB8, "Low",, "T"),"") -> 3849.49 | AB8: =Symbols!H7 -> X.US.IXF
A9: =Symbols!C8 -> X.US.BTK | B9: =RTD("cqg.rtd",,"ContractData",A9,"LongDescription",,"T")&" ("&RIGHT(A9,LEN(A9)-5)&")" -> Biotechnology Index (BTK) | E9: =IFERROR(RTD("cqg.rtd", ,"ContractData",A9, "LastTrade",, "T"),"") -> 3262.58 | F9: =IFERROR(RTD("cqg.rtd", ,"ContractData",A9, "NetChange",, "T"),"") -> -26.73 | G9: =IFERROR(RTD("cqg.rtd", ,"ContractData",A9, "PerCentNetLastTrade",, "T")/100,"") -> -0.008126324366 | H9: -0.008126324366 | I9: =IFERROR(RTD("cqg.rtd", ,"ContractData",A9, "Open",, "T"),"") -> 3300.11 | J9: =IFERROR(RTD("cqg.rtd", ,"ContractData",A9, "High",, "T"),"") -> 3305.34 | K9: =IFERROR(RTD("cqg.rtd", ,"ContractData",A9, "Low",, "T"),"") -> 3259.38 | R9: =IFERROR(RTD("cqg.rtd", ,"ContractData",AB9, "LongDescription",, "T"),"")&" ("&RIGHT(AB9,LEN(AB9)-5)&")" -> NASDAQ Biotechnology (NBI) | U9: =IFERROR(RTD("cqg.rtd", ,"ContractData",AB9, "LastTrade",, "T"),"") -> 2910.87 | V9: =IFERROR(RTD("cqg.rtd", ,"ContractData",AB9, "NetChange",, "T"),"") -> -21.71 | W9: =IFERROR(RTD("cqg.rtd", ,"ContractData",AB9, "PerCentNetLastTrade",, "T")/100,"") -> -0.007403037598 | X9: -0.007403037598 | Y9: =IFERROR(RTD("cqg.rtd", ,"ContractData",AB9, "Open",, "T"),"") -> 2939.24 | Z9: =IFERROR(RTD("cqg.rtd", ,"ContractData",AB9, "High",, "T"),"") -> 2939.59 | AA9: =IFERROR(RTD("cqg.rtd", ,"ContractData",AB9, "Low",, "T"),"") -> 2908.66 | AB9: =Symbols!H8 -> X.US.NBI
A10: =Symbols!C9 -> X.US.NYPID | B10: =RTD("cqg.rtd",,"ContractData",A10,"LongDescription",,"T")&" ("&RIGHT(A10,LEN(A10)-5)&")" -> NYSE Healthcare Index (NYPID) | E10: =IFERROR(RTD("cqg.rtd", ,"ContractData",A10, "LastTrade",, "T"),"") -> 11691.84 | F10: =IFERROR(RTD("cqg.rtd", ,"ContractData",A10, "NetChange",, "T"),"") -> -53.61 | G10: =IFERROR(RTD("cqg.rtd", ,"ContractData",A10, "PerCentNetLastTrade",, "T")/100,"") -> -0.004564320652 | H10: -0.004564320652 | I10: =IFERROR(RTD("cqg.rtd", ,"ContractData",A10, "Open",, "T"),"") -> 11768.9 | J10: =IFERROR(RTD("cqg.rtd", ,"ContractData",A10, "High",, "T"),"") -> 11768.9 | K10: =IFERROR(RTD("cqg.rtd", ,"ContractData",A10, "Low",, "T"),"") -> 11686.97 | R10: =IFERROR(RTD("cqg.rtd", ,"ContractData",AB10, "LongDescription",, "T"),"")&" ("&RIGHT(AB10,LEN(AB10)-5)&")" -> Nasdaq Health Care Index (NHC) | U10: =IFERROR(RTD("cqg.rtd", ,"ContractData",AB10, "LastTrade",, "T"),"") -> 649.33 | V10: =IFERROR(RTD("cqg.rtd", ,"ContractData",AB10, "NetChange",, "T"),"") -> -4.47 | W10: =IFERROR(RTD("cqg.rtd", ,"ContractData",AB10, "PerCentNetLastTrade",, "T")/100,"") -> -0.006836953197 | X10: -0.006836953197 | Y10: =IFERROR(RTD("cqg.rtd", ,"ContractData",AB10, "Open",, "T"),"") -> 654.91 | Z10: =IFERROR(RTD("cqg.rtd", ,"ContractData",AB10, "High",, "T"),"") -> 654.93 | AA10: =IFERROR(RTD("cqg.rtd", ,"ContractData",AB10, "Low",, "T"),"") -> 648.93 | AB10: =Symbols!H9 -> X.US.NHC
A11: =Symbols!C10 -> X.US.IXE | B11: =RTD("cqg.rtd",,"ContractData",A11,"LongDescription",,"T")&" ("&RIGHT(A11,LEN(A11)-5)&")" -> S&P 500 Select Sector Energy Index (IXE) | E11: =IFERROR(RTD("cqg.rtd", ,"ContractData",A11, "LastTrade",, "T"),"") -> 737.43 | F11: =IFERROR(RTD("cqg.rtd", ,"ContractData",A11, "NetChange",, "T"),"") -> 29.44 | G11: =IFERROR(RTD("cqg.rtd", ,"ContractData",A11, "PerCentNetLastTrade",, "T")/100,"") -> 0.04158250823 | H11: 0.04158250823 | I11: =IFERROR(RTD("cqg.rtd", ,"ContractData",A11, "Open",, "T"),"") -> 709.72 | J11: =IFERROR(RTD("cqg.rtd", ,"ContractData",A11, "High",, "T"),"") -> 740.29 | K11: =IFERROR(RTD("cqg.rtd", ,"ContractData",A11, "Low",, "T"),"") -> 709.72 | R11: =IFERROR(RTD("cqg.rtd", ,"ContractData",AB11, "LongDescription",, "T"),"")&" ("&RIGHT(AB11,LEN(AB11)-5)&")" -> PHLX Oil Service Sector (OSX) | U11: =IFERROR(RTD("cqg.rtd", ,"ContractData",AB11, "LastTrade",, "T"),"") -> 172.41 | V11: =IFERROR(RTD("cqg.rtd", ,"ContractData",AB11, "NetChange",, "T"),"") -> 11.25 | W11: =IFERROR(RTD("cqg.rtd", ,"ContractData",AB11, "PerCentNetLastTrade",, "T")/100,"") -> 0.06980640357 | X11: 0.06980640357 | Y11: =IFERROR(RTD("cqg.rtd", ,"ContractData",AB11, "Open",, "T"),"") -> 161.94 | Z11: =IFERROR(RTD("cqg.rtd", ,"ContractData",AB11, "High",, "T"),"") -> 173.08 | AA11: =IFERROR(RTD("cqg.rtd", ,"ContractData",AB11, "Low",, "T"),"") -> 161.92 | AB11: =Symbols!H10 -> X.US.OSX
A12: =Symbols!C11 -> S.US.BAC | B12: =RTD("cqg.rtd",,"ContractData",A12,"LongDescription",,"T")&" ("&RIGHT(A12,LEN(A12)-5)&")" -> Bank of America Corp (BAC) | E12: =IFERROR(RTD("cqg.rtd", ,"ContractData",A12, "LastTrade",, "T"),"") -> 20.76 | F12: =IFERROR(RTD("cqg.rtd", ,"ContractData",A12, "NetChange",, "T"),"") -> 0.47 | G12: =IFERROR(RTD("cqg.rtd", ,"ContractData",A12, "PerCentNetLastTrade",, "T")/100,"") -> 0.02316412026 | H12: =G12 -> 0.02316412026 | I12: =IFERROR(RTD("cqg.rtd", ,"ContractData",A12, "Open",, "T"),"") -> 20.77 | J12: =IFERROR(RTD("cqg.rtd", ,"ContractData",A12, "High",, "T"),"") -> 20.84 | K12: =IFERROR(RTD("cqg.rtd", ,"ContractData",A12, "Low",, "T"),"") -> 20.72 | R12: =IFERROR(RTD("cqg.rtd", ,"ContractData",AB12, "LongDescription",, "T"),"")&" ("&RIGHT(AB12,LEN(AB12)-5)&")" -> Sirius XM Holdings Inc. (SIRI) | U12: =IFERROR(RTD("cqg.rtd", ,"ContractData",AB12, "LastTrade",, "T"),"") -> 4.61 | V12: =IFERROR(RTD("cqg.rtd", ,"ContractData",AB12, "NetChange",, "T"),"") -> 0 | W12: =IFERROR(RTD("cqg.rtd", ,"ContractData",AB12, "PerCentNetLastTrade",, "T")/100,"") -> 0 | X12: 0 | Y12: =IFERROR(RTD("cqg.rtd", ,"ContractData",AB12, "Open",, "T"),"") -> 4.62 | Z12: =IFERROR(RTD("cqg.rtd", ,"ContractData",AB12, "High",, "T"),"") -> 4.65 | AA12: =IFERROR(RTD("cqg.rtd", ,"ContractData",AB12, "Low",, "T"),"") -> 4.6 | AB12: =Symbols!H11 -> S.US.SIRI
A13: =Symbols!C12 -> S.US.GE | B13: =RTD("cqg.rtd",,"ContractData",A13,"LongDescription",,"T")&" ("&RIGHT(A13,LEN(A13)-5)&")" -> General Electric Co (GE) | E13: =IFERROR(RTD("cqg.rtd", ,"ContractData",A13, "LastTrade",, "T"),"") -> 31.05 | F13: =IFERROR(RTD("cqg.rtd", ,"ContractData",A13, "NetChange",, "T"),"") -> 0 | G13: =IFERROR(RTD("cqg.rtd", ,"ContractData",A13, "PerCentNetLastTrade",, "T")/100,"") -> 0 | H13: =G13 -> 0 | I13: =IFERROR(RTD("cqg.rtd", ,"ContractData",A13, "Open",, "T"),"") -> 31.18 | J13: =IFERROR(RTD("cqg.rtd", ,"ContractData",A13, "High",, "T"),"") -> 31.27 | K13: =IFERROR(RTD("cqg.rtd", ,"ContractData",A13, "Low",, "T"),"") -> 31.05 | R13: =IFERROR(RTD("cqg.rtd", ,"ContractData",AB13, "LongDescription",, "T"),"")&" ("&RIGHT(AB13,LEN(AB13)-5)&")" -> Apple Inc (AAPL) | U13: =IFERROR(RTD("cqg.rtd", ,"ContractData",AB13, "LastTrade",, "T"),"") -> 111.05 | V13: =IFERROR(RTD("cqg.rtd", ,"ContractData",AB13, "NetChange",, "T"),"") -> -0.41 | W13: =IFERROR(RTD("cqg.rtd", ,"ContractData",AB13, "PerCentNetLastTrade",, "T")/100,"") -> -0.003678449668 | X13: =W13 -> -0.003678449668 | Y13: =IFERROR(RTD("cqg.rtd", ,"ContractData",AB13, "Open",, "T"),"") -> 111.6 | Z13: =IFERROR(RTD("cqg.rtd", ,"ContractData",AB13, "High",, "T"),"") -> 112.2 | AA13: =IFERROR(RTD("cqg.rtd", ,"ContractData",AB13, "Low",, "T"),"") -> 111.05 | AB13: =Symbols!H12 -> S.US.AAPL
A14: =Symbols!C13 -> S.US.SPY | B14: =RTD("cqg.rtd",,"ContractData",A14,"LongDescription",,"T")&" ("&RIGHT(A14,LEN(A14)-5)&")" -> SPDR S&P 500 (SPY) | E14: =IFERROR(RTD("cqg.rtd", ,"ContractData",A14, "LastTrade",, "T"),"") -> 221.16 | F14: =IFERROR(RTD("cqg.rtd", ,"ContractData",A14, "NetChange",, "T"),"") -> 0.25 | G14: =IFERROR(RTD("cqg.rtd", ,"ContractData",A14, "PerCentNetLastTrade",, "T")/100,"") -> 0.001131682586 | H14: 0.001131682586 | I14: =IFERROR(RTD("cqg.rtd", ,"ContractData",A14, "Open",, "T"),"") -> 221.63 | J14: =IFERROR(RTD("cqg.rtd", ,"ContractData",A14, "High",, "T"),"") -> 221.82 | K14: =IFERROR(RTD("cqg.rtd", ,"ContractData",A14, "Low",, "T"),"") -> 221.12 | R14: =IFERROR(RTD("cqg.rtd", ,"ContractData",AB14, "LongDescription",, "T"),"")&" ("&RIGHT(AB14,LEN(AB14)-5)&")" -> Tesla Motors, Inc. (TSLA) | U14: =IFERROR(RTD("cqg.rtd", ,"ContractData",AB14, "LastTrade",, "T"),"") -> 188.91 | V14: =IFERROR(RTD("cqg.rtd", ,"ContractData",AB14, "NetChange",, "T"),"") -> -0.63 | W14: =IFERROR(RTD("cqg.rtd", ,"ContractData",AB14, "PerCentNetLastTrade",, "T")/100,"") -> -0.003481563539 | X14: -0.003481563539 | Y14: =IFERROR(RTD("cqg.rtd", ,"ContractData",AB14, "Open",, "T"),"") -> 191 | Z14: =IFERROR(RTD("cqg.rtd", ,"ContractData",AB14, "High",, "T"),"") -> 191.89 | AA14: =IFERROR(RTD("cqg.rtd", ,"ContractData",AB14, "Low",, "T"),"") -> 188.69 | AB14: =Symbols!H13 -> S.US.TSLA
A15: =Symbols!C14 -> F.US.EP | B15: =RTD("cqg.rtd",,"ContractData",A15,"LongDescription",,"T")&" ("&RIGHT(A15,LEN(A15)-5)&")" -> E-Mini S&P 500, Dec 16 (EP) | E15: =IFERROR(RTD("cqg.rtd", ,"ContractData",A15, "LastTrade",, "T"),"") -> 2206.5 | F15: =IFERROR(RTD("cqg.rtd", ,"ContractData",A15, "NetChange",, "T"),"") -> 2.75 | G15: =IFERROR(RTD("cqg.rtd", ,"ContractData",A15, "PerCentNetLastTrade",, "T")/100,"") -> 0.001247872944 | H15: 0.001247872944 | I15: =IFERROR(RTD("cqg.rtd", ,"ContractData",A15, "Open",, "T"),"") -> 2203.25 | J15: =IFERROR(RTD("cqg.rtd", ,"ContractData",A15, "High",, "T"),"") -> 2213.75 | K15: =IFERROR(RTD("cqg.rtd", ,"ContractData",A15, "Low",, "T"),"") -> 2200.75 | L15: =R6 -> NASDAQ Composite Index (NQCOMP) | R15: =IFERROR(RTD("cqg.rtd", ,"ContractData",AB15, "LongDescription",, "T"),"")&" ("&RIGHT(AB15,LEN(AB15)-5)&")" -> Micron Technology Inc (MU) | U15: =IFERROR(RTD("cqg.rtd", ,"ContractData",AB15, "LastTrade",, "T"),"") -> 19.46 | V15: =IFERROR(RTD("cqg.rtd", ,"ContractData",AB15, "NetChange",, "T"),"") -> 0.04 | W15: =IFERROR(RTD("cqg.rtd", ,"ContractData",AB15, "PerCentNetLastTrade",, "T")/100,"") -> 0.002059732235 | X15: 0.002059732235 | Y15: =IFERROR(RTD("cqg.rtd", ,"ContractData",AB15, "Open",, "T"),"") -> 19.58 | Z15: =IFERROR(RTD("cqg.rtd", ,"ContractData",AB15, "High",, "T"),"") -> 19.7 | AA15: =IFERROR(RTD("cqg.rtd", ,"ContractData",AB15, "Low",, "T"),"") -> 19.39 | AB15: =Symbols!H14 -> S.US.MU
A16: =Symbols!C15 -> F.US.CLE | B16: =RTD("cqg.rtd",,"ContractData",A16,"LongDescription",,"T")&" ("&RIGHT(A16,LEN(A16)-5)&")" -> Crude Light (Globex), Jan 17 (CLE) | E16: =IFERROR(RTD("cqg.rtd", ,"ContractData",A16, "LastTrade",, "T"),"") -> 48.53 | F16: =IFERROR(RTD("cqg.rtd", ,"ContractData",A16, "NetChange",, "T"),"") -> 3.3 | G16: =IFERROR(RTD("cqg.rtd", ,"ContractData",A16, "PerCentNetLastTrade",, "T")/100,"") -> 0.0729604245 | H16: 0.0729604245 | I16: =IFERROR(RTD("cqg.rtd", ,"ContractData",A16, "Open",, "T"),"") -> 45.24 | J16: =IFERROR(RTD("cqg.rtd", ,"ContractData",A16, "High",, "T"),"") -> 49.12 | K16: =IFERROR(RTD("cqg.rtd", ,"ContractData",A16, "Low",, "T"),"") -> 45.22 | R16: =IFERROR(RTD("cqg.rtd", ,"ContractData",AB16, "LongDescription",, "T"),"")&" ("&RIGHT(AB16,LEN(AB16)-5)&")" -> Powershares QQQ Trust (QQQ) | U16: =IFERROR(RTD("cqg.rtd", ,"ContractData",AB16, "LastTrade",, "T"),"") -> 118.41 | V16: =IFERROR(RTD("cqg.rtd", ,"ContractData",AB16, "NetChange",, "T"),"") -> -0.53 | W16: =IFERROR(RTD("cqg.rtd", ,"ContractData",AB16, "PerCentNetLastTrade",, "T")/100,"") -> -0.00445602825 | X16: -0.00445602825 | Y16: =IFERROR(RTD("cqg.rtd", ,"ContractData",AB16, "Open",, "T"),"") -> 119.06 | Z16: =IFERROR(RTD("cqg.rtd", ,"ContractData",AB16, "High",, "T"),"") -> 119.13 | AA16: =IFERROR(RTD("cqg.rtd", ,"ContractData",AB16, "Low",, "T"),"") -> 118.39 | AB16: =Symbols!H15 -> S.US.QQQ
A17: =Symbols!C16 -> F.US.HOE | B17: =RTD("cqg.rtd",,"ContractData",A17,"LongDescription",,"T")&" ("&RIGHT(A17,LEN(A17)-5)&")" -> NY Harbor ULSD, Jan 17 (HOE) | E17: =IFERROR(RTD("cqg.rtd", ,"ContractData",A17, "LastTrade",, "T"),"") -> 1.5663 | F17: =IFERROR(RTD("cqg.rtd", ,"ContractData",A17, "NetChange",, "T"),"") -> 0.0885 | G17: =IFERROR(RTD("cqg.rtd", ,"ContractData",A17, "PerCentNetLastTrade",, "T")/100,"") -> 0.0598863175 | H17: 0.0598863175 | I17: =IFERROR(RTD("cqg.rtd", ,"ContractData",A17, "Open",, "T"),"") -> 1.4798 | J17: =IFERROR(RTD("cqg.rtd", ,"ContractData",A17, "High",, "T"),"") -> 1.577 | K17: =IFERROR(RTD("cqg.rtd", ,"ContractData",A17, "Low",, "T"),"") -> 1.4749 | R17: =IFERROR(RTD("cqg.rtd", ,"ContractData",AB17, "LongDescription",, "T"),"")&" ("&RIGHT(AB17,LEN(AB17)-5)&")" -> Cisco Systems Inc (CSCO) | U17: =IFERROR(RTD("cqg.rtd", ,"ContractData",AB17, "LastTrade",, "T"),"") -> 29.81 | V17: =IFERROR(RTD("cqg.rtd", ,"ContractData",AB17, "NetChange",, "T"),"") -> -0.02 | W17: =IFERROR(RTD("cqg.rtd", ,"ContractData",AB17, "PerCentNetLastTrade",, "T")/100,"") -> -0.0006704659739 | X17: -0.0006704659739 | Y17: =IFERROR(RTD("cqg.rtd", ,"ContractData",AB17, "Open",, "T"),"") -> 29.76 | Z17: =IFERROR(RTD("cqg.rtd", ,"ContractData",AB17, "High",, "T"),"") -> 29.94 | AA17: =IFERROR(RTD("cqg.rtd", ,"ContractData",AB17, "Low",, "T"),"") -> 29.68 | AB17: =Symbols!H16 -> S.US.CSCO
A18: =Symbols!C17 -> F.US.RBE | B18: =RTD("cqg.rtd",,"ContractData",A18,"LongDescription",,"T")&" ("&RIGHT(A18,LEN(A18)-5)&")" -> RBOB Gasoline (Globex), Jan 17 (RBE) | E18: =IFERROR(RTD("cqg.rtd", ,"ContractData",A18, "LastTrade",, "T"),"") -> 1.4608 | F18: =IFERROR(RTD("cqg.rtd", ,"ContractData",A18, "NetChange",, "T"),"") -> 0.0835 | G18: =IFERROR(RTD("cqg.rtd", ,"ContractData",A18, "PerCentNetLastTrade",, "T")/100,"") -> 0.0607028754 | H18: 0.0607028754 | I18: =IFERROR(RTD("cqg.rtd", ,"ContractData",A18, "Open",, "T"),"") -> 1.377 | J18: =IFERROR(RTD("cqg.rtd", ,"ContractData",A18, "High",, "T"),"") -> 1.4659 | K18: =IFERROR(RTD("cqg.rtd", ,"ContractData",A18, "Low",, "T"),"") -> 1.3736 | R18: =IFERROR(RTD("cqg.rtd", ,"ContractData",AB18, "LongDescription",, "T"),"")&" ("&RIGHT(AB18,LEN(AB18)-5)&")" -> Facebook, Inc. (FB) | U18: =IFERROR(RTD("cqg.rtd", ,"ContractData",AB18, "LastTrade",, "T"),"") -> 120.11 | V18: =IFERROR(RTD("cqg.rtd", ,"ContractData",AB18, "NetChange",, "T"),"") -> -0.76 | W18: =IFERROR(RTD("cqg.rtd", ,"ContractData",AB18, "PerCentNetLastTrade",, "T")/100,"") -> -0.006287747166 | X18: -0.006287747166 | Y18: =IFERROR(RTD("cqg.rtd", ,"ContractData",AB18, "Open",, "T"),"") -> 120.32 | Z18: =IFERROR(RTD("cqg.rtd", ,"ContractData",AB18, "High",, "T"),"") -> 121.32 | AA18: =IFERROR(RTD("cqg.rtd", ,"ContractData",AB18, "Low",, "T"),"") -> 120 | AB18: =Symbols!H17 -> S.US.FB
A19: =Symbols!C18 -> F.US.GCE | B19: =RTD("cqg.rtd",,"ContractData",A19,"LongDescription",,"T")&" ("&RIGHT(A19,LEN(A19)-5)&")" -> Gold (Globex), Feb 17 (GCE) | E19: =IFERROR(RTD("cqg.rtd", ,"ContractData",A19, "LastTrade",, "T"),"") -> 1178.6 | F19: =IFERROR(RTD("cqg.rtd", ,"ContractData",A19, "NetChange",, "T"),"") -> -12.1 | G19: =IFERROR(RTD("cqg.rtd", ,"ContractData",A19, "PerCentNetLastTrade",, "T")/100,"") -> -0.0102452133 | H19: -0.0102452133 | I19: =IFERROR(RTD("cqg.rtd", ,"ContractData",A19, "Open",, "T"),"") -> 1190.7 | J19: =IFERROR(RTD("cqg.rtd", ,"ContractData",A19, "High",, "T"),"") -> 1196.8 | K19: =IFERROR(RTD("cqg.rtd", ,"ContractData",A19, "Low",, "T"),"") -> 1176 | R19: =IFERROR(RTD("cqg.rtd", ,"ContractData",AB19, "LongDescription",, "T"),"")&" ("&RIGHT(AB19,LEN(AB19)-5)&")" -> iShares 20+ Year Treasury Bond ETF (TLT) | U19: =IFERROR(RTD("cqg.rtd", ,"ContractData",AB19, "LastTrade",, "T"),"") -> 119.88 | V19: =IFERROR(RTD("cqg.rtd", ,"ContractData",AB19, "NetChange",, "T"),"") -> -2.33 | W19: =IFERROR(RTD("cqg.rtd", ,"ContractData",AB19, "PerCentNetLastTrade",, "T")/100,"") -> -0.01914580265 | X19: -0.01914580265 | Y19: =IFERROR(RTD("cqg.rtd", ,"ContractData",AB19, "Open",, "T"),"") -> 119.97 | Z19: =IFERROR(RTD("cqg.rtd", ,"ContractData",AB19, "High",, "T"),"") -> 120.13 | AA19: =IFERROR(RTD("cqg.rtd", ,"ContractData",AB19, "Low",, "T"),"") -> 119.56 | AB19: =Symbols!H18 -> S.US.TLT
A20: =Symbols!C19 -> F.US.DD | B20: =RTD("cqg.rtd",,"ContractData",A20,"LongDescription",,"T")&" ("&RIGHT(A20,LEN(A20)-5)&")" -> DAX Index, Dec 16 (DD) | E20: =IFERROR(RTD("cqg.rtd", ,"ContractData",A20, "LastTrade",, "T"),"") -> 10636 | F20: =IFERROR(RTD("cqg.rtd", ,"ContractData",A20, "NetChange",, "T"),"") -> 29 | G20: =IFERROR(RTD("cqg.rtd", ,"ContractData",A20, "PerCentNetLastTrade",, "T")/100,"") -> 0.002781313346 | H20: 0.002781313346 | I20: =IFERROR(RTD("cqg.rtd", ,"ContractData",A20, "Open",, "T"),"") -> 10625 | J20: =IFERROR(RTD("cqg.rtd", ,"ContractData",A20, "High",, "T"),"") -> 10693 | K20: =IFERROR(RTD("cqg.rtd", ,"ContractData",A20, "Low",, "T"),"") -> 10602 | R20: =IFERROR(RTD("cqg.rtd", ,"ContractData",AB20, "LongDescription",, "T"),"")&" ("&RIGHT(AB20,LEN(AB20)-5)&")" -> Intel Corporation (INTC) | U20: =IFERROR(RTD("cqg.rtd", ,"ContractData",AB20, "LastTrade",, "T"),"") -> 35.19 | V20: =IFERROR(RTD("cqg.rtd", ,"ContractData",AB20, "NetChange",, "T"),"") -> -0.12 | W20: =IFERROR(RTD("cqg.rtd", ,"ContractData",AB20, "PerCentNetLastTrade",, "T")/100,"") -> -0.003398470688 | X20: -0.003398470688 | Y20: =IFERROR(RTD("cqg.rtd", ,"ContractData",AB20, "Open",, "T"),"") -> 35.2 | Z20: =IFERROR(RTD("cqg.rtd", ,"ContractData",AB20, "High",, "T"),"") -> 35.3 | AA20: =IFERROR(RTD("cqg.rtd", ,"ContractData",AB20, "Low",, "T"),"") -> 35.03 | AB20: =Symbols!H19 -> S.US.INTC
A21: =Symbols!C20 -> F.US.DSX | B21: =RTD("cqg.rtd",,"ContractData",A21,"LongDescription",,"T")&" ("&RIGHT(A21,LEN(A21)-5)&")" -> Euro STOXX 50, Dec 16 (DSX) | E21: =IFERROR(RTD("cqg.rtd", ,"ContractData",A21, "LastTrade",, "T"),"") -> 3052 | F21: =IFERROR(RTD("cqg.rtd", ,"ContractData",A21, "NetChange",, "T"),"") -> 17 | G21: =IFERROR(RTD("cqg.rtd", ,"ContractData",A21, "PerCentNetLastTrade",, "T")/100,"") -> 0.005601317957 | H21: 0.005601317957 | I21: =IFERROR(RTD("cqg.rtd", ,"ContractData",A21, "Open",, "T"),"") -> 3036 | J21: =IFERROR(RTD("cqg.rtd", ,"ContractData",A21, "High",, "T"),"") -> 3061 | K21: =IFERROR(RTD("cqg.rtd", ,"ContractData",A21, "Low",, "T"),"") -> 3031 | R21: =IFERROR(RTD("cqg.rtd", ,"ContractData",AB21, "LongDescription",, "T"),"")&" ("&RIGHT(AB21,LEN(AB21)-5)&")" -> QUALCOMM Inc (QCOM) | U21: =IFERROR(RTD("cqg.rtd", ,"ContractData",AB21, "LastTrade",, "T"),"") -> 66.93 | V21: =IFERROR(RTD("cqg.rtd", ,"ContractData",AB21, "NetChange",, "T"),"") -> 0.16 | W21: =IFERROR(RTD("cqg.rtd", ,"ContractData",AB21, "PerCentNetLastTrade",, "T")/100,"") -> 0.002396285757 | X21: 0.002396285757 | Y21: =IFERROR(RTD("cqg.rtd", ,"ContractData",AB21, "Open",, "T"),"") -> 66.8 | Z21: =IFERROR(RTD("cqg.rtd", ,"ContractData",AB21, "High",, "T"),"") -> 67.06 | AA21: =IFERROR(RTD("cqg.rtd", ,"ContractData",AB21, "Low",, "T"),"") -> 66.5 | AB21: =Symbols!H20 -> S.US.QCOM
A22: =Symbols!C21 -> F.US.TYA | B22: =RTD("cqg.rtd",,"ContractData",A22,"LongDescription",,"T")&" ("&RIGHT(A22,LEN(A22)-5)&")" -> 10yr US Treasury Notes (Globex), Mar 17 (TYA) | E22: =IFERROR(RTD("cqg.rtd", ,"ContractData",A22, "LastTrade",, "T"),"") -> 124.484375 | F22: =IFERROR(RTD("cqg.rtd", ,"ContractData",A22, "NetChange",, "T"),"") -> -0.625 | G22: =IFERROR(RTD("cqg.rtd", ,"ContractData",A22, "PerCentNetLastTrade",, "T")/100,"") -> -0.004995628825 | H22: -0.004995628825 | I22: =IFERROR(RTD("cqg.rtd", ,"ContractData",A22, "Open",, "T"),"") -> 125.140625 | J22: =IFERROR(RTD("cqg.rtd", ,"ContractData",A22, "High",, "T"),"") -> 125.1875 | K22: =IFERROR(RTD("cqg.rtd", ,"ContractData",A22, "Low",, "T"),"") -> 124.265625 | R22: =IFERROR(RTD("cqg.rtd", ,"ContractData",AB22, "LongDescription",, "T"),"")&" ("&RIGHT(AB22,LEN(AB22)-5)&")" -> American Airlines Group Inc. (AAL) | U22: =IFERROR(RTD("cqg.rtd", ,"ContractData",AB22, "LastTrade",, "T"),"") -> 46.26 | V22: =IFERROR(RTD("cqg.rtd", ,"ContractData",AB22, "NetChange",, "T"),"") -> -0.63 | W22: =IFERROR(RTD("cqg.rtd", ,"ContractData",AB22, "PerCentNetLastTrade",, "T")/100,"") -> -0.01343570058 | X22: -0.01343570058 | Y22: =IFERROR(RTD("cqg.rtd", ,"ContractData",AB22, "Open",, "T"),"") -> 46.14 | Z22: =IFERROR(RTD("cqg.rtd", ,"ContractData",AB22, "High",, "T"),"") -> 46.54 | AA22: =IFERROR(RTD("cqg.rtd", ,"ContractData",AB22, "Low",, "T"),"") -> 45.42 | AB22: =Symbols!H21 -> S.US.AAL
B23: Description | E23: Last | F23: Net | G23: % Net | H23: Tdy Vol | I23: Open | J23: High | K23: Low | R23: Description | U23: Last | V23: Net | W23: % Net | X23: Tdy Vol | Y23: Open | Z23: High | AA23: Low
E24: Price | F24: Change | G24: Change | H24: 21d-Vol | L24: NYSE Total Volume | O24: NASDAQ Total Volume | U24: Price | V24: Change | W24: Change | X24: 21d-Vol
B25: CQG Top Ten Percentage Performers on the NYSE | L25: =IFERROR(RTD("cqg.rtd", ,"ContractData","DJTOV", "LastTrade",, "T"),"") -> 220802 | O25: =O28+O31+O34 -> 418094 | R25: CQG Top Ten Percentage Performers on the NASDAQ
A26: =NYSE!I1 -> S.US.SM | B26: =IFERROR(RTD("cqg.rtd",,"ContractData",A26,"LongDescription",,"T")&" ("&RIGHT(A26,LEN(A26)-5)&")","") -> SM Energy Company (SM) | E26: =IF(B26="","",IFERROR(RTD("cqg.rtd",,"ContractData",A26,"LastTrade",,"T"),"")) -> 38.83 | F26: =IF(B26="","",IFERROR(RTD("cqg.rtd", ,"ContractData",A26, "NetChange",, "T"),"")) -> 6.92 | G26: =IFERROR(RTD("cqg.rtd", ,"ContractData",A26, "PerCentNetLastTrade",, "T")/100,"") -> 0.2168599185 | H26: =IFERROR(RTD("cqg.rtd",,"StudyData",A26, "Vol", "VolType=Exchange,CoCType=Exchange", "Vol","ADC","0","ALL",,,"TRUE","T")/ RTD("cqg.rtd",,"StudyData",A26, "MA", "InputChoice=ContractVol,MAType=Sim,Period=21", "MA","D","-1","all",,,,"T"),"") -> 0.530445731 | I26: =IF(B26="","",IFERROR(RTD("cqg.rtd", ,"ContractData",A26, "Open",, "T"),"")) -> 37.25 | J26: =IF(B26="","",IFERROR(RTD("cqg.rtd", ,"ContractData",A26, "High",, "T"),"")) -> 38.98 | K26: =IF(B26="","",IFERROR(RTD("cqg.rtd",,"ContractData",A26,"Low",,"T"),"")) -> 36.8 | L26: NYSE Up Volume | O26: NASDAQ Up Volume | R26: =IFERROR(RTD("cqg.rtd",,"ContractData",AB26,"LongDescription",,"T")&" ("&RIGHT(AB26,LEN(AB26)-5)&")","") -> Superconductor Tech (SCON) | U26: =IF(R26="","",IFERROR(RTD("cqg.rtd",,"ContractData",AB26,"LastTrade",,"T"),"")) -> 3.17 | V26: =IF(R26="","",IFERROR(RTD("cqg.rtd", ,"ContractData",AB26, "NetChange",, "T"),"")) -> 1.17 | W26: =IFERROR(RTD("cqg.rtd", ,"ContractData",AB26, "PerCentNetLastTrade",, "T")/100,"") -> 0.585 | X26: =IFERROR(RTD("cqg.rtd",,"StudyData",AB26, "Vol", "VolType=Exchange,CoCType=Exchange", "Vol","ADC","0","ALL",,,"TRUE","T")/ RTD("cqg.rtd",,"StudyData",AB26, "MA", "InputChoice=ContractVol,MAType=Sim,Period=21", "MA","D","-1","all",,,,"T"),"") -> 3.196296024 | Y26: =IF(R26="","",IFERROR(RTD("cqg.rtd", ,"ContractData",AB26, "Open",, "T"),"")) -> 3.6 | Z26: =IF(R26="","",IFERROR(RTD("cqg.rtd", ,"ContractData",AB26, "High",, "T"),"")) -> 3.78 | AA26: =IF(R26="","",IFERROR(RTD("cqg.rtd", ,"ContractData",AB26, "Low",, "T"),"")) -> 2.9 | AB26: =NASDAQ!I1 -> S.US.SCON
A27: =NYSE!I2 -> S.US.JONE | B27: =IFERROR(RTD("cqg.rtd",,"ContractData",A27,"LongDescription",,"T")&" ("&RIGHT(A27,LEN(A27)-5)&")","") -> Jones Energy, Inc. (JONE) | E27: =IF(B27="","",IFERROR(RTD("cqg.rtd",,"ContractData",A27,"LastTrade",,"T"),"")) -> 4.62 | F27: =IF(B27="","",IFERROR(RTD("cqg.rtd", ,"ContractData",A27, "NetChange",, "T"),"")) -> 0.82 | G27: =IFERROR(RTD("cqg.rtd", ,"ContractData",A27, "PerCentNetLastTrade",, "T")/100,"") -> 0.2157894737 | H27: =IFERROR(RTD("cqg.rtd",,"StudyData",A27, "Vol", "VolType=Exchange,CoCType=Exchange", "Vol","ADC","0","ALL",,,"TRUE","T")/ RTD("cqg.rtd",,"StudyData",A27, "MA", "InputChoice=ContractVol,MAType=Sim,Period=21", "MA","D","-1","all",,,,"T"),"") -> 0.8386483969 | I27: =IF(B27="","",IFERROR(RTD("cqg.rtd", ,"ContractData",A27, "Open",, "T"),"")) -> 4.5 | J27: =IF(B27="","",IFERROR(RTD("cqg.rtd", ,"ContractData",A27, "High",, "T"),"")) -> 4.75 | K27: =IF(B27="","",IFERROR(RTD("cqg.rtd",,"ContractData",A27,"Low",,"T"),"")) -> 4.3 | R27: =IFERROR(RTD("cqg.rtd",,"ContractData",AB27,"LongDescription",,"T")&" ("&RIGHT(AB27,LEN(AB27)-5)&")","") -> Champions Oncology, Inc. (CSBR) | U27: =IF(R27="","",IFERROR(RTD("cqg.rtd",,"ContractData",AB27,"LastTrade",,"T"),"")) -> 2.39 | V27: =IF(R27="","",IFERROR(RTD("cqg.rtd", ,"ContractData",AB27, "NetChange",, "T"),"")) -> 0.48 | W27: =IFERROR(RTD("cqg.rtd", ,"ContractData",AB27, "PerCentNetLastTrade",, "T")/100,"") -> 0.2513089005 | X27: =IFERROR(RTD("cqg.rtd",,"StudyData",AB27, "Vol", "VolType=Exchange,CoCType=Exchange", "Vol","ADC","0","ALL",,,"TRUE","T")/ RTD("cqg.rtd",,"StudyData",AB27, "MA", "InputChoice=ContractVol,MAType=Sim,Period=21", "MA","D","-1","all",,,,"T"),"") -> 18.05573552 | Y27: =IF(R27="","",IFERROR(RTD("cqg.rtd", ,"ContractData",AB27, "Open",, "T"),"")) -> 2.23 | Z27: =IF(R27="","",IFERROR(RTD("cqg.rtd", ,"ContractData",AB27, "High",, "T"),"")) -> 2.82 | AA27: =IF(R27="","",IFERROR(RTD("cqg.rtd", ,"ContractData",AB27, "Low",, "T"),"")) -> 2.13 | AB27: =NASDAQ!I2 -> S.US.CSBR
A28: =NYSE!I3 -> S.US.CRC | B28: =IFERROR(RTD("cqg.rtd",,"ContractData",A28,"LongDescription",,"T")&" ("&RIGHT(A28,LEN(A28)-5)&")","") -> California Resources Corporation (CRC) | E28: =IF(B28="","",IFERROR(RTD("cqg.rtd",,"ContractData",A28,"LastTrade",,"T"),"")) -> 14.63 | F28: =IF(B28="","",IFERROR(RTD("cqg.rtd", ,"ContractData",A28, "NetChange",, "T"),"")) -> 2.58 | G28: =IFERROR(RTD("cqg.rtd", ,"ContractData",A28, "PerCentNetLastTrade",, "T")/100,"") -> 0.2141078838 | H28: =IFERROR(RTD("cqg.rtd",,"StudyData",A28, "Vol", "VolType=Exchange,CoCType=Exchange", "Vol","ADC","0","ALL",,,"TRUE","T")/ RTD("cqg.rtd",,"StudyData",A28, "MA", "InputChoice=ContractVol,MAType=Sim,Period=21", "MA","D","-1","all",,,,"T"),"") -> 0.9957627743 | I28: =IF(B28="","",IFERROR(RTD("cqg.rtd", ,"ContractData",A28, "Open",, "T"),"")) -> 15.59 | J28: =IF(B28="","",IFERROR(RTD("cqg.rtd", ,"ContractData",A28, "High",, "T"),"")) -> 16.49 | K28: =IF(B28="","",IFERROR(RTD("cqg.rtd",,"ContractData",A28,"Low",,"T"),"")) -> 13.82 | L28: =IFERROR(RTD("cqg.rtd", ,"ContractData","DJUPV", "LastTrade",, "T"),"") -> 149777 | O28: =IFERROR(RTD("cqg.rtd", ,"ContractData","NASUPV", "LastTrade",, "T"),"") -> 149922 | R28: =IFERROR(RTD("cqg.rtd",,"ContractData",AB28,"LongDescription",,"T")&" ("&RIGHT(AB28,LEN(AB28)-5)&")","") -> Memorial Production Partners LP (MEMP) | U28: =IF(R28="","",IFERROR(RTD("cqg.rtd",,"ContractData",AB28,"LastTrade",,"T"),"")) -> 0.37 | V28: =IF(R28="","",IFERROR(RTD("cqg.rtd", ,"ContractData",AB28, "NetChange",, "T"),"")) -> 0.06 | W28: =IFERROR(RTD("cqg.rtd", ,"ContractData",AB28, "PerCentNetLastTrade",, "T")/100,"") -> 0.1935483871 | X28: =IFERROR(RTD("cqg.rtd",,"StudyData",AB28, "Vol", "VolType=Exchange,CoCType=Exchange", "Vol","ADC","0","ALL",,,"TRUE","T")/ RTD("cqg.rtd",,"StudyData",AB28, "MA", "InputChoice=ContractVol,MAType=Sim,Period=21", "MA","D","-1","all",,,,"T"),"") -> 0.399501217 | Y28: =IF(R28="","",IFERROR(RTD("cqg.rtd", ,"ContractData",AB28, "Open",, "T"),"")) -> 0.37 | Z28: =IF(R28="","",IFERROR(RTD("cqg.rtd", ,"ContractData",AB28, "High",, "T"),"")) -> 0.38 | AA28: =IF(R28="","",IFERROR(RTD("cqg.rtd", ,"ContractData",AB28, "Low",, "T"),"")) -> 0.36 | AB28: =NASDAQ!I3 -> S.US.MEMP
A29: =NYSE!I4 -> S.US.OAS | B29: =IFERROR(RTD("cqg.rtd",,"ContractData",A29,"LongDescription",,"T")&" ("&RIGHT(A29,LEN(A29)-5)&")","") -> Oasis Petroleum Inc. (OAS) | E29: =IF(B29="","",IFERROR(RTD("cqg.rtd",,"ContractData",A29,"LastTrade",,"T"),"")) -> 14.13 | F29: =IF(B29="","",IFERROR(RTD("cqg.rtd", ,"ContractData",A29, "NetChange",, "T"),"")) -> 2.41 | G29: =IFERROR(RTD("cqg.rtd", ,"ContractData",A29, "PerCentNetLastTrade",, "T")/100,"") -> 0.2056313993 | H29: =IFERROR(RTD("cqg.rtd",,"StudyData",A29, "Vol", "VolType=Exchange,CoCType=Exchange", "Vol","ADC","0","ALL",,,"TRUE","T")/ RTD("cqg.rtd",,"StudyData",A29, "MA", "InputChoice=ContractVol,MAType=Sim,Period=21", "MA","D","-1","all",,,,"T"),"") -> 0.6674974612 | I29: =IF(B29="","",IFERROR(RTD("cqg.rtd", ,"ContractData",A29, "Open",, "T"),"")) -> 13.59 | J29: =IF(B29="","",IFERROR(RTD("cqg.rtd", ,"ContractData",A29, "High",, "T"),"")) -> 14.28 | K29: =IF(B29="","",IFERROR(RTD("cqg.rtd",,"ContractData",A29,"Low",,"T"),"")) -> 13.47 | L29: NYSE Down Volume | O29: NASDAQ Down Volume | R29: =IFERROR(RTD("cqg.rtd",,"ContractData",AB29,"LongDescription",,"T")&" ("&RIGHT(AB29,LEN(AB29)-5)&")","") -> Mid-Con Energy Partners, LP (MCEP) | U29: =IF(R29="","",IFERROR(RTD("cqg.rtd",,"ContractData",AB29,"LastTrade",,"T"),"")) -> 2.51 | V29: =IF(R29="","",IFERROR(RTD("cqg.rtd", ,"ContractData",AB29, "NetChange",, "T"),"")) -> 0.43 | W29: =IFERROR(RTD("cqg.rtd", ,"ContractData",AB29, "PerCentNetLastTrade",, "T")/100,"") -> 0.1895734597 | X29: =IFERROR(RTD("cqg.rtd",,"StudyData",AB29, "Vol", "VolType=Exchange,CoCType=Exchange", "Vol","ADC","0","ALL",,,"TRUE","T")/ RTD("cqg.rtd",,"StudyData",AB29, "MA", "InputChoice=ContractVol,MAType=Sim,Period=21", "MA","D","-1","all",,,,"T"),"") -> 1.092420793 | Y29: =IF(R29="","",IFERROR(RTD("cqg.rtd", ,"ContractData",AB29, "Open",, "T"),"")) -> 2.28 | Z29: =IF(R29="","",IFERROR(RTD("cqg.rtd", ,"ContractData",AB29, "High",, "T"),"")) -> 2.54 | AA29: =IF(R29="","",IFERROR(RTD("cqg.rtd", ,"ContractData",AB29, "Low",, "T"),"")) -> 2.25 | AB29: =NASDAQ!I4 -> S.US.MCEP
A30: =NYSE!I5 -> S.US.WPX | B30: =IFERROR(RTD("cqg.rtd",,"ContractData",A30,"LongDescription",,"T")&" ("&RIGHT(A30,LEN(A30)-5)&")","") -> WPX Energy, Inc. (WPX) | E30: =IF(B30="","",IFERROR(RTD("cqg.rtd",,"ContractData",A30,"LastTrade",,"T"),"")) -> 14.48 | F30: =IF(B30="","",IFERROR(RTD("cqg.rtd", ,"ContractData",A30, "NetChange",, "T"),"")) -> 2.3 | G30: =IFERROR(RTD("cqg.rtd", ,"ContractData",A30, "PerCentNetLastTrade",, "T")/100,"") -> 0.1888341544 | H30: =IFERROR(RTD("cqg.rtd",,"StudyData",A30, "Vol", "VolType=Exchange,CoCType=Exchange", "Vol","ADC","0","ALL",,,"TRUE","T")/ RTD("cqg.rtd",,"StudyData",A30, "MA", "InputChoice=ContractVol,MAType=Sim,Period=21", "MA","D","-1","all",,,,"T"),"") -> 0.6201866228 | I30: =IF(B30="","",IFERROR(RTD("cqg.rtd", ,"ContractData",A30, "Open",, "T"),"")) -> 13.71 | J30: =IF(B30="","",IFERROR(RTD("cqg.rtd", ,"ContractData",A30, "High",, "T"),"")) -> 14.68 | K30: =IF(B30="","",IFERROR(RTD("cqg.rtd",,"ContractData",A30,"Low",,"T"),"")) -> 13.71 | R30: =IFERROR(RTD("cqg.rtd",,"ContractData",AB30,"LongDescription",,"T")&" ("&RIGHT(AB30,LEN(AB30)-5)&")","") -> Rex Energy Corporation (REXX) | U30: =IF(R30="","",IFERROR(RTD("cqg.rtd",,"ContractData",AB30,"LastTrade",,"T"),"")) -> 0.45 | V30: =IF(R30="","",IFERROR(RTD("cqg.rtd", ,"ContractData",AB30, "NetChange",, "T"),"")) -> 0.07 | W30: =IFERROR(RTD("cqg.rtd", ,"ContractData",AB30, "PerCentNetLastTrade",, "T")/100,"") -> 0.1842105263 | X30: =IFERROR(RTD("cqg.rtd",,"StudyData",AB30, "Vol", "VolType=Exchange,CoCType=Exchange", "Vol","ADC","0","ALL",,,"TRUE","T")/ RTD("cqg.rtd",,"StudyData",AB30, "MA", "InputChoice=ContractVol,MAType=Sim,Period=21", "MA","D","-1","all",,,,"T"),"") -> 0.8626739223 | Y30: =IF(R30="","",IFERROR(RTD("cqg.rtd", ,"ContractData",AB30, "Open",, "T"),"")) -> 0.46 | Z30: =IF(R30="","",IFERROR(RTD("cqg.rtd", ,"ContractData",AB30, "High",, "T"),"")) -> 0.47 | AA30: =IF(R30="","",IFERROR(RTD("cqg.rtd", ,"ContractData",AB30, "Low",, "T"),"")) -> 0.44 | AB30: =NASDAQ!I5 -> S.US.REXX
A31: =NYSE!I6 -> S.US.HLX | B31: =IFERROR(RTD("cqg.rtd",,"ContractData",A31,"LongDescription",,"T")&" ("&RIGHT(A31,LEN(A31)-5)&")","") -> Helix Energy Solutions Group (HLX) | E31: =IF(B31="","",IFERROR(RTD("cqg.rtd",,"ContractData",A31,"LastTrade",,"T"),"")) -> 10.76 | F31: =IF(B31="","",IFERROR(RTD("cqg.rtd", ,"ContractData",A31, "NetChange",, "T"),"")) -> 1.61 | G31: =IFERROR(RTD("cqg.rtd", ,"ContractData",A31, "PerCentNetLastTrade",, "T")/100,"") -> 0.1759562842 | H31: =IFERROR(RTD("cqg.rtd",,"StudyData",A31, "Vol", "VolType=Exchange,CoCType=Exchange", "Vol","ADC","0","ALL",,,"TRUE","T")/ RTD("cqg.rtd",,"StudyData",A31, "MA", "InputChoice=ContractVol,MAType=Sim,Period=21", "MA","D","-1","all",,,,"T"),"") -> 0.3635535953 | I31: =IF(B31="","",IFERROR(RTD("cqg.rtd", ,"ContractData",A31, "Open",, "T"),"")) -> 10.22 | J31: =IF(B31="","",IFERROR(RTD("cqg.rtd", ,"ContractData",A31, "High",, "T"),"")) -> 10.86 | K31: =IF(B31="","",IFERROR(RTD("cqg.rtd",,"ContractData",A31,"Low",,"T"),"")) -> 10.13 | L31: =IFERROR(RTD("cqg.rtd", ,"ContractData","DJDNV", "LastTrade",, "T"),"") -> 69904 | O31: =IFERROR(RTD("cqg.rtd", ,"ContractData","NASDNV", "LastTrade",, "T"),"") -> 164320 | R31: =IFERROR(RTD("cqg.rtd",,"ContractData",AB31,"LongDescription",,"T")&" ("&RIGHT(AB31,LEN(AB31)-5)&")","") -> Recon Technology, Ltd. (RCON) | U31: =IF(R31="","",IFERROR(RTD("cqg.rtd",,"ContractData",AB31,"LastTrade",,"T"),"")) -> 1.43 | V31: =IF(R31="","",IFERROR(RTD("cqg.rtd", ,"ContractData",AB31, "NetChange",, "T"),"")) -> 0.25 | W31: =IFERROR(RTD("cqg.rtd", ,"ContractData",AB31, "PerCentNetLastTrade",, "T")/100,"") -> 0.1532258065 | X31: =IFERROR(RTD("cqg.rtd",,"StudyData",AB31, "Vol", "VolType=Exchange,CoCType=Exchange", "Vol","ADC","0","ALL",,,"TRUE","T")/ RTD("cqg.rtd",,"StudyData",AB31, "MA", "InputChoice=ContractVol,MAType=Sim,Period=21", "MA","D","-1","all",,,,"T"),"") -> 0.6969461997 | Y31: =IF(R31="","",IFERROR(RTD("cqg.rtd", ,"ContractData",AB31, "Open",, "T"),"")) -> 1.24 | Z31: =IF(R31="","",IFERROR(RTD("cqg.rtd", ,"ContractData",AB31, "High",, "T"),"")) -> 1.59 | AA31: =IF(R31="","",IFERROR(RTD("cqg.rtd", ,"ContractData",AB31, "Low",, "T"),"")) -> 1.21 | AB31: =NASDAQ!I6 -> S.US.RCON
A32: =NYSE!I7 -> S.US.CRR | B32: =IFERROR(RTD("cqg.rtd",,"ContractData",A32,"LongDescription",,"T")&" ("&RIGHT(A32,LEN(A32)-5)&")","") -> Carbo Ceramics Inc (CRR) | E32: =IF(B32="","",IFERROR(RTD("cqg.rtd",,"ContractData",A32,"LastTrade",,"T"),"")) -> 7.97 | F32: =IF(B32="","",IFERROR(RTD("cqg.rtd", ,"ContractData",A32, "NetChange",, "T"),"")) -> 1.19 | G32: =IFERROR(RTD("cqg.rtd", ,"ContractData",A32, "PerCentNetLastTrade",, "T")/100,"") -> 0.1755162242 | H32: =IFERROR(RTD("cqg.rtd",,"StudyData",A32, "Vol", "VolType=Exchange,CoCType=Exchange", "Vol","ADC","0","ALL",,,"TRUE","T")/ RTD("cqg.rtd",,"StudyData",A32, "MA", "InputChoice=ContractVol,MAType=Sim,Period=21", "MA","D","-1","all",,,,"T"),"") -> 0.4875142901 | I32: =IF(B32="","",IFERROR(RTD("cqg.rtd", ,"ContractData",A32, "Open",, "T"),"")) -> 7.48 | J32: =IF(B32="","",IFERROR(RTD("cqg.rtd", ,"ContractData",A32, "High",, "T"),"")) -> 8.09 | K32: =IF(B32="","",IFERROR(RTD("cqg.rtd",,"ContractData",A32,"Low",,"T"),"")) -> 7.46 | L32: NYSE Unchanged Vol | O32: NASDAQ Unchanged Vol | R32: =IFERROR(RTD("cqg.rtd",,"ContractData",AB32,"LongDescription",,"T")&" ("&RIGHT(AB32,LEN(AB32)-5)&")","") -> One Horizon Group, Inc. (OHGI) | U32: =IF(R32="","",IFERROR(RTD("cqg.rtd",,"ContractData",AB32,"LastTrade",,"T"),"")) -> 0.32 | V32: =IF(R32="","",IFERROR(RTD("cqg.rtd", ,"ContractData",AB32, "NetChange",, "T"),"")) -> 0.03 | W32: =IFERROR(RTD("cqg.rtd", ,"ContractData",AB32, "PerCentNetLastTrade",, "T")/100,"") -> 0.1428571429 | X32: =IFERROR(RTD("cqg.rtd",,"StudyData",AB32, "Vol", "VolType=Exchange,CoCType=Exchange", "Vol","ADC","0","ALL",,,"TRUE","T")/ RTD("cqg.rtd",,"StudyData",AB32, "MA", "InputChoice=ContractVol,MAType=Sim,Period=21", "MA","D","-1","all",,,,"T"),"") -> 0.345926088 | Y32: =IF(R32="","",IFERROR(RTD("cqg.rtd", ,"ContractData",AB32, "Open",, "T"),"")) -> 0.32 | Z32: =IF(R32="","",IFERROR(RTD("cqg.rtd", ,"ContractData",AB32, "High",, "T"),"")) -> 0.32 | AA32: =IF(R32="","",IFERROR(RTD("cqg.rtd", ,"ContractData",AB32, "Low",, "T"),"")) -> 0.3 | AB32: =NASDAQ!I7 -> S.US.OHGI
A33: =NYSE!I8 -> S.US.CLR | B33: =IFERROR(RTD("cqg.rtd",,"ContractData",A33,"LongDescription",,"T")&" ("&RIGHT(A33,LEN(A33)-5)&")","") -> Continental Resources (CLR) | E33: =IF(B33="","",IFERROR(RTD("cqg.rtd",,"ContractData",A33,"LastTrade",,"T"),"")) -> 55.46 | F33: =IF(B33="","",IFERROR(RTD("cqg.rtd", ,"ContractData",A33, "NetChange",, "T"),"")) -> 8.25 | G33: =IFERROR(RTD("cqg.rtd", ,"ContractData",A33, "PerCentNetLastTrade",, "T")/100,"") -> 0.1747511121 | H33: =IFERROR(RTD("cqg.rtd",,"StudyData",A33, "Vol", "VolType=Exchange,CoCType=Exchange", "Vol","ADC","0","ALL",,,"TRUE","T")/ RTD("cqg.rtd",,"StudyData",A33, "MA", "InputChoice=ContractVol,MAType=Sim,Period=21", "MA","D","-1","all",,,,"T"),"") -> 1.086389592 | I33: =IF(B33="","",IFERROR(RTD("cqg.rtd", ,"ContractData",A33, "Open",, "T"),"")) -> 52.37 | J33: =IF(B33="","",IFERROR(RTD("cqg.rtd", ,"ContractData",A33, "High",, "T"),"")) -> 55.9 | K33: =IF(B33="","",IFERROR(RTD("cqg.rtd",,"ContractData",A33,"Low",,"T"),"")) -> 52.37 | R33: =IFERROR(RTD("cqg.rtd",,"ContractData",AB33,"LongDescription",,"T")&" ("&RIGHT(AB33,LEN(AB33)-5)&")","") -> BluePhoenix Solutions Ltd (MDSY) | U33: =IF(R33="","",IFERROR(RTD("cqg.rtd",,"ContractData",AB33,"LastTrade",,"T"),"")) -> 1.24 | V33: =IF(R33="","",IFERROR(RTD("cqg.rtd", ,"ContractData",AB33, "NetChange",, "T"),"")) -> 0.16 | W33: =IFERROR(RTD("cqg.rtd", ,"ContractData",AB33, "PerCentNetLastTrade",, "T")/100,"") -> 0.1376146789 | X33: =IFERROR(RTD("cqg.rtd",,"StudyData",AB33, "Vol", "VolType=Exchange,CoCType=Exchange", "Vol","ADC","0","ALL",,,"TRUE","T")/ RTD("cqg.rtd",,"StudyData",AB33, "MA", "InputChoice=ContractVol,MAType=Sim,Period=21", "MA","D","-1","all",,,,"T"),"") -> 0.01646729478 | Y33: =IF(R33="","",IFERROR(RTD("cqg.rtd", ,"ContractData",AB33, "Open",, "T"),"")) -> 1.24 | Z33: =IF(R33="","",IFERROR(RTD("cqg.rtd", ,"ContractData",AB33, "High",, "T"),"")) -> 1.24 | AA33: =IF(R33="","",IFERROR(RTD("cqg.rtd", ,"ContractData",AB33, "Low",, "T"),"")) -> 1.24 | AB33: =NASDAQ!I8 -> S.US.MDSY
A34: =NYSE!I9 -> S.US.FMSA | B34: =IFERROR(RTD("cqg.rtd",,"ContractData",A34,"LongDescription",,"T")&" ("&RIGHT(A34,LEN(A34)-5)&")","") -> FMSA Holdings Inc (FMSA) | E34: =IF(B34="","",IFERROR(RTD("cqg.rtd",,"ContractData",A34,"LastTrade",,"T"),"")) -> 9.34 | F34: =IF(B34="","",IFERROR(RTD("cqg.rtd", ,"ContractData",A34, "NetChange",, "T"),"")) -> 1.34 | G34: =IFERROR(RTD("cqg.rtd", ,"ContractData",A34, "PerCentNetLastTrade",, "T")/100,"") -> 0.1675 | H34: =IFERROR(RTD("cqg.rtd",,"StudyData",A34, "Vol", "VolType=Exchange,CoCType=Exchange", "Vol","ADC","0","ALL",,,"TRUE","T")/ RTD("cqg.rtd",,"StudyData",A34, "MA", "InputChoice=ContractVol,MAType=Sim,Period=21", "MA","D","-1","all",,,,"T"),"") -> 0.3688476164 | I34: =IF(B34="","",IFERROR(RTD("cqg.rtd", ,"ContractData",A34, "Open",, "T"),"")) -> 8.86 | J34: =IF(B34="","",IFERROR(RTD("cqg.rtd", ,"ContractData",A34, "High",, "T"),"")) -> 9.4 | K34: =IF(B34="","",IFERROR(RTD("cqg.rtd",,"ContractData",A34,"Low",,"T"),"")) -> 8.75 | L34: =IFERROR(RTD("cqg.rtd", ,"ContractData","DJUCV", "LastTrade",, "T"),"") -> 1120 | O34: =IFERROR(RTD("cqg.rtd", ,"ContractData","NASUCV", "LastTrade",, "T"),"") -> 103852 | R34: =IFERROR(RTD("cqg.rtd",,"ContractData",AB34,"LongDescription",,"T")&" ("&RIGHT(AB34,LEN(AB34)-5)&")","") -> Legacy Reserves LP Units (LGCY) | U34: =IF(R34="","",IFERROR(RTD("cqg.rtd",,"ContractData",AB34,"LastTrade",,"T"),"")) -> 1.92 | V34: =IF(R34="","",IFERROR(RTD("cqg.rtd", ,"ContractData",AB34, "NetChange",, "T"),"")) -> 0.22 | W34: =IFERROR(RTD("cqg.rtd", ,"ContractData",AB34, "PerCentNetLastTrade",, "T")/100,"") -> 0.1294117647 | X34: =IFERROR(RTD("cqg.rtd",,"StudyData",AB34, "Vol", "VolType=Exchange,CoCType=Exchange", "Vol","ADC","0","ALL",,,"TRUE","T")/ RTD("cqg.rtd",,"StudyData",AB34, "MA", "InputChoice=ContractVol,MAType=Sim,Period=21", "MA","D","-1","all",,,,"T"),"") -> 0.4008821811 | Y34: =IF(R34="","",IFERROR(RTD("cqg.rtd", ,"ContractData",AB34, "Open",, "T"),"")) -> 1.86 | Z34: =IF(R34="","",IFERROR(RTD("cqg.rtd", ,"ContractData",AB34, "High",, "T"),"")) -> 1.93 | AA34: =IF(R34="","",IFERROR(RTD("cqg.rtd", ,"ContractData",AB34, "Low",, "T"),"")) -> 1.81 | AB34: =NASDAQ!I9 -> S.US.LGCY
A35: =NYSE!I10 -> S.US.DNR | B35: =IFERROR(RTD("cqg.rtd",,"ContractData",A35,"LongDescription",,"T")&" ("&RIGHT(A35,LEN(A35)-5)&")","") -> Denbury Resources Inc (DNR) | E35: =IF(B35="","",IFERROR(RTD("cqg.rtd",,"ContractData",A35,"LastTrade",,"T"),"")) -> 3.3 | F35: =IF(B35="","",IFERROR(RTD("cqg.rtd", ,"ContractData",A35, "NetChange",, "T"),"")) -> 0.47 | G35: =IFERROR(RTD("cqg.rtd", ,"ContractData",A35, "PerCentNetLastTrade",, "T")/100,"") -> 0.1660777385 | H35: =IFERROR(RTD("cqg.rtd",,"StudyData",A35, "Vol", "VolType=Exchange,CoCType=Exchange", "Vol","ADC","0","ALL",,,"TRUE","T")/ RTD("cqg.rtd",,"StudyData",A35, "MA", "InputChoice=ContractVol,MAType=Sim,Period=21", "MA","D","-1","all",,,,"T"),"") -> 0.8165620147 | I35: =IF(B35="","",IFERROR(RTD("cqg.rtd", ,"ContractData",A35, "Open",, "T"),"")) -> 3.25 | J35: =IF(B35="","",IFERROR(RTD("cqg.rtd", ,"ContractData",A35, "High",, "T"),"")) -> 3.36 | K35: =IF(B35="","",IFERROR(RTD("cqg.rtd",,"ContractData",A35,"Low",,"T"),"")) -> 3.15 | L35: NYSE Adv Issues | O35: NASDAQ Adv Issues | R35: =IFERROR(RTD("cqg.rtd",,"ContractData",AB35,"LongDescription",,"T")&" ("&RIGHT(AB35,LEN(AB35)-5)&")","") -> Ocean Rig UDW Inc. (ORIG) | U35: =IF(R35="","",IFERROR(RTD("cqg.rtd",,"ContractData",AB35,"LastTrade",,"T"),"")) -> 1.58 | V35: =IF(R35="","",IFERROR(RTD("cqg.rtd", ,"ContractData",AB35, "NetChange",, "T"),"")) -> 0.18 | W35: =IFERROR(RTD("cqg.rtd", ,"ContractData",AB35, "PerCentNetLastTrade",, "T")/100,"") -> 0.1285714286 | X35: =IFERROR(RTD("cqg.rtd",,"StudyData",AB35, "Vol", "VolType=Exchange,CoCType=Exchange", "Vol","ADC","0","ALL",,,"TRUE","T")/ RTD("cqg.rtd",,"StudyData",AB35, "MA", "InputChoice=ContractVol,MAType=Sim,Period=21", "MA","D","-1","all",,,,"T"),"") -> 0.4949699822 | Y35: =IF(R35="","",IFERROR(RTD("cqg.rtd", ,"ContractData",AB35, "Open",, "T"),"")) -> 1.66 | Z35: =IF(R35="","",IFERROR(RTD("cqg.rtd", ,"ContractData",AB35, "High",, "T"),"")) -> 1.66 | AA35: =IF(R35="","",IFERROR(RTD("cqg.rtd", ,"ContractData",AB35, "Low",, "T"),"")) -> 1.54 | AB35: =NASDAQ!I10 -> S.US.ORIG
B36: CQG Bottom Ten Percentage Performers on the NYSE | R36: CQG Bottom Ten Percentage Performers on the NASDAQ
A37: =NYSE!N1 -> S.US.CMRE | B37: =IFERROR(RTD("cqg.rtd",,"ContractData",A37,"LongDescription",,"T")&" ("&RIGHT(A37,LEN(A37)-5)&")","") -> Costamare Inc. (CMRE) | E37: =IF(B37="","",IFERROR(RTD("cqg.rtd",,"ContractData",A37,"LastTrade",,"T"),"")) -> 5.75 | F37: =IF(B37="","",IFERROR(RTD("cqg.rtd", ,"ContractData",A37, "NetChange",, "T"),"")) -> -0.9 | G37: =IFERROR(RTD("cqg.rtd", ,"ContractData",A37, "PerCentNetLastTrade",, "T")/100,"") -> -0.1353383459 | H37: =IFERROR(RTD("cqg.rtd",,"StudyData",A37, "Vol", "VolType=Exchange,CoCType=Exchange", "Vol","ADC","0","ALL",,,"TRUE","T")/ RTD("cqg.rtd",,"StudyData",A37, "MA", "InputChoice=ContractVol,MAType=Sim,Period=21", "MA","D","-1","all",,,,"T"),"") -> 8.651503505 | I37: =IF(B37="","",IFERROR(RTD("cqg.rtd", ,"ContractData",A37, "Open",, "T"),"")) -> 5.65 | J37: =IF(B37="","",IFERROR(RTD("cqg.rtd", ,"ContractData",A37, "High",, "T"),"")) -> 5.9 | K37: =IF(B37="","",IFERROR(RTD("cqg.rtd",,"ContractData",A37,"Low",,"T"),"")) -> 5.64 | L37: =IFERROR(RTD("cqg.rtd", ,"ContractData","DJIUP", "LastTrade",, "T"),"") -> 1446 | O37: =IFERROR(RTD("cqg.rtd", ,"ContractData","NASIUP", "LastTrade",, "T"),"") -> 1460 | R37: =IFERROR(RTD("cqg.rtd",,"ContractData",AB37,"LongDescription",,"T")&" ("&RIGHT(AB37,LEN(AB37)-5)&")","") -> Arrowhead Pharmaceuticals, Inc. (ARWR) | U37: =IF(R37="","",IFERROR(RTD("cqg.rtd",,"ContractData",AB37,"LastTrade",,"T"),"")) -> 1.7 | V37: =IF(R37="","",IFERROR(RTD("cqg.rtd", ,"ContractData",AB37, "NetChange",, "T"),"")) -> -2.69 | W37: =IFERROR(RTD("cqg.rtd", ,"ContractData",AB37, "PerCentNetLastTrade",, "T")/100,"") -> -0.6127562642 | X37: =IFERROR(RTD("cqg.rtd",,"StudyData",AB37, "Vol", "VolType=Exchange,CoCType=Exchange", "Vol","ADC","0","ALL",,,"TRUE","T")/ RTD("cqg.rtd",,"StudyData",AB37, "MA", "InputChoice=ContractVol,MAType=Sim,Period=21", "MA","D","-1","all",,,,"T"),"") -> 5.570954138 | Y37: =IF(R37="","",IFERROR(RTD("cqg.rtd", ,"ContractData",AB37, "Open",, "T"),"")) -> 1.69 | Z37: =IF(R37="","",IFERROR(RTD("cqg.rtd", ,"ContractData",AB37, "High",, "T"),"")) -> 1.8 | AA37: =IF(R37="","",IFERROR(RTD("cqg.rtd", ,"ContractData",AB37, "Low",, "T"),"")) -> 1.64 | AB37: =NASDAQ!N1 -> S.US.ARWR
A38: =NYSE!N2 -> S.US.AEO | B38: =IFERROR(RTD("cqg.rtd",,"ContractData",A38,"LongDescription",,"T")&" ("&RIGHT(A38,LEN(A38)-5)&")","") -> American Eagle Outfitters (AEO) | E38: =IF(B38="","",IFERROR(RTD("cqg.rtd",,"ContractData",A38,"LastTrade",,"T"),"")) -> 16.58 | F38: =IF(B38="","",IFERROR(RTD("cqg.rtd", ,"ContractData",A38, "NetChange",, "T"),"")) -> -2.33 | G38: =IFERROR(RTD("cqg.rtd", ,"ContractData",A38, "PerCentNetLastTrade",, "T")/100,"") -> -0.12321523 | H38: =IFERROR(RTD("cqg.rtd",,"StudyData",A38, "Vol", "VolType=Exchange,CoCType=Exchange", "Vol","ADC","0","ALL",,,"TRUE","T")/ RTD("cqg.rtd",,"StudyData",A38, "MA", "InputChoice=ContractVol,MAType=Sim,Period=21", "MA","D","-1","all",,,,"T"),"") -> 1.558518067 | I38: =IF(B38="","",IFERROR(RTD("cqg.rtd", ,"ContractData",A38, "Open",, "T"),"")) -> 16.87 | J38: =IF(B38="","",IFERROR(RTD("cqg.rtd", ,"ContractData",A38, "High",, "T"),"")) -> 16.98 | K38: =IF(B38="","",IFERROR(RTD("cqg.rtd",,"ContractData",A38,"Low",,"T"),"")) -> 16.05 | L38: NYSE Dec Issues | O38: NASDAQ Dec Issues | R38: =IFERROR(RTD("cqg.rtd",,"ContractData",AB38,"LongDescription",,"T")&" ("&RIGHT(AB38,LEN(AB38)-5)&")","") -> Cerecor Inc. (CERC) | U38: =IF(R38="","",IFERROR(RTD("cqg.rtd",,"ContractData",AB38,"LastTrade",,"T"),"")) -> 2.45 | V38: =IF(R38="","",IFERROR(RTD("cqg.rtd", ,"ContractData",AB38, "NetChange",, "T"),"")) -> -2.27 | W38: =IFERROR(RTD("cqg.rtd", ,"ContractData",AB38, "PerCentNetLastTrade",, "T")/100,"") -> -0.4809322034 | X38: =IFERROR(RTD("cqg.rtd",,"StudyData",AB38, "Vol", "VolType=Exchange,CoCType=Exchange", "Vol","ADC","0","ALL",,,"TRUE","T")/ RTD("cqg.rtd",,"StudyData",AB38, "MA", "InputChoice=ContractVol,MAType=Sim,Period=21", "MA","D","-1","all",,,,"T"),"") -> 6.96274624 | Y38: =IF(R38="","",IFERROR(RTD("cqg.rtd", ,"ContractData",AB38, "Open",, "T"),"")) -> 2.34 | Z38: =IF(R38="","",IFERROR(RTD("cqg.rtd", ,"ContractData",AB38, "High",, "T"),"")) -> 2.68 | AA38: =IF(R38="","",IFERROR(RTD("cqg.rtd", ,"ContractData",AB38, "Low",, "T"),"")) -> 1.98 | AB38: =NASDAQ!N2 -> S.US.CERC
A39: =NYSE!N3 -> S.US.FBP | B39: =IFERROR(RTD("cqg.rtd",,"ContractData",A39,"LongDescription",,"T")&" ("&RIGHT(A39,LEN(A39)-5)&")","") -> First BanCorp. (FBP) | E39: =IF(B39="","",IFERROR(RTD("cqg.rtd",,"ContractData",A39,"LastTrade",,"T"),"")) -> 5.91 | F39: =IF(B39="","",IFERROR(RTD("cqg.rtd", ,"ContractData",A39, "NetChange",, "T"),"")) -> -0.46 | G39: =IFERROR(RTD("cqg.rtd", ,"ContractData",A39, "PerCentNetLastTrade",, "T")/100,"") -> -0.07221350078 | H39: =IFERROR(RTD("cqg.rtd",,"StudyData",A39, "Vol", "VolType=Exchange,CoCType=Exchange", "Vol","ADC","0","ALL",,,"TRUE","T")/ RTD("cqg.rtd",,"StudyData",A39, "MA", "InputChoice=ContractVol,MAType=Sim,Period=21", "MA","D","-1","all",,,,"T"),"") -> 3.440821712 | I39: =IF(B39="","",IFERROR(RTD("cqg.rtd", ,"ContractData",A39, "Open",, "T"),"")) -> 5.9 | J39: =IF(B39="","",IFERROR(RTD("cqg.rtd", ,"ContractData",A39, "High",, "T"),"")) -> 6.04 | K39: =IF(B39="","",IFERROR(RTD("cqg.rtd",,"ContractData",A39,"Low",,"T"),"")) -> 5.85 | R39: =IFERROR(RTD("cqg.rtd",,"ContractData",AB39,"LongDescription",,"T")&" ("&RIGHT(AB39,LEN(AB39)-5)&")","") -> Atlanticus Holdings Corporation (ATLC) | U39: =IF(R39="","",IFERROR(RTD("cqg.rtd",,"ContractData",AB39,"LastTrade",,"T"),"")) -> 3 | V39: =IF(R39="","",IFERROR(RTD("cqg.rtd", ,"ContractData",AB39, "NetChange",, "T"),"")) -> -2.68 | W39: =IFERROR(RTD("cqg.rtd", ,"ContractData",AB39, "PerCentNetLastTrade",, "T")/100,"") -> -0.4800693241 | X39: =IFERROR(RTD("cqg.rtd",,"StudyData",AB39, "Vol", "VolType=Exchange,CoCType=Exchange", "Vol","ADC","0","ALL",,,"TRUE","T")/ RTD("cqg.rtd",,"StudyData",AB39, "MA", "InputChoice=ContractVol,MAType=Sim,Period=21", "MA","D","-1","all",,,,"T"),"") -> 1.12332838 | Y39: =IF(R39="","",IFERROR(RTD("cqg.rtd", ,"ContractData",AB39, "Open",, "T"),"")) -> 3 | Z39: =IF(R39="","",IFERROR(RTD("cqg.rtd", ,"ContractData",AB39, "High",, "T"),"")) -> 3 | AA39: =IF(R39="","",IFERROR(RTD("cqg.rtd", ,"ContractData",AB39, "Low",, "T"),"")) -> 3 | AB39: =NASDAQ!N3 -> S.US.ATLC
A40: =NYSE!N4 -> S.US.VRX | B40: =IFERROR(RTD("cqg.rtd",,"ContractData",A40,"LongDescription",,"T")&" ("&RIGHT(A40,LEN(A40)-5)&")","") -> Valeant Pharmaceuticals Intl (VRX) | E40: =IF(B40="","",IFERROR(RTD("cqg.rtd",,"ContractData",A40,"LastTrade",,"T"),"")) -> 15.99 | F40: =IF(B40="","",IFERROR(RTD("cqg.rtd", ,"ContractData",A40, "NetChange",, "T"),"")) -> -1.16 | G40: =IFERROR(RTD("cqg.rtd", ,"ContractData",A40, "PerCentNetLastTrade",, "T")/100,"") -> -0.06818181818 | H40: =IFERROR(RTD("cqg.rtd",,"StudyData",A40, "Vol", "VolType=Exchange,CoCType=Exchange", "Vol","ADC","0","ALL",,,"TRUE","T")/ RTD("cqg.rtd",,"StudyData",A40, "MA", "InputChoice=ContractVol,MAType=Sim,Period=21", "MA","D","-1","all",,,,"T"),"") -> 0.3882474332 | I40: =IF(B40="","",IFERROR(RTD("cqg.rtd", ,"ContractData",A40, "Open",, "T"),"")) -> 17.02 | J40: =IF(B40="","",IFERROR(RTD("cqg.rtd", ,"ContractData",A40, "High",, "T"),"")) -> 17.08 | K40: =IF(B40="","",IFERROR(RTD("cqg.rtd",,"ContractData",A40,"Low",,"T"),"")) -> 15.85 | L40: =IFERROR(RTD("cqg.rtd", ,"ContractData","DJIDN", "LastTrade",, "T"),"") -> 1455 | O40: =IFERROR(RTD("cqg.rtd", ,"ContractData","NASIDN", "LastTrade",, "T"),"") -> 1069 | R40: =IFERROR(RTD("cqg.rtd",,"ContractData",AB40,"LongDescription",,"T")&" ("&RIGHT(AB40,LEN(AB40)-5)&")","") -> Towerstream Corporation (TWER) | U40: =IF(R40="","",IFERROR(RTD("cqg.rtd",,"ContractData",AB40,"LastTrade",,"T"),"")) -> 0.24 | V40: =IF(R40="","",IFERROR(RTD("cqg.rtd", ,"ContractData",AB40, "NetChange",, "T"),"")) -> -0.1 | W40: =IFERROR(RTD("cqg.rtd", ,"ContractData",AB40, "PerCentNetLastTrade",, "T")/100,"") -> -0.2941176471 | X40: =IFERROR(RTD("cqg.rtd",,"StudyData",AB40, "Vol", "VolType=Exchange,CoCType=Exchange", "Vol","ADC","0","ALL",,,"TRUE","T")/ RTD("cqg.rtd",,"StudyData",AB40, "MA", "InputChoice=ContractVol,MAType=Sim,Period=21", "MA","D","-1","all",,,,"T"),"") -> 1.424402907 | Y40: =IF(R40="","",IFERROR(RTD("cqg.rtd", ,"ContractData",AB40, "Open",, "T"),"")) -> 0.24 | Z40: =IF(R40="","",IFERROR(RTD("cqg.rtd", ,"ContractData",AB40, "High",, "T"),"")) -> 0.24 | AA40: =IF(R40="","",IFERROR(RTD("cqg.rtd", ,"ContractData",AB40, "Low",, "T"),"")) -> 0.2 | AB40: =NASDAQ!N4 -> S.US.TWER
A41: =NYSE!N5 -> S.US.DRD | B41: =IFERROR(RTD("cqg.rtd",,"ContractData",A41,"LongDescription",,"T")&" ("&RIGHT(A41,LEN(A41)-5)&")","") -> DRDGOLD Limited (DRD) | E41: =IF(B41="","",IFERROR(RTD("cqg.rtd",,"ContractData",A41,"LastTrade",,"T"),"")) -> 4.36 | F41: =IF(B41="","",IFERROR(RTD("cqg.rtd", ,"ContractData",A41, "NetChange",, "T"),"")) -> -0.28 | G41: =IFERROR(RTD("cqg.rtd", ,"ContractData",A41, "PerCentNetLastTrade",, "T")/100,"") -> -0.06034482759 | H41: =IFERROR(RTD("cqg.rtd",,"StudyData",A41, "Vol", "VolType=Exchange,CoCType=Exchange", "Vol","ADC","0","ALL",,,"TRUE","T")/ RTD("cqg.rtd",,"StudyData",A41, "MA", "InputChoice=ContractVol,MAType=Sim,Period=21", "MA","D","-1","all",,,,"T"),"") -> 0.3608421322 | I41: =IF(B41="","",IFERROR(RTD("cqg.rtd", ,"ContractData",A41, "Open",, "T"),"")) -> 4.41 | J41: =IF(B41="","",IFERROR(RTD("cqg.rtd", ,"ContractData",A41, "High",, "T"),"")) -> 4.47 | K41: =IF(B41="","",IFERROR(RTD("cqg.rtd",,"ContractData",A41,"Low",,"T"),"")) -> 4.12 | L41: NYSE Unc Issues | O41: NASDAQ Unc Issues | R41: =IFERROR(RTD("cqg.rtd",,"ContractData",AB41,"LongDescription",,"T")&" ("&RIGHT(AB41,LEN(AB41)-5)&")","") -> Celyad SA (CYAD) | U41: =IF(R41="","",IFERROR(RTD("cqg.rtd",,"ContractData",AB41,"LastTrade",,"T"),"")) -> 18.79 | V41: =IF(R41="","",IFERROR(RTD("cqg.rtd", ,"ContractData",AB41, "NetChange",, "T"),"")) -> -4.81 | W41: =IFERROR(RTD("cqg.rtd", ,"ContractData",AB41, "PerCentNetLastTrade",, "T")/100,"") -> -0.2170833333 | X41: =IFERROR(RTD("cqg.rtd",,"StudyData",AB41, "Vol", "VolType=Exchange,CoCType=Exchange", "Vol","ADC","0","ALL",,,"TRUE","T")/ RTD("cqg.rtd",,"StudyData",AB41, "MA", "InputChoice=ContractVol,MAType=Sim,Period=21", "MA","D","-1","all",,,,"T"),"") -> 11.05776173 | Y41: =IF(R41="","",IFERROR(RTD("cqg.rtd", ,"ContractData",AB41, "Open",, "T"),"")) -> 19.8 | Z41: =IF(R41="","",IFERROR(RTD("cqg.rtd", ,"ContractData",AB41, "High",, "T"),"")) -> 19.8 | AA41: =IF(R41="","",IFERROR(RTD("cqg.rtd", ,"ContractData",AB41, "Low",, "T"),"")) -> 18.79 | AB41: =NASDAQ!N5 -> S.US.CYAD
A42: =NYSE!N6 -> S.US.FPI | B42: =IFERROR(RTD("cqg.rtd",,"ContractData",A42,"LongDescription",,"T")&" ("&RIGHT(A42,LEN(A42)-5)&")","") -> Farmland Partners, Inc. (FPI) | E42: =IF(B42="","",IFERROR(RTD("cqg.rtd",,"ContractData",A42,"LastTrade",,"T"),"")) -> 11.15 | F42: =IF(B42="","",IFERROR(RTD("cqg.rtd", ,"ContractData",A42, "NetChange",, "T"),"")) -> -0.69 | G42: =IFERROR(RTD("cqg.rtd", ,"ContractData",A42, "PerCentNetLastTrade",, "T")/100,"") -> -0.05827702703 | H42: =IFERROR(RTD("cqg.rtd",,"StudyData",A42, "Vol", "VolType=Exchange,CoCType=Exchange", "Vol","ADC","0","ALL",,,"TRUE","T")/ RTD("cqg.rtd",,"StudyData",A42, "MA", "InputChoice=ContractVol,MAType=Sim,Period=21", "MA","D","-1","all",,,,"T"),"") -> 2.177318222 | I42: =IF(B42="","",IFERROR(RTD("cqg.rtd", ,"ContractData",A42, "Open",, "T"),"")) -> 11.1 | J42: =IF(B42="","",IFERROR(RTD("cqg.rtd", ,"ContractData",A42, "High",, "T"),"")) -> 11.18 | K42: =IF(B42="","",IFERROR(RTD("cqg.rtd",,"ContractData",A42,"Low",,"T"),"")) -> 10.91 | R42: =IFERROR(RTD("cqg.rtd",,"ContractData",AB42,"LongDescription",,"T")&" ("&RIGHT(AB42,LEN(AB42)-5)&")","") -> Interpace Diagnostics Group, Inc. (IDXG) | U42: =IF(R42="","",IFERROR(RTD("cqg.rtd",,"ContractData",AB42,"LastTrade",,"T"),"")) -> 0.14 | V42: =IF(R42="","",IFERROR(RTD("cqg.rtd", ,"ContractData",AB42, "NetChange",, "T"),"")) -> -0.03 | W42: =IFERROR(RTD("cqg.rtd", ,"ContractData",AB42, "PerCentNetLastTrade",, "T")/100,"") -> -0.1764705882 | X42: =IFERROR(RTD("cqg.rtd",,"StudyData",AB42, "Vol", "VolType=Exchange,CoCType=Exchange", "Vol","ADC","0","ALL",,,"TRUE","T")/ RTD("cqg.rtd",,"StudyData",AB42, "MA", "InputChoice=ContractVol,MAType=Sim,Period=21", "MA","D","-1","all",,,,"T"),"") -> 0.3366511582 | Y42: =IF(R42="","",IFERROR(RTD("cqg.rtd", ,"ContractData",AB42, "Open",, "T"),"")) -> 0.17 | Z42: =IF(R42="","",IFERROR(RTD("cqg.rtd", ,"ContractData",AB42, "High",, "T"),"")) -> 0.18 | AA42: =IF(R42="","",IFERROR(RTD("cqg.rtd", ,"ContractData",AB42, "Low",, "T"),"")) -> 0.14 | AB42: =NASDAQ!N6 -> S.US.IDXG
A43: =NYSE!N7 -> S.US.OOMA | B43: =IFERROR(RTD("cqg.rtd",,"ContractData",A43,"LongDescription",,"T")&" ("&RIGHT(A43,LEN(A43)-5)&")","") -> Ooma, Inc. (OOMA) | E43: =IF(B43="","",IFERROR(RTD("cqg.rtd",,"ContractData",A43,"LastTrade",,"T"),"")) -> 8.95 | F43: =IF(B43="","",IFERROR(RTD("cqg.rtd", ,"ContractData",A43, "NetChange",, "T"),"")) -> -0.55 | G43: =IFERROR(RTD("cqg.rtd", ,"ContractData",A43, "PerCentNetLastTrade",, "T")/100,"") -> -0.05789473684 | H43: =IFERROR(RTD("cqg.rtd",,"StudyData",A43, "Vol", "VolType=Exchange,CoCType=Exchange", "Vol","ADC","0","ALL",,,"TRUE","T")/ RTD("cqg.rtd",,"StudyData",A43, "MA", "InputChoice=ContractVol,MAType=Sim,Period=21", "MA","D","-1","all",,,,"T"),"") -> 0.8294845964 | I43: =IF(B43="","",IFERROR(RTD("cqg.rtd", ,"ContractData",A43, "Open",, "T"),"")) -> 9.9 | J43: =IF(B43="","",IFERROR(RTD("cqg.rtd", ,"ContractData",A43, "High",, "T"),"")) -> 9.9 | K43: =IF(B43="","",IFERROR(RTD("cqg.rtd",,"ContractData",A43,"Low",,"T"),"")) -> 8.9 | L43: =IFERROR(RTD("cqg.rtd", ,"ContractData","DJIUC", "LastTrade",, "T"),"") -> 66 | O43: =IFERROR(RTD("cqg.rtd", ,"ContractData","NASIUC", "LastTrade",, "T"),"") -> 164 | R43: =IFERROR(RTD("cqg.rtd",,"ContractData",AB43,"LongDescription",,"T")&" ("&RIGHT(AB43,LEN(AB43)-5)&")","") -> Transgenomic, Inc. (TBIO) | U43: =IF(R43="","",IFERROR(RTD("cqg.rtd",,"ContractData",AB43,"LastTrade",,"T"),"")) -> 0.19 | V43: =IF(R43="","",IFERROR(RTD("cqg.rtd", ,"ContractData",AB43, "NetChange",, "T"),"")) -> -0.04 | W43: =IFERROR(RTD("cqg.rtd", ,"ContractData",AB43, "PerCentNetLastTrade",, "T")/100,"") -> -0.1739130435 | X43: =IFERROR(RTD("cqg.rtd",,"StudyData",AB43, "Vol", "VolType=Exchange,CoCType=Exchange", "Vol","ADC","0","ALL",,,"TRUE","T")/ RTD("cqg.rtd",,"StudyData",AB43, "MA", "InputChoice=ContractVol,MAType=Sim,Period=21", "MA","D","-1","all",,,,"T"),"") -> 0.2385644346 | Y43: =IF(R43="","",IFERROR(RTD("cqg.rtd", ,"ContractData",AB43, "Open",, "T"),"")) -> 0.23 | Z43: =IF(R43="","",IFERROR(RTD("cqg.rtd", ,"ContractData",AB43, "High",, "T"),"")) -> 0.23 | AA43: =IF(R43="","",IFERROR(RTD("cqg.rtd", ,"ContractData",AB43, "Low",, "T"),"")) -> 0.19 | AB43: =NASDAQ!N7 -> S.US.TBIO
A44: =NYSE!N8 -> S.US.EVGN | B44: =IFERROR(RTD("cqg.rtd",,"ContractData",A44,"LongDescription",,"T")&" ("&RIGHT(A44,LEN(A44)-5)&")","") -> EvoGene Ltd. (EVGN) | E44: =IF(B44="","",IFERROR(RTD("cqg.rtd",,"ContractData",A44,"LastTrade",,"T"),"")) -> 5.44 | F44: =IF(B44="","",IFERROR(RTD("cqg.rtd", ,"ContractData",A44, "NetChange",, "T"),"")) -> -0.07 | G44: =IFERROR(RTD("cqg.rtd", ,"ContractData",A44, "PerCentNetLastTrade",, "T")/100,"") -> -0.05061082024 | H44: =IFERROR(RTD("cqg.rtd",,"StudyData",A44, "Vol", "VolType=Exchange,CoCType=Exchange", "Vol","ADC","0","ALL",,,"TRUE","T")/ RTD("cqg.rtd",,"StudyData",A44, "MA", "InputChoice=ContractVol,MAType=Sim,Period=21", "MA","D","-1","all",,,,"T"),"") -> 0.1626196139 | I44: =IF(B44="","",IFERROR(RTD("cqg.rtd", ,"ContractData",A44, "Open",, "T"),"")) -> 5.55 | J44: =IF(B44="","",IFERROR(RTD("cqg.rtd", ,"ContractData",A44, "High",, "T"),"")) -> 5.55 | K44: =IF(B44="","",IFERROR(RTD("cqg.rtd",,"ContractData",A44,"Low",,"T"),"")) -> 5.44 | L44: NYSE Tick | O44: NASDAQ Tick | R44: =IFERROR(RTD("cqg.rtd",,"ContractData",AB44,"LongDescription",,"T")&" ("&RIGHT(AB44,LEN(AB44)-5)&")","") -> Dataram Corp (DRAM) | U44: =IF(R44="","",IFERROR(RTD("cqg.rtd",,"ContractData",AB44,"LastTrade",,"T"),"")) -> 1.2 | V44: =IF(R44="","",IFERROR(RTD("cqg.rtd", ,"ContractData",AB44, "NetChange",, "T"),"")) -> -0.21 | W44: =IFERROR(RTD("cqg.rtd", ,"ContractData",AB44, "PerCentNetLastTrade",, "T")/100,"") -> -0.1489361702 | X44: =IFERROR(RTD("cqg.rtd",,"StudyData",AB44, "Vol", "VolType=Exchange,CoCType=Exchange", "Vol","ADC","0","ALL",,,"TRUE","T")/ RTD("cqg.rtd",,"StudyData",AB44, "MA", "InputChoice=ContractVol,MAType=Sim,Period=21", "MA","D","-1","all",,,,"T"),"") -> 0.9686395539 | Y44: =IF(R44="","",IFERROR(RTD("cqg.rtd", ,"ContractData",AB44, "Open",, "T"),"")) -> 1.39 | Z44: =IF(R44="","",IFERROR(RTD("cqg.rtd", ,"ContractData",AB44, "High",, "T"),"")) -> 1.4 | AA44: =IF(R44="","",IFERROR(RTD("cqg.rtd", ,"ContractData",AB44, "Low",, "T"),"")) -> 1.15 | AB44: =NASDAQ!N8 -> S.US.DRAM
A45: =NYSE!N9 -> S.US.NOMD | B45: =IFERROR(RTD("cqg.rtd",,"ContractData",A45,"LongDescription",,"T")&" ("&RIGHT(A45,LEN(A45)-5)&")","") -> Nomad Holdings Ltd. (NOMD) | E45: =IF(B45="","",IFERROR(RTD("cqg.rtd",,"ContractData",A45,"LastTrade",,"T"),"")) -> 9.5 | F45: =IF(B45="","",IFERROR(RTD("cqg.rtd", ,"ContractData",A45, "NetChange",, "T"),"")) -> -0.5 | G45: =IFERROR(RTD("cqg.rtd", ,"ContractData",A45, "PerCentNetLastTrade",, "T")/100,"") -> -0.05 | H45: =IFERROR(RTD("cqg.rtd",,"StudyData",A45, "Vol", "VolType=Exchange,CoCType=Exchange", "Vol","ADC","0","ALL",,,"TRUE","T")/ RTD("cqg.rtd",,"StudyData",A45, "MA", "InputChoice=ContractVol,MAType=Sim,Period=21", "MA","D","-1","all",,,,"T"),"") -> 0.892228053 | I45: =IF(B45="","",IFERROR(RTD("cqg.rtd", ,"ContractData",A45, "Open",, "T"),"")) -> 10.1 | J45: =IF(B45="","",IFERROR(RTD("cqg.rtd", ,"ContractData",A45, "High",, "T"),"")) -> 10.12 | K45: =IF(B45="","",IFERROR(RTD("cqg.rtd",,"ContractData",A45,"Low",,"T"),"")) -> 9.49 | R45: =IFERROR(RTD("cqg.rtd",,"ContractData",AB45,"LongDescription",,"T")&" ("&RIGHT(AB45,LEN(AB45)-5)&")","") -> OptimumBank Holdings Inc (OPHC) | U45: =IF(R45="","",IFERROR(RTD("cqg.rtd",,"ContractData",AB45,"LastTrade",,"T"),"")) -> 4.27 | V45: =IF(R45="","",IFERROR(RTD("cqg.rtd", ,"ContractData",AB45, "NetChange",, "T"),"")) -> -0.04 | W45: =IFERROR(RTD("cqg.rtd", ,"ContractData",AB45, "PerCentNetLastTrade",, "T")/100,"") -> -0.1442885772 | X45: =IFERROR(RTD("cqg.rtd",,"StudyData",AB45, "Vol", "VolType=Exchange,CoCType=Exchange", "Vol","ADC","0","ALL",,,"TRUE","T")/ RTD("cqg.rtd",,"StudyData",AB45, "MA", "InputChoice=ContractVol,MAType=Sim,Period=21", "MA","D","-1","all",,,,"T"),"") -> 0.0718341657 | Y45: =IF(R45="","",IFERROR(RTD("cqg.rtd", ,"ContractData",AB45, "Open",, "T"),"")) -> 4.27 | Z45: =IF(R45="","",IFERROR(RTD("cqg.rtd", ,"ContractData",AB45, "High",, "T"),"")) -> 4.27 | AA45: =IF(R45="","",IFERROR(RTD("cqg.rtd", ,"ContractData",AB45, "Low",, "T"),"")) -> 4.27 | AB45: =NASDAQ!N9 -> S.US.OPHC
A46: =NYSE!N10 -> S.US.GWRE | B46: =IFERROR(RTD("cqg.rtd",,"ContractData",A46,"LongDescription",,"T")&" ("&RIGHT(A46,LEN(A46)-5)&")","") -> Guidewire Software, Inc. (GWRE) | E46: =IF(B46="","",IFERROR(RTD("cqg.rtd",,"ContractData",A46,"LastTrade",,"T"),"")) -> 54.69 | F46: =IF(B46="","",IFERROR(RTD("cqg.rtd", ,"ContractData",A46, "NetChange",, "T"),"")) -> -2.86 | G46: =IFERROR(RTD("cqg.rtd", ,"ContractData",A46, "PerCentNetLastTrade",, "T")/100,"") -> -0.04969591659 | H46: =IFERROR(RTD("cqg.rtd",,"StudyData",A46, "Vol", "VolType=Exchange,CoCType=Exchange", "Vol","ADC","0","ALL",,,"TRUE","T")/ RTD("cqg.rtd",,"StudyData",A46, "MA", "InputChoice=ContractVol,MAType=Sim,Period=21", "MA","D","-1","all",,,,"T"),"") -> 1.52563113 | I46: =IF(B46="","",IFERROR(RTD("cqg.rtd", ,"ContractData",A46, "Open",, "T"),"")) -> 58.86 | J46: =IF(B46="","",IFERROR(RTD("cqg.rtd", ,"ContractData",A46, "High",, "T"),"")) -> 58.96 | K46: =IF(B46="","",IFERROR(RTD("cqg.rtd",,"ContractData",A46,"Low",,"T"),"")) -> 52.97 | L46: =IFERROR(RTD("cqg.rtd", ,"ContractData","DJTIC", "LastTrade",, "T"),"") -> -69 | O46: =IFERROR(RTD("cqg.rtd", ,"ContractData","NASTIC", "LastTrade",, "T"),"") -> 96 | R46: =IFERROR(RTD("cqg.rtd",,"ContractData",AB46,"LongDescription",,"T")&" ("&RIGHT(AB46,LEN(AB46)-5)&")","") -> PAVmed Inc. (PAVM) | U46: =IF(R46="","",IFERROR(RTD("cqg.rtd",,"ContractData",AB46,"LastTrade",,"T"),"")) -> 7.45 | V46: =IF(R46="","",IFERROR(RTD("cqg.rtd", ,"ContractData",AB46, "NetChange",, "T"),"")) -> -0.2 | W46: =IFERROR(RTD("cqg.rtd", ,"ContractData",AB46, "PerCentNetLastTrade",, "T")/100,"") -> -0.1436781609 | X46: =IFERROR(RTD("cqg.rtd",,"StudyData",AB46, "Vol", "VolType=Exchange,CoCType=Exchange", "Vol","ADC","0","ALL",,,"TRUE","T")/ RTD("cqg.rtd",,"StudyData",AB46, "MA", "InputChoice=ContractVol,MAType=Sim,Period=21", "MA","D","-1","all",,,,"T"),"") -> 0.06821721524 | Y46: =IF(R46="","",IFERROR(RTD("cqg.rtd", ,"ContractData",AB46, "Open",, "T"),"")) -> 7.45 | Z46: =IF(R46="","",IFERROR(RTD("cqg.rtd", ,"ContractData",AB46, "High",, "T"),"")) -> 7.45 | AA46: =IF(R46="","",IFERROR(RTD("cqg.rtd", ,"ContractData",AB46, "Low",, "T"),"")) -> 7.45 | AB46: =NASDAQ!N10 -> S.US.PAVM
C47: Copyright © 2016 | E47: Designed by Thom Hartle | T47: To better manage performance the dashboard ranking does not update on every quote, but once every
T48: second. Click "Rank" to force an update if the percent net change column is out of order.

Sheet Symbols
E2: Requires Real-Time Data
C3: Left hand display | H3: Right hand display | L3: DJUPV | O3: DJDNV | R3: NASUPV | U3: NASDNV | X3: DJUCV | AA3: NASUCV | AD3: DJIUP | AG3: NASIUP | AJ3: DJIDN | AM3: NASIDN | AP3: DJIUC | AS3: NASIUC | AV3: DJTIC | AY3: NASTIC
C4: Symbols | D4: Description | H4: Symbols | I4: Description | K4: -10 | L4: =RTD("cqg.rtd",,"StudyData",$L$3,"Bar",,"Close","5",K4,,,,,"T") -> 51718 | N4: -10 | O4: =RTD("cqg.rtd",,"StudyData",$O$3,"Bar",,"Close","5",N4,,,,,"T") -> 19933 | Q4: -10 | R4: =RTD("cqg.rtd",,"StudyData",$R$3,"Bar",,"Close","5",Q4,,,,,"T") -> 36587 | T4: -10 | U4: =RTD("cqg.rtd",,"StudyData",$U$3,"Bar",,"Close","5",T4,,,,,"T") -> 28494 | W4: -10 | X4: =RTD("cqg.rtd",,"StudyData",$X$3,"Bar",,"Close","5",W4,,,,,"T") -> 848 | Z4: -10 | AA4: =RTD("cqg.rtd",,"StudyData",$AA$3,"Bar",,"Close","5",Z4,,,,,"T") -> 13786 | AC4: -10 | AD4: =RTD("cqg.rtd",,"StudyData",$AD$3,"Bar",,"Close","5",AC4,,,,,"T") -> 1583 | AF4: -10 | AG4: =RTD("cqg.rtd",,"StudyData",$AG$3,"Bar",,"Close","5",AF4,,,,,"T") -> 1456 | AI4: -10 | AJ4: =RTD("cqg.rtd",,"StudyData",$AJ$3,"Bar",,"Close","5",AI4,,,,,"T") -> 1132 | AL4: -10 | AM4: =RTD("cqg.rtd",,"StudyData",$AM$3,"Bar",,"Close","5",AL4,,,,,"T") -> 774 | AO4: -10 | AP4: =RTD("cqg.rtd",,"StudyData",$AP$3,"Bar",,"Close","5",AO4,,,,,"T") -> 107 | AR4: -10 | AS4: =RTD("cqg.rtd",,"StudyData",$AS$3,"Bar",,"Close","5",AR4,,,,,"T") -> 209 | AU4: -10 | AV4: =RTD("cqg.rtd",,"StudyData",$AV$3,"Bar",,"Close","5",AU4,,,,,"T") -> -64 | AX4: -10 | AY4: =RTD("cqg.rtd",,"StudyData",$AY$3,"Bar",,"Close","5",AX4,,,,,"T") -> 242
C5: X.US.SPC | D5: =RTD("cqg.rtd", ,"ContractData",C5, "LongDescription",, "T") -> S&P 500 | H5: X.US.NQCOMP | I5: =RTD("cqg.rtd", ,"ContractData",H5, "LongDescription",, "T") -> NASDAQ Composite Index | K5: =K4+1 -> -9 | L5: =RTD("cqg.rtd",,"StudyData",$L$3,"Bar",,"Close","5",K5,,,,,"T") -> 70853 | N5: =N4+1 -> -9 | O5: =RTD("cqg.rtd",,"StudyData",$O$3,"Bar",,"Close","5",N5,,,,,"T") -> 24655 | Q5: =Q4+1 -> -9 | R5: =RTD("cqg.rtd",,"StudyData",$R$3,"Bar",,"Close","5",Q5,,,,,"T") -> 57673 | T5: =T4+1 -> -9 | U5: =RTD("cqg.rtd",,"StudyData",$U$3,"Bar",,"Close","5",T5,,,,,"T") -> 40912 | W5: =W4+1 -> -9 | X5: =RTD("cqg.rtd",,"StudyData",$X$3,"Bar",,"Close","5",W5,,,,,"T") -> 1559 | Z5: =Z4+1 -> -9 | AA5: =RTD("cqg.rtd",,"StudyData",$AA$3,"Bar",,"Close","5",Z5,,,,,"T") -> 23738 | AC5: =AC4+1 -> -9 | AD5: =RTD("cqg.rtd",,"StudyData",$AD$3,"Bar",,"Close","5",AC5,,,,,"T") -> 1561 | AF5: =AF4+1 -> -9 | AG5: =RTD("cqg.rtd",,"StudyData",$AG$3,"Bar",,"Close","5",AF5,,,,,"T") -> 1403 | AI5: =AI4+1 -> -9 | AJ5: =RTD("cqg.rtd",,"StudyData",$AJ$3,"Bar",,"Close","5",AI5,,,,,"T") -> 1185 | AL5: =AL4+1 -> -9 | AM5: =RTD("cqg.rtd",,"StudyData",$AM$3,"Bar",,"Close","5",AL5,,,,,"T") -> 885 | AO5: =AO4+1 -> -9 | AP5: =RTD("cqg.rtd",,"StudyData",$AP$3,"Bar",,"Close","5",AO5,,,,,"T") -> 111 | AR5: =AR4+1 -> -9 | AS5: =RTD("cqg.rtd",,"StudyData",$AS$3,"Bar",,"Close","5",AR5,,,,,"T") -> 200 | AU5: =AU4+1 -> -9 | AV5: =RTD("cqg.rtd",,"StudyData",$AV$3,"Bar",,"Close","5",AU5,,,,,"T") -> -118 | AX5: =AX4+1 -> -9 | AY5: =RTD("cqg.rtd",,"StudyData",$AY$3,"Bar",,"Close","5",AX5,,,,,"T") -> 182
C6: X.US.DJI | D6: =RTD("cqg.rtd", ,"ContractData",C6, "LongDescription",, "T") -> DJ Industrial Average | H6: X.US.NDX | I6: =RTD("cqg.rtd", ,"ContractData",H6, "LongDescription",, "T") -> NASDAQ-100 Index | K6: =K5+1 -> -8 | L6: =RTD("cqg.rtd",,"StudyData",$L$3,"Bar",,"Close","5",K6,,,,,"T") -> 82583 | N6: =N5+1 -> -8 | O6: =RTD("cqg.rtd",,"StudyData",$O$3,"Bar",,"Close","5",N6,,,,,"T") -> 30634 | Q6: =Q5+1 -> -8 | R6: =RTD("cqg.rtd",,"StudyData",$R$3,"Bar",,"Close","5",Q6,,,,,"T") -> 73020 | T6: =T5+1 -> -8 | U6: =RTD("cqg.rtd",,"StudyData",$U$3,"Bar",,"Close","5",T6,,,,,"T") -> 55397 | W6: =W5+1 -> -8 | X6: =RTD("cqg.rtd",,"StudyData",$X$3,"Bar",,"Close","5",W6,,,,,"T") -> 794 | Z6: =Z5+1 -> -8 | AA6: =RTD("cqg.rtd",,"StudyData",$AA$3,"Bar",,"Close","5",Z6,,,,,"T") -> 24862 | AC6: =AC5+1 -> -8 | AD6: =RTD("cqg.rtd",,"StudyData",$AD$3,"Bar",,"Close","5",AC6,,,,,"T") -> 1528 | AF6: =AF5+1 -> -8 | AG6: =RTD("cqg.rtd",,"StudyData",$AG$3,"Bar",,"Close","5",AF6,,,,,"T") -> 1350 | AI6: =AI5+1 -> -8 | AJ6: =RTD("cqg.rtd",,"StudyData",$AJ$3,"Bar",,"Close","5",AI6,,,,,"T") -> 1261 | AL6: =AL5+1 -> -8 | AM6: =RTD("cqg.rtd",,"StudyData",$AM$3,"Bar",,"Close","5",AL6,,,,,"T") -> 972 | AO6: =AO5+1 -> -8 | AP6: =RTD("cqg.rtd",,"StudyData",$AP$3,"Bar",,"Close","5",AO6,,,,,"T") -> 100 | AR6: =AR5+1 -> -8 | AS6: =RTD("cqg.rtd",,"StudyData",$AS$3,"Bar",,"Close","5",AR6,,,,,"T") -> 204 | AU6: =AU5+1 -> -8 | AV6: =RTD("cqg.rtd",,"StudyData",$AV$3,"Bar",,"Close","5",AU6,,,,,"T") -> -229 | AX6: =AX5+1 -> -8 | AY6: =RTD("cqg.rtd",,"StudyData",$AY$3,"Bar",,"Close","5",AX6,,,,,"T") -> 89
C7: X.US.NYK | D7: =RTD("cqg.rtd", ,"ContractData",C7, "LongDescription",, "T") -> NYSE Financial Index | H7: X.US.IXF | I7: =RTD("cqg.rtd", ,"ContractData",H7, "LongDescription",, "T") -> NASDAQ Financial 100 | K7: -7 | L7: =RTD("cqg.rtd",,"StudyData",$L$3,"Bar",,"Close","5",K7,,,,,"T") -> 96330 | N7: -7 | O7: =RTD("cqg.rtd",,"StudyData",$O$3,"Bar",,"Close","5",N7,,,,,"T") -> 34822 | Q7: -7 | R7: =RTD("cqg.rtd",,"StudyData",$R$3,"Bar",,"Close","5",Q7,,,,,"T") -> 89043 | T7: -7 | U7: =RTD("cqg.rtd",,"StudyData",$U$3,"Bar",,"Close","5",T7,,,,,"T") -> 71436 | W7: -7 | X7: =RTD("cqg.rtd",,"StudyData",$X$3,"Bar",,"Close","5",W7,,,,,"T") -> 987 | Z7: -7 | AA7: =RTD("cqg.rtd",,"StudyData",$AA$3,"Bar",,"Close","5",Z7,,,,,"T") -> 25206 | AC7: -7 | AD7: =RTD("cqg.rtd",,"StudyData",$AD$3,"Bar",,"Close","5",AC7,,,,,"T") -> 1494 | AF7: -7 | AG7: =RTD("cqg.rtd",,"StudyData",$AG$3,"Bar",,"Close","5",AF7,,,,,"T") -> 1318 | AI7: -7 | AJ7: =RTD("cqg.rtd",,"StudyData",$AJ$3,"Bar",,"Close","5",AI7,,,,,"T") -> 1315 | AL7: -7 | AM7: =RTD("cqg.rtd",,"StudyData",$AM$3,"Bar",,"Close","5",AL7,,,,,"T") -> 1061 | AO7: -7 | AP7: =RTD("cqg.rtd",,"StudyData",$AP$3,"Bar",,"Close","5",AO7,,,,,"T") -> 95 | AR7: -7 | AS7: =RTD("cqg.rtd",,"StudyData",$AS$3,"Bar",,"Close","5",AR7,,,,,"T") -> 192 | AU7: -7 | AV7: =RTD("cqg.rtd",,"StudyData",$AV$3,"Bar",,"Close","5",AU7,,,,,"T") -> -227 | AX7: -7 | AY7: =RTD("cqg.rtd",,"StudyData",$AY$3,"Bar",,"Close","5",AX7,,,,,"T") -> 7
C8: X.US.BTK | D8: =RTD("cqg.rtd", ,"ContractData",C8, "LongDescription",, "T") -> Biotechnology Index | H8: X.US.NBI | I8: =RTD("cqg.rtd", ,"ContractData",H8, "LongDescription",, "T") -> NASDAQ Biotechnology | K8: -6 | L8: =RTD("cqg.rtd",,"StudyData",$L$3,"Bar",,"Close","5",K8,,,,,"T") -> 103001 | N8: -6 | O8: =RTD("cqg.rtd",,"StudyData",$O$3,"Bar",,"Close","5",N8,,,,,"T") -> 44043 | Q8: -6 | R8: =RTD("cqg.rtd",,"StudyData",$R$3,"Bar",,"Close","5",Q8,,,,,"T") -> 101813 | T8: -6 | U8: =RTD("cqg.rtd",,"StudyData",$U$3,"Bar",,"Close","5",T8,,,,,"T") -> 89064 | W8: -6 | X8: =RTD("cqg.rtd",,"StudyData",$X$3,"Bar",,"Close","5",W8,,,,,"T") -> 1696 | Z8: -6 | AA8: =RTD("cqg.rtd",,"StudyData",$AA$3,"Bar",,"Close","5",Z8,,,,,"T") -> 21803 | AC8: -6 | AD8: =RTD("cqg.rtd",,"StudyData",$AD$3,"Bar",,"Close","5",AC8,,,,,"T") -> 1356 | AF8: -6 | AG8: =RTD("cqg.rtd",,"StudyData",$AG$3,"Bar",,"Close","5",AF8,,,,,"T") -> 1255 | AI8: -6 | AJ8: =RTD("cqg.rtd",,"StudyData",$AJ$3,"Bar",,"Close","5",AI8,,,,,"T") -> 1467 | AL8: -6 | AM8: =RTD("cqg.rtd",,"StudyData",$AM$3,"Bar",,"Close","5",AL8,,,,,"T") -> 1178 | AO8: -6 | AP8: =RTD("cqg.rtd",,"StudyData",$AP$3,"Bar",,"Close","5",AO8,,,,,"T") -> 106 | AR8: -6 | AS8: =RTD("cqg.rtd",,"StudyData",$AS$3,"Bar",,"Close","5",AR8,,,,,"T") -> 163 | AU8: -6 | AV8: =RTD("cqg.rtd",,"StudyData",$AV$3,"Bar",,"Close","5",AU8,,,,,"T") -> -383 | AX8: -6 | AY8: =RTD("cqg.rtd",,"StudyData",$AY$3,"Bar",,"Close","5",AX8,,,,,"T") -> -16
C9: X.US.NYPID | D9: =RTD("cqg.rtd", ,"ContractData",C9, "LongDescription",, "T") -> NYSE Healthcare Index | H9: X.US.NHC | I9: =RTD("cqg.rtd", ,"ContractData",H9, "LongDescription",, "T") -> Nasdaq Health Care Index | K9: -5 | L9: =RTD("cqg.rtd",,"StudyData",$L$3,"Bar",,"Close","5",K9,,,,,"T") -> 114345 | N9: -5 | O9: =RTD("cqg.rtd",,"StudyData",$O$3,"Bar",,"Close","5",N9,,,,,"T") -> 48630 | Q9: -5 | R9: =RTD("cqg.rtd",,"StudyData",$R$3,"Bar",,"Close","5",Q9,,,,,"T") -> 114434 | T9: -5 | U9: =RTD("cqg.rtd",,"StudyData",$U$3,"Bar",,"Close","5",T9,,,,,"T") -> 101008 | W9: -5 | X9: =RTD("cqg.rtd",,"StudyData",$X$3,"Bar",,"Close","5",W9,,,,,"T") -> 1132 | Z9: -5 | AA9: =RTD("cqg.rtd",,"StudyData",$AA$3,"Bar",,"Close","5",Z9,,,,,"T") -> 29905 | AC9: -5 | AD9: =RTD("cqg.rtd",,"StudyData",$AD$3,"Bar",,"Close","5",AC9,,,,,"T") -> 1392 | AF9: -5 | AG9: =RTD("cqg.rtd",,"StudyData",$AG$3,"Bar",,"Close","5",AF9,,,,,"T") -> 1346 | AI9: -5 | AJ9: =RTD("cqg.rtd",,"StudyData",$AJ$3,"Bar",,"Close","5",AI9,,,,,"T") -> 1466 | AL9: -5 | AM9: =RTD("cqg.rtd",,"StudyData",$AM$3,"Bar",,"Close","5",AL9,,,,,"T") -> 1112 | AO9: -5 | AP9: =RTD("cqg.rtd",,"StudyData",$AP$3,"Bar",,"Close","5",AO9,,,,,"T") -> 80 | AR9: -5 | AS9: =RTD("cqg.rtd",,"StudyData",$AS$3,"Bar",,"Close","5",AR9,,,,,"T") -> 164 | AU9: -5 | AV9: =RTD("cqg.rtd",,"StudyData",$AV$3,"Bar",,"Close","5",AU9,,,,,"T") -> 129 | AX9: -5 | AY9: =RTD("cqg.rtd",,"StudyData",$AY$3,"Bar",,"Close","5",AX9,,,,,"T") -> 159
C10: X.US.IXE | D10: =RTD("cqg.rtd", ,"ContractData",C10, "LongDescription",, "T") -> S&P 500 Select Sector Energy Index | H10: X.US.OSX | I10: =RTD("cqg.rtd", ,"ContractData",H10, "LongDescription",, "T") -> PHLX Oil Service Sector | K10: -4 | L10: =RTD("cqg.rtd",,"StudyData",$L$3,"Bar",,"Close","5",K10,,,,,"T") -> 124113 | N10: -4 | O10: =RTD("cqg.rtd",,"StudyData",$O$3,"Bar",,"Close","5",N10,,,,,"T") -> 53487 | Q10: -4 | R10: =RTD("cqg.rtd",,"StudyData",$R$3,"Bar",,"Close","5",Q10,,,,,"T") -> 126858 | T10: -4 | U10: =RTD("cqg.rtd",,"StudyData",$U$3,"Bar",,"Close","5",T10,,,,,"T") -> 113678 | W10: -4 | X10: =RTD("cqg.rtd",,"StudyData",$X$3,"Bar",,"Close","5",W10,,,,,"T") -> 1590 | Z10: -4 | AA10: =RTD("cqg.rtd",,"StudyData",$AA$3,"Bar",,"Close","5",Z10,,,,,"T") -> 48628 | AC10: -4 | AD10: =RTD("cqg.rtd",,"StudyData",$AD$3,"Bar",,"Close","5",AC10,,,,,"T") -> 1464 | AF10: -4 | AG10: =RTD("cqg.rtd",,"StudyData",$AG$3,"Bar",,"Close","5",AF10,,,,,"T") -> 1475 | AI10: -4 | AJ10: =RTD("cqg.rtd",,"StudyData",$AJ$3,"Bar",,"Close","5",AI10,,,,,"T") -> 1406 | AL10: -4 | AM10: =RTD("cqg.rtd",,"StudyData",$AM$3,"Bar",,"Close","5",AL10,,,,,"T") -> 1014 | AO10: -4 | AP10: =RTD("cqg.rtd",,"StudyData",$AP$3,"Bar",,"Close","5",AO10,,,,,"T") -> 75 | AR10: -4 | AS10: =RTD("cqg.rtd",,"StudyData",$AS$3,"Bar",,"Close","5",AR10,,,,,"T") -> 149 | AU10: -4 | AV10: =RTD("cqg.rtd",,"StudyData",$AV$3,"Bar",,"Close","5",AU10,,,,,"T") -> 48 | AX10: -4 | AY10: =RTD("cqg.rtd",,"StudyData",$AY$3,"Bar",,"Close","5",AX10,,,,,"T") -> 233
C11: S.US.BAC | D11: =RTD("cqg.rtd", ,"ContractData",C11, "LongDescription",, "T") -> Bank of America Corp | H11: S.US.SIRI | I11: =RTD("cqg.rtd", ,"ContractData",H11, "LongDescription",, "T") -> Sirius XM Holdings Inc. | K11: -3 | L11: =RTD("cqg.rtd",,"StudyData",$L$3,"Bar",,"Close","5",K11,,,,,"T") -> 139045 | N11: -3 | O11: =RTD("cqg.rtd",,"StudyData",$O$3,"Bar",,"Close","5",N11,,,,,"T") -> 54618 | Q11: -3 | R11: =RTD("cqg.rtd",,"StudyData",$R$3,"Bar",,"Close","5",Q11,,,,,"T") -> 147258 | T11: -3 | U11: =RTD("cqg.rtd",,"StudyData",$U$3,"Bar",,"Close","5",T11,,,,,"T") -> 116529 | W11: -3 | X11: =RTD("cqg.rtd",,"StudyData",$X$3,"Bar",,"Close","5",W11,,,,,"T") -> 796 | Z11: -3 | AA11: =RTD("cqg.rtd",,"StudyData",$AA$3,"Bar",,"Close","5",Z11,,,,,"T") -> 104810 | AC11: -3 | AD11: =RTD("cqg.rtd",,"StudyData",$AD$3,"Bar",,"Close","5",AC11,,,,,"T") -> 1529 | AF11: -3 | AG11: =RTD("cqg.rtd",,"StudyData",$AG$3,"Bar",,"Close","5",AF11,,,,,"T") -> 1574 | AI11: -3 | AJ11: =RTD("cqg.rtd",,"StudyData",$AJ$3,"Bar",,"Close","5",AI11,,,,,"T") -> 1358 | AL11: -3 | AM11: =RTD("cqg.rtd",,"StudyData",$AM$3,"Bar",,"Close","5",AL11,,,,,"T") -> 930 | AO11: -3 | AP11: =RTD("cqg.rtd",,"StudyData",$AP$3,"Bar",,"Close","5",AO11,,,,,"T") -> 63 | AR11: -3 | AS11: =RTD("cqg.rtd",,"StudyData",$AS$3,"Bar",,"Close","5",AR11,,,,,"T") -> 155 | AU11: -3 | AV11: =RTD("cqg.rtd",,"StudyData",$AV$3,"Bar",,"Close","5",AU11,,,,,"T") -> 277 | AX11: -3 | AY11: =RTD("cqg.rtd",,"StudyData",$AY$3,"Bar",,"Close","5",AX11,,,,,"T") -> 234
C12: S.US.GE | D12: =RTD("cqg.rtd", ,"ContractData",C12, "LongDescription",, "T") -> General Electric Co | H12: S.US.AAPL | I12: =RTD("cqg.rtd", ,"ContractData",H12, "LongDescription",, "T") -> Apple Inc | K12: -2 | L12: =RTD("cqg.rtd",,"StudyData",$L$3,"Bar",,"Close","5",K12,,,,,"T") -> 146521 | N12: -2 | O12: =RTD("cqg.rtd",,"StudyData",$O$3,"Bar",,"Close","5",N12,,,,,"T") -> 59427 | Q12: -2 | R12: =RTD("cqg.rtd",,"StudyData",$R$3,"Bar",,"Close","5",Q12,,,,,"T") -> 157552 | T12: -2 | U12: =RTD("cqg.rtd",,"StudyData",$U$3,"Bar",,"Close","5",T12,,,,,"T") -> 139109 | W12: -2 | X12: =RTD("cqg.rtd",,"StudyData",$X$3,"Bar",,"Close","5",W12,,,,,"T") -> 1465 | Z12: -2 | AA12: =RTD("cqg.rtd",,"StudyData",$AA$3,"Bar",,"Close","5",Z12,,,,,"T") -> 27018 | AC12: -2 | AD12: =RTD("cqg.rtd",,"StudyData",$AD$3,"Bar",,"Close","5",AC12,,,,,"T") -> 1490 | AF12: -2 | AG12: =RTD("cqg.rtd",,"StudyData",$AG$3,"Bar",,"Close","5",AF12,,,,,"T") -> 1526 | AI12: -2 | AJ12: =RTD("cqg.rtd",,"StudyData",$AJ$3,"Bar",,"Close","5",AI12,,,,,"T") -> 1406 | AL12: -2 | AM12: =RTD("cqg.rtd",,"StudyData",$AM$3,"Bar",,"Close","5",AL12,,,,,"T") -> 1003 | AO12: -2 | AP12: =RTD("cqg.rtd",,"StudyData",$AP$3,"Bar",,"Close","5",AO12,,,,,"T") -> 62 | AR12: -2 | AS12: =RTD("cqg.rtd",,"StudyData",$AS$3,"Bar",,"Close","5",AR12,,,,,"T") -> 146 | AU12: -2 | AV12: =RTD("cqg.rtd",,"StudyData",$AV$3,"Bar",,"Close","5",AU12,,,,,"T") -> 69 | AX12: -2 | AY12: =RTD("cqg.rtd",,"StudyData",$AY$3,"Bar",,"Close","5",AX12,,,,,"T") -> 174
C13: S.US.SPY | D13: =RTD("cqg.rtd", ,"ContractData",C13, "LongDescription",, "T") -> SPDR S&P 500 | H13: S.US.TSLA | I13: =RTD("cqg.rtd", ,"ContractData",H13, "LongDescription",, "T") -> Tesla Motors, Inc. | K13: -1 | L13: =RTD("cqg.rtd",,"StudyData",$L$3,"Bar",,"Close","5",K13,,,,,"T") -> 152360 | N13: -1 | O13: =RTD("cqg.rtd",,"StudyData",$O$3,"Bar",,"Close","5",N13,,,,,"T") -> 66713 | Q13: -1 | R13: =RTD("cqg.rtd",,"StudyData",$R$3,"Bar",,"Close","5",Q13,,,,,"T") -> 150680 | T13: -1 | U13: =RTD("cqg.rtd",,"StudyData",$U$3,"Bar",,"Close","5",T13,,,,,"T") -> 167493 | W13: -1 | X13: =RTD("cqg.rtd",,"StudyData",$X$3,"Bar",,"Close","5",W13,,,,,"T") -> 699 | Z13: -1 | AA13: =RTD("cqg.rtd",,"StudyData",$AA$3,"Bar",,"Close","5",Z13,,,,,"T") -> 42949 | AC13: -1 | AD13: =RTD("cqg.rtd",,"StudyData",$AD$3,"Bar",,"Close","5",AC13,,,,,"T") -> 1457 | AF13: -1 | AG13: =RTD("cqg.rtd",,"StudyData",$AG$3,"Bar",,"Close","5",AF13,,,,,"T") -> 1468 | AI13: -1 | AJ13: =RTD("cqg.rtd",,"StudyData",$AJ$3,"Bar",,"Close","5",AI13,,,,,"T") -> 1448 | AL13: -1 | AM13: =RTD("cqg.rtd",,"StudyData",$AM$3,"Bar",,"Close","5",AL13,,,,,"T") -> 1066 | AO13: -1 | AP13: =RTD("cqg.rtd",,"StudyData",$AP$3,"Bar",,"Close","5",AO13,,,,,"T") -> 61 | AR13: -1 | AS13: =RTD("cqg.rtd",,"StudyData",$AS$3,"Bar",,"Close","5",AR13,,,,,"T") -> 157 | AU13: -1 | AV13: =RTD("cqg.rtd",,"StudyData",$AV$3,"Bar",,"Close","5",AU13,,,,,"T") -> -70 | AX13: -1 | AY13: =RTD("cqg.rtd",,"StudyData",$AY$3,"Bar",,"Close","5",AX13,,,,,"T") -> 106
C14: F.US.EP | D14: =RTD("cqg.rtd", ,"ContractData",C14, "LongDescription",, "T") -> E-Mini S&P 500, Dec 16 | H14: S.US.MU | I14: =RTD("cqg.rtd", ,"ContractData",H14, "LongDescription",, "T") -> Micron Technology Inc | K14: =K13+1 -> 0 | L14: =RTD("cqg.rtd",,"StudyData",$L$3,"Bar",,"Close","5",K14,,,,,"T") -> 149777 | N14: 0 | O14: =RTD("cqg.rtd",,"StudyData",$O$3,"Bar",,"Close","5",N14,,,,,"T") -> 69904 | Q14: 0 | R14: =RTD("cqg.rtd",,"StudyData",$R$3,"Bar",,"Close","5",Q14,,,,,"T") -> 149922 | T14: 0 | U14: =RTD("cqg.rtd",,"StudyData",$U$3,"Bar",,"Close","5",T14,,,,,"T") -> 164320 | W14: 0 | X14: =RTD("cqg.rtd",,"StudyData",$X$3,"Bar",,"Close","5",W14,,,,,"T") -> 1120 | Z14: 0 | AA14: =RTD("cqg.rtd",,"StudyData",$AA$3,"Bar",,"Close","5",Z14,,,,,"T") -> 103852 | AC14: 0 | AD14: =RTD("cqg.rtd",,"StudyData",$AD$3,"Bar",,"Close","5",AC14,,,,,"T") -> 1446 | AF14: 0 | AG14: =RTD("cqg.rtd",,"StudyData",$AG$3,"Bar",,"Close","5",AF14,,,,,"T") -> 1460 | AI14: 0 | AJ14: =RTD("cqg.rtd",,"StudyData",$AJ$3,"Bar",,"Close","5",AI14,,,,,"T") -> 1455 | AL14: 0 | AM14: =RTD("cqg.rtd",,"StudyData",$AM$3,"Bar",,"Close","5",AL14,,,,,"T") -> 1069 | AO14: 0 | AP14: =RTD("cqg.rtd",,"StudyData",$AP$3,"Bar",,"Close","5",AO14,,,,,"T") -> 66 | AR14: 0 | AS14: =RTD("cqg.rtd",,"StudyData",$AS$3,"Bar",,"Close","5",AR14,,,,,"T") -> 164 | AU14: 0 | AV14: =RTD("cqg.rtd",,"StudyData",$AV$3,"Bar",,"Close","5",AU14,,,,,"T") -> -69 | AX14: 0 | AY14: =RTD("cqg.rtd",,"StudyData",$AY$3,"Bar",,"Close","5",AX14,,,,,"T") -> 96
C15: F.US.CLE | D15: =RTD("cqg.rtd", ,"ContractData",C15, "LongDescription",, "T") -> Crude Light (Globex), Jan 17 | H15: S.US.QQQ | I15: =RTD("cqg.rtd", ,"ContractData",H15, "LongDescription",, "T") -> Powershares QQQ Trust
C16: F.US.HOE | D16: =RTD("cqg.rtd", ,"ContractData",C16, "LongDescription",, "T") -> NY Harbor ULSD, Jan 17 | H16: S.US.CSCO | I16: =RTD("cqg.rtd", ,"ContractData",H16, "LongDescription",, "T") -> Cisco Systems Inc
C17: F.US.RBE | D17: =RTD("cqg.rtd", ,"ContractData",C17, "LongDescription",, "T") -> RBOB Gasoline (Globex), Jan 17 | H17: S.US.FB | I17: =RTD("cqg.rtd", ,"ContractData",H17, "LongDescription",, "T") -> Facebook, Inc. | K17: -24 | L17: =RTD("cqg.rtd",,"StudyData",$C$5,"Bar",,"Time","5",K17,,,,,"T") -> 42703.58681 | M17: =RTD("cqg.rtd",,"StudyData",$C$5,"Bar",,"Open","5",K17,,,,,"T") -> 2206.92 | N17: =RTD("cqg.rtd",,"StudyData",$C$5,"Bar",,"High","5",K17,,,,,"T") -> 2207.33 | O17: =RTD("cqg.rtd",,"StudyData",$C$5,"Bar",,"Low","5",K17,,,,,"T") -> 2206.19 | P17: =RTD("cqg.rtd",,"StudyData",$C$5,"Bar",,"Close","5",K17,,,,,"T") -> 2206.21 | R17: -24 | S17: =RTD("cqg.rtd",,"StudyData",$H$5,"Bar",,"Time","5",R17,,,,,"T") -> 42703.57639 | T17: =RTD("cqg.rtd",,"StudyData",$H$5,"Bar",,"Open","5",R17,,,,,"T") -> 5401.6 | U17: =RTD("cqg.rtd",,"StudyData",$H$5,"Bar",,"High","5",R17,,,,,"T") -> 5401.82 | V17: =RTD("cqg.rtd",,"StudyData",$H$5,"Bar",,"Low","5",R17,,,,,"T") -> 5398.69 | W17: =RTD("cqg.rtd",,"StudyData",$H$5,"Bar",,"Close","5",R17,,,,,"T") -> 5398.82
C18: F.US.GCE | D18: =RTD("cqg.rtd", ,"ContractData",C18, "LongDescription",, "T") -> Gold (Globex), Feb 17 | H18: S.US.TLT | I18: =RTD("cqg.rtd", ,"ContractData",H18, "LongDescription",, "T") -> iShares 20+ Year Treasury Bond ETF | K18: =K17+1 -> -23 | L18: =RTD("cqg.rtd",,"StudyData",$C$5,"Bar",,"Time","5",K18,,,,,"T") -> 42703.59028 | M18: =RTD("cqg.rtd",,"StudyData",$C$5,"Bar",,"Open","5",K18,,,,,"T") -> 2206.19 | N18: =RTD("cqg.rtd",,"StudyData",$C$5,"Bar",,"High","5",K18,,,,,"T") -> 2206.28 | O18: =RTD("cqg.rtd",,"StudyData",$C$5,"Bar",,"Low","5",K18,,,,,"T") -> 2205.78 | P18: =RTD("cqg.rtd",,"StudyData",$C$5,"Bar",,"Close","5",K18,,,,,"T") -> 2205.98 | R18: =R17+1 -> -23 | S18: =RTD("cqg.rtd",,"StudyData",$H$5,"Bar",,"Time","5",R18,,,,,"T") -> 42703.57986 | T18: =RTD("cqg.rtd",,"StudyData",$H$5,"Bar",,"Open","5",R18,,,,,"T") -> 5398.68 | U18: =RTD("cqg.rtd",,"StudyData",$H$5,"Bar",,"High","5",R18,,,,,"T") -> 5398.68 | V18: =RTD("cqg.rtd",,"StudyData",$H$5,"Bar",,"Low","5",R18,,,,,"T") -> 5395.81 | W18: =RTD("cqg.rtd",,"StudyData",$H$5,"Bar",,"Close","5",R18,,,,,"T") -> 5395.81
C19: F.US.DD | D19: =RTD("cqg.rtd", ,"ContractData",C19, "LongDescription",, "T") -> DAX Index, Dec 16 | H19: S.US.INTC | I19: =RTD("cqg.rtd", ,"ContractData",H19, "LongDescription",, "T") -> Intel Corporation | K19: =K18+1 -> -22 | L19: =RTD("cqg.rtd",,"StudyData",$C$5,"Bar",,"Time","5",K19,,,,,"T") -> 42703.59375 | M19: =RTD("cqg.rtd",,"StudyData",$C$5,"Bar",,"Open","5",K19,,,,,"T") -> 2205.97 | N19: =RTD("cqg.rtd",,"StudyData",$C$5,"Bar",,"High","5",K19,,,,,"T") -> 2206.27 | O19: =RTD("cqg.rtd",,"StudyData",$C$5,"Bar",,"Low","5",K19,,,,,"T") -> 2205.04 | P19: =RTD("cqg.rtd",,"StudyData",$C$5,"Bar",,"Close","5",K19,,,,,"T") -> 2205.19 | R19: =R18+1 -> -22 | S19: =RTD("cqg.rtd",,"StudyData",$H$5,"Bar",,"Time","5",R19,,,,,"T") -> 42703.58333 | T19: =RTD("cqg.rtd",,"StudyData",$H$5,"Bar",,"Open","5",R19,,,,,"T") -> 5395.81 | U19: =RTD("cqg.rtd",,"StudyData",$H$5,"Bar",,"High","5",R19,,,,,"T") -> 5395.89 | V19: =RTD("cqg.rtd",,"StudyData",$H$5,"Bar",,"Low","5",R19,,,,,"T") -> 5389.79 | W19: =RTD("cqg.rtd",,"StudyData",$H$5,"Bar",,"Close","5",R19,,,,,"T") -> 5389.79
C20: F.US.DSX | D20: =RTD("cqg.rtd", ,"ContractData",C20, "LongDescription",, "T") -> Euro STOXX 50, Dec 16 | H20: S.US.QCOM | I20: =RTD("cqg.rtd", ,"ContractData",H20, "LongDescription",, "T") -> QUALCOMM Inc | K20: -21 | L20: =RTD("cqg.rtd",,"StudyData",$C$5,"Bar",,"Time","5",K20,,,,,"T") -> 42703.59722 | M20: =RTD("cqg.rtd",,"StudyData",$C$5,"Bar",,"Open","5",K20,,,,,"T") -> 2205.19 | N20: =RTD("cqg.rtd",,"StudyData",$C$5,"Bar",,"High","5",K20,,,,,"T") -> 2206.1 | O20: =RTD("cqg.rtd",,"StudyData",$C$5,"Bar",,"Low","5",K20,,,,,"T") -> 2204.89 | P20: =RTD("cqg.rtd",,"StudyData",$C$5,"Bar",,"Close","5",K20,,,,,"T") -> 2205.79 | R20: -21 | S20: =RTD("cqg.rtd",,"StudyData",$H$5,"Bar",,"Time","5",R20,,,,,"T") -> 42703.58681 | T20: =RTD("cqg.rtd",,"StudyData",$H$5,"Bar",,"Open","5",R20,,,,,"T") -> 5389.79 | U20: =RTD("cqg.rtd",,"StudyData",$H$5,"Bar",,"High","5",R20,,,,,"T") -> 5390.94 | V20: =RTD("cqg.rtd",,"StudyData",$H$5,"Bar",,"Low","5",R20,,,,,"T") -> 5387.88 | W20: =RTD("cqg.rtd",,"StudyData",$H$5,"Bar",,"Close","5",R20,,,,,"T") -> 5388.46
C21: F.US.TYA | D21: =RTD("cqg.rtd", ,"ContractData",C21, "LongDescription",, "T") -> 10yr US Treasury Notes (Globex), Mar 17 | H21: S.US.AAL | I21: =RTD("cqg.rtd", ,"ContractData",H21, "LongDescription",, "T") -> American Airlines Group Inc. | K21: -20 | L21: =RTD("cqg.rtd",,"StudyData",$C$5,"Bar",,"Time","5",K21,,,,,"T") -> 42703.60069 | M21: =RTD("cqg.rtd",,"StudyData",$C$5,"Bar",,"Open","5",K21,,,,,"T") -> 2205.8 | N21: =RTD("cqg.rtd",,"StudyData",$C$5,"Bar",,"High","5",K21,,,,,"T") -> 2205.87 | O21: =RTD("cqg.rtd",,"StudyData",$C$5,"Bar",,"Low","5",K21,,,,,"T") -> 2205.48 | P21: =RTD("cqg.rtd",,"StudyData",$C$5,"Bar",,"Close","5",K21,,,,,"T") -> 2205.59 | R21: -20 | S21: =RTD("cqg.rtd",,"StudyData",$H$5,"Bar",,"Time","5",R21,,,,,"T") -> 42703.59028 | T21: =RTD("cqg.rtd",,"StudyData",$H$5,"Bar",,"Open","5",R21,,,,,"T") -> 5388.37 | U21: =RTD("cqg.rtd",,"StudyData",$H$5,"Bar",,"High","5",R21,,,,,"T") -> 5388.37 | V21: =RTD("cqg.rtd",,"StudyData",$H$5,"Bar",,"Low","5",R21,,,,,"T") -> 5386.23 | W21: =RTD("cqg.rtd",,"StudyData",$H$5,"Bar",,"Close","5",R21,,,,,"T") -> 5387.01
K22: -19 | L22: =RTD("cqg.rtd",,"StudyData",$C$5,"Bar",,"Time","5",K22,,,,,"T") -> 42703.60417 | M22: =RTD("cqg.rtd",,"StudyData",$C$5,"Bar",,"Open","5",K22,,,,,"T") -> 2205.59 | N22: =RTD("cqg.rtd",,"StudyData",$C$5,"Bar",,"High","5",K22,,,,,"T") -> 2205.62 | O22: =RTD("cqg.rtd",,"StudyData",$C$5,"Bar",,"Low","5",K22,,,,,"T") -> 2204.37 | P22: =RTD("cqg.rtd",,"StudyData",$C$5,"Bar",,"Close","5",K22,,,,,"T") -> 2205.2 | R22: -19 | S22: =RTD("cqg.rtd",,"StudyData",$H$5,"Bar",,"Time","5",R22,,,,,"T") -> 42703.59375 | T22: =RTD("cqg.rtd",,"StudyData",$H$5,"Bar",,"Open","5",R22,,,,,"T") -> 5387.01 | U22: =RTD("cqg.rtd",,"StudyData",$H$5,"Bar",,"High","5",R22,,,,,"T") -> 5387.62 | V22: =RTD("cqg.rtd",,"StudyData",$H$5,"Bar",,"Low","5",R22,,,,,"T") -> 5382.69 | W22: =RTD("cqg.rtd",,"StudyData",$H$5,"Bar",,"Close","5",R22,,,,,"T") -> 5383.34
C23: Enter in the symbols you require. | K23: -18 | L23: =RTD("cqg.rtd",,"StudyData",$C$5,"Bar",,"Time","5",K23,,,,,"T") -> 42703.60764 | M23: =RTD("cqg.rtd",,"StudyData",$C$5,"Bar",,"Open","5",K23,,,,,"T") -> 2205.2 | N23: =RTD("cqg.rtd",,"StudyData",$C$5,"Bar",,"High","5",K23,,,,,"T") -> 2205.66 | O23: =RTD("cqg.rtd",,"StudyData",$C$5,"Bar",,"Low","5",K23,,,,,"T") -> 2203.97 | P23: =RTD("cqg.rtd",,"StudyData",$C$5,"Bar",,"Close","5",K23,,,,,"T") -> 2203.97 | R23: -18 | S23: =RTD("cqg.rtd",,"StudyData",$H$5,"Bar",,"Time","5",R23,,,,,"T") -> 42703.59722 | T23: =RTD("cqg.rtd",,"StudyData",$H$5,"Bar",,"Open","5",R23,,,,,"T") -> 5383.34 | U23: =RTD("cqg.rtd",,"StudyData",$H$5,"Bar",,"High","5",R23,,,,,"T") -> 5385.74 | V23: =RTD("cqg.rtd",,"StudyData",$H$5,"Bar",,"Low","5",R23,,,,,"T") -> 5382.58 | W23: =RTD("cqg.rtd",,"StudyData",$H$5,"Bar",,"Close","5",R23,,,,,"T") -> 5385.16
C24: The two charts in the center top of the main page use the first symbol in the Left Hand and Right Hand Display columns above. | K24: -17 | L24: =RTD("cqg.rtd",,"StudyData",$C$5,"Bar",,"Time","5",K24,,,,,"T") -> 42703.61111 | M24: =RTD("cqg.rtd",,"StudyData",$C$5,"Bar",,"Open","5",K24,,,,,"T") -> 2203.97 | N24: =RTD("cqg.rtd",,"StudyData",$C$5,"Bar",,"High","5",K24,,,,,"T") -> 2204.39 | O24: =RTD("cqg.rtd",,"StudyData",$C$5,"Bar",,"Low","5",K24,,,,,"T") -> 2203.7 | P24: =RTD("cqg.rtd",,"StudyData",$C$5,"Bar",,"Close","5",K24,,,,,"T") -> 2204.14 | R24: -17 | S24: =RTD("cqg.rtd",,"StudyData",$H$5,"Bar",,"Time","5",R24,,,,,"T") -> 42703.60069 | T24: =RTD("cqg.rtd",,"StudyData",$H$5,"Bar",,"Open","5",R24,,,,,"T") -> 5385.16 | U24: =RTD("cqg.rtd",,"StudyData",$H$5,"Bar",,"High","5",R24,,,,,"T") -> 5385.55 | V24: =RTD("cqg.rtd",,"StudyData",$H$5,"Bar",,"Low","5",R24,,,,,"T") -> 5384.35 | W24: =RTD("cqg.rtd",,"StudyData",$H$5,"Bar",,"Close","5",R24,,,,,"T") -> 5384.78
K25: -16 | L25: =RTD("cqg.rtd",,"StudyData",$C$5,"Bar",,"Time","5",K25,,,,,"T") -> 42703.61458 | M25: =RTD("cqg.rtd",,"StudyData",$C$5,"Bar",,"Open","5",K25,,,,,"T") -> 2204.14 | N25: =RTD("cqg.rtd",,"StudyData",$C$5,"Bar",,"High","5",K25,,,,,"T") -> 2204.14 | O25: =RTD("cqg.rtd",,"StudyData",$C$5,"Bar",,"Low","5",K25,,,,,"T") -> 2202.96 | P25: =RTD("cqg.rtd",,"StudyData",$C$5,"Bar",,"Close","5",K25,,,,,"T") -> 2203.66 | R25: -16 | S25: =RTD("cqg.rtd",,"StudyData",$H$5,"Bar",,"Time","5",R25,,,,,"T") -> 42703.60417 | T25: =RTD("cqg.rtd",,"StudyData",$H$5,"Bar",,"Open","5",R25,,,,,"T") -> 5384.78 | U25: =RTD("cqg.rtd",,"StudyData",$H$5,"Bar",,"High","5",R25,,,,,"T") -> 5384.79 | V25: =RTD("cqg.rtd",,"StudyData",$H$5,"Bar",,"Low","5",R25,,,,,"T") -> 5380.67 | W25: =RTD("cqg.rtd",,"StudyData",$H$5,"Bar",,"Close","5",R25,,,,,"T") -> 5382.96
K26: -15 | L26: =RTD("cqg.rtd",,"StudyData",$C$5,"Bar",,"Time","5",K26,,,,,"T") -> 42703.61806 | M26: =RTD("cqg.rtd",,"StudyData",$C$5,"Bar",,"Open","5",K26,,,,,"T") -> 2203.65 | N26: =RTD("cqg.rtd",,"StudyData",$C$5,"Bar",,"High","5",K26,,,,,"T") -> 2204.92 | O26: =RTD("cqg.rtd",,"StudyData",$C$5,"Bar",,"Low","5",K26,,,,,"T") -> 2203.57 | P26: =RTD("cqg.rtd",,"StudyData",$C$5,"Bar",,"Close","5",K26,,,,,"T") -> 2204.86 | R26: -15 | S26: =RTD("cqg.rtd",,"StudyData",$H$5,"Bar",,"Time","5",R26,,,,,"T") -> 42703.60764 | T26: =RTD("cqg.rtd",,"StudyData",$H$5,"Bar",,"Open","5",R26,,,,,"T") -> 5382.96 | U26: =RTD("cqg.rtd",,"StudyData",$H$5,"Bar",,"High","5",R26,,,,,"T") -> 5383.99 | V26: =RTD("cqg.rtd",,"StudyData",$H$5,"Bar",,"Low","5",R26,,,,,"T") -> 5379.8 | W26: =RTD("cqg.rtd",,"StudyData",$H$5,"Bar",,"Close","5",R26,,,,,"T") -> 5379.8
C27: When entering symbols the "F.US." for futures or the "S.US." for stocks or the "X.US." for indicies are required. | K27: -14 | L27: =RTD("cqg.rtd",,"StudyData",$C$5,"Bar",,"Time","5",K27,,,,,"T") -> 42703.62153 | M27: =RTD("cqg.rtd",,"StudyData",$C$5,"Bar",,"Open","5",K27,,,,,"T") -> 2204.85 | N27: =RTD("cqg.rtd",,"StudyData",$C$5,"Bar",,"High","5",K27,,,,,"T") -> 2205.06 | O27: =RTD("cqg.rtd",,"StudyData",$C$5,"Bar",,"Low","5",K27,,,,,"T") -> 2204.09 | P27: =RTD("cqg.rtd",,"StudyData",$C$5,"Bar",,"Close","5",K27,,,,,"T") -> 2204.66 | R27: -14 | S27: =RTD("cqg.rtd",,"StudyData",$H$5,"Bar",,"Time","5",R27,,,,,"T") -> 42703.61111 | T27: =RTD("cqg.rtd",,"StudyData",$H$5,"Bar",,"Open","5",R27,,,,,"T") -> 5379.81 | U27: =RTD("cqg.rtd",,"StudyData",$H$5,"Bar",,"High","5",R27,,,,,"T") -> 5380.35 | V27: =RTD("cqg.rtd",,"StudyData",$H$5,"Bar",,"Low","5",R27,,,,,"T") -> 5377.98 | W27: =RTD("cqg.rtd",,"StudyData",$H$5,"Bar",,"Close","5",R27,,,,,"T") -> 5378.65
C28: Use all capital letters. | K28: -13 | L28: =RTD("cqg.rtd",,"StudyData",$C$5,"Bar",,"Time","5",K28,,,,,"T") -> 42703.625 | M28: =RTD("cqg.rtd",,"StudyData",$C$5,"Bar",,"Open","5",K28,,,,,"T") -> 2204.87 | N28: =RTD("cqg.rtd",,"StudyData",$C$5,"Bar",,"High","5",K28,,,,,"T") -> 2204.87 | O28: =RTD("cqg.rtd",,"StudyData",$C$5,"Bar",,"Low","5",K28,,,,,"T") -> 2204.66 | P28: =RTD("cqg.rtd",,"StudyData",$C$5,"Bar",,"Close","5",K28,,,,,"T") -> 2204.66 | R28: -13 | S28: =RTD("cqg.rtd",,"StudyData",$H$5,"Bar",,"Time","5",R28,,,,,"T") -> 42703.61458 | T28: =RTD("cqg.rtd",,"StudyData",$H$5,"Bar",,"Open","5",R28,,,,,"T") -> 5378.59 | U28: =RTD("cqg.rtd",,"StudyData",$H$5,"Bar",,"High","5",R28,,,,,"T") -> 5378.59 | V28: =RTD("cqg.rtd",,"StudyData",$H$5,"Bar",,"Low","5",R28,,,,,"T") -> 5375.88 | W28: =RTD("cqg.rtd",,"StudyData",$H$5,"Bar",,"Close","5",R28,,,,,"T") -> 5376.92
K29: -12 | L29: =RTD("cqg.rtd",,"StudyData",$C$5,"Bar",,"Time","5",K29,,,,,"T") -> 42703.62847 | M29: =RTD("cqg.rtd",,"StudyData",$C$5,"Bar",,"Open","5",K29,,,,,"T") -> 2204.66 | N29: =RTD("cqg.rtd",,"StudyData",$C$5,"Bar",,"High","5",K29,,,,,"T") -> 2204.66 | O29: =RTD("cqg.rtd",,"StudyData",$C$5,"Bar",,"Low","5",K29,,,,,"T") -> 2204.66 | P29: =RTD("cqg.rtd",,"StudyData",$C$5,"Bar",,"Close","5",K29,,,,,"T") -> 2204.66 | R29: -12 | S29: =RTD("cqg.rtd",,"StudyData",$H$5,"Bar",,"Time","5",R29,,,,,"T") -> 42703.61806 | T29: =RTD("cqg.rtd",,"StudyData",$H$5,"Bar",,"Open","5",R29,,,,,"T") -> 5376.71 | U29: =RTD("cqg.rtd",,"StudyData",$H$5,"Bar",,"High","5",R29,,,,,"T") -> 5380.47 | V29: =RTD("cqg.rtd",,"StudyData",$H$5,"Bar",,"Low","5",R29,,,,,"T") -> 5376.47 | W29: =RTD("cqg.rtd",,"StudyData",$H$5,"Bar",,"Close","5",R29,,,,,"T") -> 5380.29
K30: -11 | L30: =RTD("cqg.rtd",,"StudyData",$C$5,"Bar",,"Time","5",K30,,,,,"T") -> 42703.63194 | M30: =RTD("cqg.rtd",,"StudyData",$C$5,"Bar",,"Open","5",K30,,,,,"T") -> 2204.66 | N30: =RTD("cqg.rtd",,"StudyData",$C$5,"Bar",,"High","5",K30,,,,,"T") -> 2204.66 | O30: =RTD("cqg.rtd",,"StudyData",$C$5,"Bar",,"Low","5",K30,,,,,"T") -> 2204.66 | P30: =RTD("cqg.rtd",,"StudyData",$C$5,"Bar",,"Close","5",K30,,,,,"T") -> 2204.66 | R30: -11 | S30: =RTD("cqg.rtd",,"StudyData",$H$5,"Bar",,"Time","5",R30,,,,,"T") -> 42703.62153 | T30: =RTD("cqg.rtd",,"StudyData",$H$5,"Bar",,"Open","5",R30,,,,,"T") -> 5380.27 | U30: =RTD("cqg.rtd",,"StudyData",$H$5,"Bar",,"High","5",R30,,,,,"T") -> 5380.94 | V30: =RTD("cqg.rtd",,"StudyData",$H$5,"Bar",,"Low","5",R30,,,,,"T") -> 5377.69 | W30: =RTD("cqg.rtd",,"StudyData",$H$5,"Bar",,"Close","5",R30,,,,,"T") -> 5379.92
K31: -10 | L31: =RTD("cqg.rtd",,"StudyData",$C$5,"Bar",,"Time","5",K31,,,,,"T") -> 42704.35417 | M31: =RTD("cqg.rtd",,"StudyData",$C$5,"Bar",,"Open","5",K31,,,,,"T") -> 2204.97 | N31: =RTD("cqg.rtd",,"StudyData",$C$5,"Bar",,"High","5",K31,,,,,"T") -> 2211.31 | O31: =RTD("cqg.rtd",,"StudyData",$C$5,"Bar",,"Low","5",K31,,,,,"T") -> 2204.95 | P31: =RTD("cqg.rtd",,"StudyData",$C$5,"Bar",,"Close","5",K31,,,,,"T") -> 2211.16 | R31: -10 | S31: =RTD("cqg.rtd",,"StudyData",$H$5,"Bar",,"Time","5",R31,,,,,"T") -> 42704.35417 | T31: =RTD("cqg.rtd",,"StudyData",$H$5,"Bar",,"Open","5",R31,,,,,"T") -> 5391.35 | U31: =RTD("cqg.rtd",,"StudyData",$H$5,"Bar",,"High","5",R31,,,,,"T") -> 5391.71 | V31: =RTD("cqg.rtd",,"StudyData",$H$5,"Bar",,"Low","5",R31,,,,,"T") -> 5384.64 | W31: =RTD("cqg.rtd",,"StudyData",$H$5,"Bar",,"Close","5",R31,,,,,"T") -> 5386.06
K32: -9 | L32: =RTD("cqg.rtd",,"StudyData",$C$5,"Bar",,"Time","5",K32,,,,,"T") -> 42704.35764 | M32: =RTD("cqg.rtd",,"StudyData",$C$5,"Bar",,"Open","5",K32,,,,,"T") -> 2211.13 | N32: =RTD("cqg.rtd",,"StudyData",$C$5,"Bar",,"High","5",K32,,,,,"T") -> 2213.66 | O32: =RTD("cqg.rtd",,"StudyData",$C$5,"Bar",,"Low","5",K32,,,,,"T") -> 2210.99 | P32: =RTD("cqg.rtd",,"StudyData",$C$5,"Bar",,"Close","5",K32,,,,,"T") -> 2213.2 | R32: -9 | S32: =RTD("cqg.rtd",,"StudyData",$H$5,"Bar",,"Time","5",R32,,,,,"T") -> 42704.35764 | T32: =RTD("cqg.rtd",,"StudyData",$H$5,"Bar",,"Open","5",R32,,,,,"T") -> 5385.87 | U32: =RTD("cqg.rtd",,"StudyData",$H$5,"Bar",,"High","5",R32,,,,,"T") -> 5390.32 | V32: =RTD("cqg.rtd",,"StudyData",$H$5,"Bar",,"Low","5",R32,,,,,"T") -> 5385.63 | W32: =RTD("cqg.rtd",,"StudyData",$H$5,"Bar",,"Close","5",R32,,,,,"T") -> 5388.09
K33: -8 | L33: =RTD("cqg.rtd",,"StudyData",$C$5,"Bar",,"Time","5",K33,,,,,"T") -> 42704.36111 | M33: =RTD("cqg.rtd",,"StudyData",$C$5,"Bar",,"Open","5",K33,,,,,"T") -> 2213.22 | N33: =RTD("cqg.rtd",,"StudyData",$C$5,"Bar",,"High","5",K33,,,,,"T") -> 2214.09 | O33: =RTD("cqg.rtd",,"StudyData",$C$5,"Bar",,"Low","5",K33,,,,,"T") -> 2213.21 | P33: =RTD("cqg.rtd",,"StudyData",$C$5,"Bar",,"Close","5",K33,,,,,"T") -> 2213.79 | R33: -8 | S33: =RTD("cqg.rtd",,"StudyData",$H$5,"Bar",,"Time","5",R33,,,,,"T") -> 42704.36111 | T33: =RTD("cqg.rtd",,"StudyData",$H$5,"Bar",,"Open","5",R33,,,,,"T") -> 5388.08 | U33: =RTD("cqg.rtd",,"StudyData",$H$5,"Bar",,"High","5",R33,,,,,"T") -> 5393.15 | V33: =RTD("cqg.rtd",,"StudyData",$H$5,"Bar",,"Low","5",R33,,,,,"T") -> 5388.08 | W33: =RTD("cqg.rtd",,"StudyData",$H$5,"Bar",,"Close","5",R33,,,,,"T") -> 5390.18
K34: -7 | L34: =RTD("cqg.rtd",,"StudyData",$C$5,"Bar",,"Time","5",K34,,,,,"T") -> 42704.36458 | M34: =RTD("cqg.rtd",,"StudyData",$C$5,"Bar",,"Open","5",K34,,,,,"T") -> 2213.8 | N34: =RTD("cqg.rtd",,"StudyData",$C$5,"Bar",,"High","5",K34,,,,,"T") -> 2214.1 | O34: =RTD("cqg.rtd",,"StudyData",$C$5,"Bar",,"Low","5",K34,,,,,"T") -> 2212.24 | P34: =RTD("cqg.rtd",,"StudyData",$C$5,"Bar",,"Close","5",K34,,,,,"T") -> 2212.36 | R34: -7 | S34: =RTD("cqg.rtd",,"StudyData",$H$5,"Bar",,"Time","5",R34,,,,,"T") -> 42704.36458 | T34: =RTD("cqg.rtd",,"StudyData",$H$5,"Bar",,"Open","5",R34,,,,,"T") -> 5390.21 | U34: =RTD("cqg.rtd",,"StudyData",$H$5,"Bar",,"High","5",R34,,,,,"T") -> 5391.03 | V34: =RTD("cqg.rtd",,"StudyData",$H$5,"Bar",,"Low","5",R34,,,,,"T") -> 5380.44 | W34: =RTD("cqg.rtd",,"StudyData",$H$5,"Bar",,"Close","5",R34,,,,,"T") -> 5380.59
K35: -6 | L35: =RTD("cqg.rtd",,"StudyData",$C$5,"Bar",,"Time","5",K35,,,,,"T") -> 42704.36806 | M35: =RTD("cqg.rtd",,"StudyData",$C$5,"Bar",,"Open","5",K35,,,,,"T") -> 2212.35 | N35: =RTD("cqg.rtd",,"StudyData",$C$5,"Bar",,"High","5",K35,,,,,"T") -> 2212.5 | O35: =RTD("cqg.rtd",,"StudyData",$C$5,"Bar",,"Low","5",K35,,,,,"T") -> 2209.96 | P35: =RTD("cqg.rtd",,"StudyData",$C$5,"Bar",,"Close","5",K35,,,,,"T") -> 2210.2 | R35: -6 | S35: =RTD("cqg.rtd",,"StudyData",$H$5,"Bar",,"Time","5",R35,,,,,"T") -> 42704.36806 | T35: =RTD("cqg.rtd",,"StudyData",$H$5,"Bar",,"Open","5",R35,,,,,"T") -> 5380.64 | U35: =RTD("cqg.rtd",,"StudyData",$H$5,"Bar",,"High","5",R35,,,,,"T") -> 5380.84 | V35: =RTD("cqg.rtd",,"StudyData",$H$5,"Bar",,"Low","5",R35,,,,,"T") -> 5373.73 | W35: =RTD("cqg.rtd",,"StudyData",$H$5,"Bar",,"Close","5",R35,,,,,"T") -> 5375.11
K36: -5 | L36: =RTD("cqg.rtd",,"StudyData",$C$5,"Bar",,"Time","5",K36,,,,,"T") -> 42704.37153 | M36: =RTD("cqg.rtd",,"StudyData",$C$5,"Bar",,"Open","5",K36,,,,,"T") -> 2210.23 | N36: =RTD("cqg.rtd",,"StudyData",$C$5,"Bar",,"High","5",K36,,,,,"T") -> 2210.8 | O36: =RTD("cqg.rtd",,"StudyData",$C$5,"Bar",,"Low","5",K36,,,,,"T") -> 2210.02 | P36: =RTD("cqg.rtd",,"StudyData",$C$5,"Bar",,"Close","5",K36,,,,,"T") -> 2210.11 | R36: -5 | S36: =RTD("cqg.rtd",,"StudyData",$H$5,"Bar",,"Time","5",R36,,,,,"T") -> 42704.37153 | T36: =RTD("cqg.rtd",,"StudyData",$H$5,"Bar",,"Open","5",R36,,,,,"T") -> 5375.3 | U36: =RTD("cqg.rtd",,"StudyData",$H$5,"Bar",,"High","5",R36,,,,,"T") -> 5376.67 | V36: =RTD("cqg.rtd",,"StudyData",$H$5,"Bar",,"Low","5",R36,,,,,"T") -> 5375.06 | W36: =RTD("cqg.rtd",,"StudyData",$H$5,"Bar",,"Close","5",R36,,,,,"T") -> 5375.87
K37: -4 | L37: =RTD("cqg.rtd",,"StudyData",$C$5,"Bar",,"Time","5",K37,,,,,"T") -> 42704.375 | M37: =RTD("cqg.rtd",,"StudyData",$C$5,"Bar",,"Open","5",K37,,,,,"T") -> 2210.13 | N37: =RTD("cqg.rtd",,"StudyData",$C$5,"Bar",,"High","5",K37,,,,,"T") -> 2210.2 | O37: =RTD("cqg.rtd",,"StudyData",$C$5,"Bar",,"Low","5",K37,,,,,"T") -> 2208.86 | P37: =RTD("cqg.rtd",,"StudyData",$C$5,"Bar",,"Close","5",K37,,,,,"T") -> 2208.86 | R37: -4 | S37: =RTD("cqg.rtd",,"StudyData",$H$5,"Bar",,"Time","5",R37,,,,,"T") -> 42704.375 | T37: =RTD("cqg.rtd",,"StudyData",$H$5,"Bar",,"Open","5",R37,,,,,"T") -> 5375.99 | U37: =RTD("cqg.rtd",,"StudyData",$H$5,"Bar",,"High","5",R37,,,,,"T") -> 5376.09 | V37: =RTD("cqg.rtd",,"StudyData",$H$5,"Bar",,"Low","5",R37,,,,,"T") -> 5373.94 | W37: =RTD("cqg.rtd",,"StudyData",$H$5,"Bar",,"Close","5",R37,,,,,"T") -> 5374.36
K38: -3 | L38: =RTD("cqg.rtd",,"StudyData",$C$5,"Bar",,"Time","5",K38,,,,,"T") -> 42704.37847 | M38: =RTD("cqg.rtd",,"StudyData",$C$5,"Bar",,"Open","5",K38,,,,,"T") -> 2208.84 | N38: =RTD("cqg.rtd",,"StudyData",$C$5,"Bar",,"High","5",K38,,,,,"T") -> 2211.36 | O38: =RTD("cqg.rtd",,"StudyData",$C$5,"Bar",,"Low","5",K38,,,,,"T") -> 2208.82 | P38: =RTD("cqg.rtd",,"StudyData",$C$5,"Bar",,"Close","5",K38,,,,,"T") -> 2211.36 | R38: -3 | S38: =RTD("cqg.rtd",,"StudyData",$H$5,"Bar",,"Time","5",R38,,,,,"T") -> 42704.37847 | T38: =RTD("cqg.rtd",,"StudyData",$H$5,"Bar",,"Open","5",R38,,,,,"T") -> 5374.32 | U38: =RTD("cqg.rtd",,"StudyData",$H$5,"Bar",,"High","5",R38,,,,,"T") -> 5380.93 | V38: =RTD("cqg.rtd",,"StudyData",$H$5,"Bar",,"Low","5",R38,,,,,"T") -> 5374.12 | W38: =RTD("cqg.rtd",,"StudyData",$H$5,"Bar",,"Close","5",R38,,,,,"T") -> 5380.93
K39: -2 | L39: =RTD("cqg.rtd",,"StudyData",$C$5,"Bar",,"Time","5",K39,,,,,"T") -> 42704.38194 | M39: =RTD("cqg.rtd",,"StudyData",$C$5,"Bar",,"Open","5",K39,,,,,"T") -> 2211.3 | N39: =RTD("cqg.rtd",,"StudyData",$C$5,"Bar",,"High","5",K39,,,,,"T") -> 2211.38 | O39: =RTD("cqg.rtd",,"StudyData",$C$5,"Bar",,"Low","5",K39,,,,,"T") -> 2210.19 | P39: =RTD("cqg.rtd",,"StudyData",$C$5,"Bar",,"Close","5",K39,,,,,"T") -> 2210.19 | R39: -2 | S39: =RTD("cqg.rtd",,"StudyData",$H$5,"Bar",,"Time","5",R39,,,,,"T") -> 42704.38194 | T39: =RTD("cqg.rtd",,"StudyData",$H$5,"Bar",,"Open","5",R39,,,,,"T") -> 5380.97 | U39: =RTD("cqg.rtd",,"StudyData",$H$5,"Bar",,"High","5",R39,,,,,"T") -> 5381.71 | V39: =RTD("cqg.rtd",,"StudyData",$H$5,"Bar",,"Low","5",R39,,,,,"T") -> 5375.79 | W39: =RTD("cqg.rtd",,"StudyData",$H$5,"Bar",,"Close","5",R39,,,,,"T") -> 5376.04
K40: -1 | L40: =RTD("cqg.rtd",,"StudyData",$C$5,"Bar",,"Time","5",K40,,,,,"T") -> 42704.38542 | M40: =RTD("cqg.rtd",,"StudyData",$C$5,"Bar",,"Open","5",K40,,,,,"T") -> 2210.19 | N40: =RTD("cqg.rtd",,"StudyData",$C$5,"Bar",,"High","5",K40,,,,,"T") -> 2210.29 | O40: =RTD("cqg.rtd",,"StudyData",$C$5,"Bar",,"Low","5",K40,,,,,"T") -> 2207.49 | P40: =RTD("cqg.rtd",,"StudyData",$C$5,"Bar",,"Close","5",K40,,,,,"T") -> 2207.49 | R40: -1 | S40: =RTD("cqg.rtd",,"StudyData",$H$5,"Bar",,"Time","5",R40,,,,,"T") -> 42704.38542 | T40: =RTD("cqg.rtd",,"StudyData",$H$5,"Bar",,"Open","5",R40,,,,,"T") -> 5376.2 | U40: =RTD("cqg.rtd",,"StudyData",$H$5,"Bar",,"High","5",R40,,,,,"T") -> 5376.25 | V40: =RTD("cqg.rtd",,"StudyData",$H$5,"Bar",,"Low","5",R40,,,,,"T") -> 5367.71 | W40: =RTD("cqg.rtd",,"StudyData",$H$5,"Bar",,"Close","5",R40,,,,,"T") -> 5367.71
K41: 0 | L41: =RTD("cqg.rtd",,"StudyData",$C$5,"Bar",,"Time","5",K41,,,,,"T") -> 42704.38889 | M41: =IF(RTD("cqg.rtd",,"StudyData",$C$5,"Bar",,"Open","5",K41,,,,,"T")="",NA(),RTD("cqg.rtd",,"StudyData",$C$5,"Bar",,"Open","5",K41,,,,,"T")) -> 2207.48 | N41: =IF(RTD("cqg.rtd",,"StudyData",$C$5,"Bar",,"High","5",K41,,,,,"T")="",NA(),RTD("cqg.rtd",,"StudyData",$C$5,"Bar",,"High","5",K41,,,,,"T")) -> 2207.48 | O41: =IF(RTD("cqg.rtd",,"StudyData",$C$5,"Bar",,"Low","5",K41,,,,,"T")="",NA(),RTD("cqg.rtd",,"StudyData",$C$5,"Bar",,"Low","5",K41,,,,,"T")) -> 2207.22 | P41: =IF(RTD("cqg.rtd",,"StudyData",$C$5,"Bar",,"Close","5",K41,,,,,"T")="",NA(),RTD("cqg.rtd",,"StudyData",$C$5,"Bar",,"Close","5",K41,,,,,"T")) -> 2207.38 | R41: 0 | S41: =RTD("cqg.rtd",,"StudyData",$H$5,"Bar",,"Time","5",R41,,,,,"T") -> 42704.38889 | T41: =IF(RTD("cqg.rtd",,"StudyData",$H$5,"Bar",,"Open","5",R41,,,,,"T")="",NA(),RTD("cqg.rtd",,"StudyData",$H$5,"Bar",,"Open","5",R41,,,,,"T")) -> 5367.68 | U41: =IF(RTD("cqg.rtd",,"StudyData",$H$5,"Bar",,"High","5",R41,,,,,"T")="",NA(),RTD("cqg.rtd",,"StudyData",$H$5,"Bar",,"High","5",R41,,,,,"T")) -> 5367.68 | V41: =IF(RTD("cqg.rtd",,"StudyData",$H$5,"Bar",,"Low","5",R41,,,,,"T")="",NA(),RTD("cqg.rtd",,"StudyData",$H$5,"Bar",,"Low","5",R41,,,,,"T")) -> 5366.97 | W41: =IF(RTD("cqg.rtd",,"StudyData",$H$5,"Bar",,"Close","5",R41,,,,,"T")="",NA(),RTD("cqg.rtd",,"StudyData",$H$5,"Bar",,"Close","5",R41,,,,,"T")) -> 5367.22

Sheet NASDAQ (hidden)
C1: S.US.AMD | D1: =IFERROR(RTD("cqg.rtd", ,"ContractData",C1, "PerCentNetLastTrade",, "T")/100,"") -> 0.01231802912 | E1: 608 | F1: =IFERROR(E1,"") -> 608 | G1: =C1 -> S.US.AMD | H1: 1 | I1: =IFERROR(VLOOKUP(H1,$F$1:$G$2860,2,FALSE),"") -> S.US.SCON | J1: =IFERROR(RTD("cqg.rtd", ,"ContractData",I1, "PerCentNetLastTrade",, "T")/100,"") -> 0.585 | L1: =MIN(D1:D2860) -> -0.6127562642 | M1: =VLOOKUP(L1,D1:G2860,3,FALSE) -> 2576 | N1: =VLOOKUP(M1,$F$1:$G$2860,2,FALSE) -> S.US.ARWR | O1: =IFERROR(RTD("cqg.rtd", ,"ContractData",N1, "PerCentNetLastTrade",, "T")/100,"") -> -0.6127562642
C2: S.US.SIRI | D2: =IFERROR(RTD("cqg.rtd", ,"ContractData",C2, "PerCentNetLastTrade",, "T")/100,"") -> 0 | E2: 1371 | F2: =IFERROR(E2,"") -> 1371 | G2: =C2 -> S.US.SIRI | H2: =H1+1 -> 2 | I2: S.US.CSBR | J2: =IFERROR(RTD("cqg.rtd", ,"ContractData",I2, "PerCentNetLastTrade",, "T")/100,"") -> 0.2513089005 | M2: =M1-1 -> 2575 | N2: S.US.CERC | O2: =IFERROR(RTD("cqg.rtd", ,"ContractData",N2, "PerCentNetLastTrade",, "T")/100,"") -> -0.4809322034
C3: S.US.AAPL | D3: =IFERROR(RTD("cqg.rtd", ,"ContractData",C3, "PerCentNetLastTrade",, "T")/100,"") -> -0.003678449668 | E3: 1790 | F3: 1790 | G3: =C3 -> S.US.AAPL | H3: =H2+1 -> 3 | I3: S.US.MEMP | J3: =IFERROR(RTD("cqg.rtd", ,"ContractData",I3, "PerCentNetLastTrade",, "T")/100,"") -> 0.1935483871 | M3: =M2-1 -> 2574 | N3: S.US.ATLC | O3: =IFERROR(RTD("cqg.rtd", ,"ContractData",N3, "PerCentNetLastTrade",, "T")/100,"") -> -0.4800693241
C4: S.US.FB | D4: =IFERROR(RTD("cqg.rtd", ,"ContractData",C4, "PerCentNetLastTrade",, "T")/100,"") -> -0.006287747166 | E4: 1941 | F4: 1941 | G4: S.US.FB | H4: 4 | I4: S.US.MCEP | J4: =IFERROR(RTD("cqg.rtd", ,"ContractData",I4, "PerCentNetLastTrade",, "T")/100,"") -> 0.1895734597 | M4: 2573 | N4: S.US.TWER | O4: =IFERROR(RTD("cqg.rtd", ,"ContractData",N4, "PerCentNetLastTrade",, "T")/100,"") -> -0.2941176471
C5: S.US.MSFT | D5: =IFERROR(RTD("cqg.rtd", ,"ContractData",C5, "PerCentNetLastTrade",, "T")/100,"") -> -0.004583401539 | E5: 1879 | F5: 1879 | G5: S.US.MSFT | H5: 5 | I5: S.US.REXX | J5: =IFERROR(RTD("cqg.rtd", ,"ContractData",I5, "PerCentNetLastTrade",, "T")/100,"") -> 0.1842105263 | M5: 2572 | N5: S.US.CYAD | O5: =IFERROR(RTD("cqg.rtd", ,"ContractData",N5, "PerCentNetLastTrade",, "T")/100,"") -> -0.2170833333
C6: S.US.QQQ | D6: =IFERROR(RTD("cqg.rtd", ,"ContractData",C6, "PerCentNetLastTrade",, "T")/100,"") -> -0.00445602825 | E6: 1856 | F6: 1856 | G6: S.US.QQQ | H6: 6 | I6: S.US.RCON | J6: =IFERROR(RTD("cqg.rtd", ,"ContractData",I6, "PerCentNetLastTrade",, "T")/100,"") -> 0.1532258065 | M6: 2571 | N6: S.US.IDXG | O6: =IFERROR(RTD("cqg.rtd", ,"ContractData",N6, "PerCentNetLastTrade",, "T")/100,"") -> -0.1764705882
C7: S.US.CSCO | D7: =IFERROR(RTD("cqg.rtd", ,"ContractData",C7, "PerCentNetLastTrade",, "T")/100,"") -> -0.0006704659739 | E7: 1606 | F7: 1606 | G7: S.US.CSCO | H7: 7 | I7: S.US.OHGI | J7: =IFERROR(RTD("cqg.rtd", ,"ContractData",I7, "PerCentNetLastTrade",, "T")/100,"") -> 0.1428571429 | M7: 2570 | N7: S.US.TBIO | O7: =IFERROR(RTD("cqg.rtd", ,"ContractData",N7, "PerCentNetLastTrade",, "T")/100,"") -> -0.1739130435
C8: S.US.MU | D8: =IFERROR(RTD("cqg.rtd", ,"ContractData",C8, "PerCentNetLastTrade",, "T")/100,"") -> 0.002059732235 | E8: 1255 | F8: 1255 | G8: S.US.MU | H8: 8 | I8: S.US.MDSY | J8: =IFERROR(RTD("cqg.rtd", ,"ContractData",I8, "PerCentNetLastTrade",, "T")/100,"") -> 0.1376146789 | M8: 2569 | N8: S.US.DRAM | O8: =IFERROR(RTD("cqg.rtd", ,"ContractData",N8, "PerCentNetLastTrade",, "T")/100,"") -> -0.1489361702
C9: S.US.FTR | D9: =IFERROR(RTD("cqg.rtd", ,"ContractData",C9, "PerCentNetLastTrade",, "T")/100,"") -> -0.005449591281 | E9: 1907 | F9: 1907 | G9: S.US.FTR | H9: 9 | I9: S.US.LGCY | J9: =IFERROR(RTD("cqg.rtd", ,"ContractData",I9, "PerCentNetLastTrade",, "T")/100,"") -> 0.1294117647 | M9: 2568 | N9: S.US.OPHC | O9: =IFERROR(RTD("cqg.rtd", ,"ContractData",N9, "PerCentNetLastTrade",, "T")/100,"") -> -0.1442885772
C10: S.US.XIV | D10: =IFERROR(RTD("cqg.rtd", ,"ContractData",C10, "PerCentNetLastTrade",, "T")/100,"") -> 0.007560137457 | E10: 876 | F10: 876 | G10: S.US.XIV | H10: 10 | I10: S.US.ORIG | J10: =IFERROR(RTD("cqg.rtd", ,"ContractData",I10, "PerCentNetLastTrade",, "T")/100,"") -> 0.1285714286 | M10: 2567 | N10: S.US.PAVM | O10: =IFERROR(RTD("cqg.rtd", ,"ContractData",N10, "PerCentNetLastTrade",, "T")/100,"") -> -0.1436781609
C11: S.US.INTC | D11: =IFERROR(RTD("cqg.rtd", ,"ContractData",C11, "PerCentNetLastTrade",, "T")/100,"") -> -0.003398470688 | E11: 1780 | F11: 1780 | G11: S.US.INTC | H11: 11 | I11: S.US.CRZO
C12: S.US.BRCD | D12: =IFERROR(RTD("cqg.rtd", ,"ContractData",C12, "PerCentNetLastTrade",, "T")/100,"") -> 0.0008090614887 | E12: 1330 | F12: 1330 | G12: S.US.BRCD | H12: 12 | I12: S.US.AXAS
C13: S.US.GRPN | D13: =IFERROR(RTD("cqg.rtd", ,"ContractData",C13, "PerCentNetLastTrade",, "T")/100,"") -> 0.0101010101 | E13: 715 | F13: 715 | G13: S.US.GRPN | H13: 13 | I13: S.US.TESO
C14: S.US.HBAN | D14: =IFERROR(RTD("cqg.rtd", ,"ContractData",C14, "PerCentNetLastTrade",, "T")/100,"") -> 0.02035830619 | E14: 352 | F14: 352 | G14: S.US.HBAN | H14: 14 | I14: S.US.EVAR
C15: S.US.NVDA | D15: =IFERROR(RTD("cqg.rtd", ,"ContractData",C15, "PerCentNetLastTrade",, "T")/100,"") -> 0.006756032172 | E15: 919 | F15: 919 | G15: S.US.NVDA | H15: 15 | I15: S.US.VLTC
C16: S.US.CMCSA | D16: =IFERROR(RTD("cqg.rtd", ,"ContractData",C16, "PerCentNetLastTrade",, "T")/100,"") -> -0.01055032792 | E16: 2122 | F16: 2122 | G16: S.US.CMCSA | H16: 16 | I16: S.US.PDCE
C17: S.US.ATVI | D17: =IFERROR(RTD("cqg.rtd", ,"ContractData",C17, "PerCentNetLastTrade",, "T")/100,"") -> -0.01370223979 | E17: 2216 | F17: 2216 | G17: S.US.ATVI | H17: 17 | I17: S.US.FNBC
C18: S.US.AMAT | D18: =IFERROR(RTD("cqg.rtd", ,"ContractData",C18, "PerCentNetLastTrade",, "T")/100,"") -> 0.002176616915 | E18: 1247 | F18: 1247 | G18: S.US.AMAT | H18: 18 | I18: S.US.PTEN
C19: S.US.TVIX | D19: =IFERROR(RTD("cqg.rtd", ,"ContractData",C19, "PerCentNetLastTrade",, "T")/100,"") -> -0.01986183074 | E19: 2349 | F19: 2349 | G19: S.US.TVIX | H19: 19 | I19: S.US.FANG
C20: S.US.SBUX | D20: =IFERROR(RTD("cqg.rtd", ,"ContractData",C20, "PerCentNetLastTrade",, "T")/100,"") -> -0.002406738869 | E20: 1715 | F20: 1715 | G20: S.US.SBUX | H20: 20 | I20: S.US.ZIONZ
C21: S.US.SYMC | D21: =IFERROR(RTD("cqg.rtd", ,"ContractData",C21, "PerCentNetLastTrade",, "T")/100,"") -> 0.01110197368 | E21: 663 | F21: 663 | G21: S.US.SYMC | H21: 21 | I21: S.US.ABUS
C22: S.US.TLT | D22: =IFERROR(RTD("cqg.rtd", ,"ContractData",C22, "PerCentNetLastTrade",, "T")/100,"") -> -0.01914580265 | E22: 2340 | F22: 2340 | G22: S.US.TLT | H22: 22 | I22: S.US.PSCE
C23: S.US.JD | D23: =IFERROR(RTD("cqg.rtd", ,"ContractData",C23, "PerCentNetLastTrade",, "T")/100,"") -> 0.01787709497 | E23: 413 | F23: 413 | G23: S.US.JD | H23: 23 | I23: S.US.XOG
C24: S.US.FOXA | D24: =IFERROR(RTD("cqg.rtd", ,"ContractData",C24, "PerCentNetLastTrade",, "T")/100,"") -> -0.006673691605 | E24: 1962 | F24: 1962 | G24: S.US.FOXA | H24: 24 | I24: S.US.GMLP
C25: S.US.ETRM | D25: =IFERROR(RTD("cqg.rtd", ,"ContractData",C25, "PerCentNetLastTrade",, "T")/100,"") -> 0 | E25: 1372 | F25: 1372 | G25: S.US.ETRM | H25: 25 | I25: S.US.VNR
C26: S.US.ZNGA | D26: =IFERROR(RTD("cqg.rtd", ,"ContractData",C26, "PerCentNetLastTrade",, "T")/100,"") -> 0.006968641115 | E26: 915 | F26: 915 | G26: S.US.ZNGA | H26: 26 | I26: S.US.HWBK
C27: S.US.YHOO | D27: =IFERROR(RTD("cqg.rtd", ,"ContractData",C27, "PerCentNetLastTrade",, "T")/100,"") -> -0.008894230769 | E27: 2059 | F27: 2059 | G27: S.US.YHOO | H27: 27 | I27: S.US.GNVC
C28: S.US.GILD | D28: =IFERROR(RTD("cqg.rtd", ,"ContractData",C28, "PerCentNetLastTrade",, "T")/100,"") -> -0.004140510218 | E28: 1830 | F28: 1830 | G28: S.US.GILD | H28: 28 | I28: S.US.AREX
C29: S.US.CSX | D29: =IFERROR(RTD("cqg.rtd", ,"ContractData",C29, "PerCentNetLastTrade",, "T")/100,"") -> 0.0316091954 | E29: 168 | F29: 168 | G29: S.US.CSX | H29: 29 | I29: S.US.GLNG
C30: S.US.MDLZ | D30: =IFERROR(RTD("cqg.rtd", ,"ContractData",C30, "PerCentNetLastTrade",, "T")/100,"") -> -0.01236584228 | E30: 2181 | F30: 2181 | G30: S.US.MDLZ | H30: 30 | I30: S.US.GLBS
C31: S.US.QCOM | D31: =IFERROR(RTD("cqg.rtd", ,"ContractData",C31, "PerCentNetLastTrade",, "T")/100,"") -> 0.002396285757 | E31: 1231 | F31: 1231 | G31: S.US.QCOM | H31: 31 | I31: S.US.CGNT
C32: S.US.NVAX | D32: =IFERROR(RTD("cqg.rtd", ,"ContractData",C32, "PerCentNetLastTrade",, "T")/100,"") -> 0 | E32: 1373 | F32: 1373 | G32: S.US.NVAX | H32: 32 | I32: S.US.DWSN
C33: S.US.CTSH | D33: =IFERROR(RTD("cqg.rtd", ,"ContractData",C33, "PerCentNetLastTrade",, "T")/100,"") -> -0.01078554737 | E33: 2123 | F33: 2123 | G33: S.US.CTSH | H33: 33 | I33: S.US.MEOH
C34: S.US.SPLS | D34: =IFERROR(RTD("cqg.rtd", ,"ContractData",C34, "PerCentNetLastTrade",, "T")/100,"") -> -0.003058103976 | E34: 1696 | F34: 1696 | G34: S.US.SPLS | H34: 34 | I34: S.US.JAGX
C35: S.US.SQQQ | D35: =IFERROR(RTD("cqg.rtd", ,"ContractData",C35, "PerCentNetLastTrade",, "T")/100,"") -> 0.01375095493 | E35: 546 | F35: 546 | G35: S.US.SQQQ | H35: 35 | I35: S.US.CLUB
C36: S.US.ODP | D36: =IFERROR(RTD("cqg.rtd", ,"ContractData",C36, "PerCentNetLastTrade",, "T")/100,"") -> 0.01440329218 | E36: 515 | F36: 515 | G36: S.US.ODP | H36: 36 | I36: S.US.ISIG
C37: S.US.EBAY | D37: =IFERROR(RTD("cqg.rtd", ,"ContractData",C37, "PerCentNetLastTrade",, "T")/100,"") -> -0.008768853034 | E37: 2049 | F37: 2049 | G37: S.US.EBAY | H37: 37 | I37: S.US.DRYS
C38: S.US.PYPL | D38: =IFERROR(RTD("cqg.rtd", ,"ContractData",C38, "PerCentNetLastTrade",, "T")/100,"") -> -0.006768613688 | E38: 1966 | F38: 1966 | G38: S.US.PYPL | H38: 38 | I38: S.US.HRTX
C39: S.US.FITB | D39: =IFERROR(RTD("cqg.rtd", ,"ContractData",C39, "PerCentNetLastTrade",, "T")/100,"") -> 0.02481291847 | E39: 249 | F39: 249 | G39: S.US.FITB | H39: 39 | I39: S.US.AAME
C40: S.US.DRYS | D40: =IFERROR(RTD("cqg.rtd", ,"ContractData",C40, "PerCentNetLastTrade",, "T")/100,"") -> 0.06928406467 | E40: 37 | F40: 37 | G40: S.US.DRYS | H40: 40 | I40: S.US.CLMT
C41: S.US.ARIA | D41: =IFERROR(RTD("cqg.rtd", ,"ContractData",C41, "PerCentNetLastTrade",, "T")/100,"") -> -0.01811594203 | E41: 2319 | F41: 2319 | G41: S.US.ARIA | H41: 41 | I41: S.US.DFBG
C42: S.US.EXEL | D42: =IFERROR(RTD("cqg.rtd", ,"ContractData",C42, "PerCentNetLastTrade",, "T")/100,"") -> -0.008828722778 | E42: 2056 | F42: 2056 | G42: S.US.EXEL | H42: 42 | I42: S.US.AIRG
C43: S.US.AAL | D43: =IFERROR(RTD("cqg.rtd", ,"ContractData",C43, "PerCentNetLastTrade",, "T")/100,"") -> -0.01343570058 | E43: 2209 | F43: 2209 | G43: S.US.AAL | H43: 43 | I43: S.US.SELB
C44: S.US.NFLX | D44: =IFERROR(RTD("cqg.rtd", ,"ContractData",C44, "PerCentNetLastTrade",, "T")/100,"") -> 0.01233937537 | E44: 613 | F44: 613 | G44: S.US.NFLX | H44: 44 | I44: S.US.GEOS
C45: S.US.MYL | D45: =IFERROR(RTD("cqg.rtd", ,"ContractData",C45, "PerCentNetLastTrade",, "T")/100,"") -> -0.004991680532 | E45: 1885 | F45: 1885 | G45: S.US.MYL | H45: 45 | I45: S.US.CCLP
C46: S.US.ENDP | D46: =IFERROR(RTD("cqg.rtd", ,"ContractData",C46, "PerCentNetLastTrade",, "T")/100,"") -> 0.008039579468 | E46: 842 | F46: 842 | G46: S.US.ENDP | H46: 46 | I46: S.US.CDEV
C47: S.US.VOD | D47: =IFERROR(RTD("cqg.rtd", ,"ContractData",C47, "PerCentNetLastTrade",, "T")/100,"") -> 0.004491629236 | E47: 1085 | F47: 1085 | G47: S.US.VOD | H47: 47 | I47: S.US.TAPR
C48: S.US.WFM | D48: =IFERROR(RTD("cqg.rtd", ,"ContractData",C48, "PerCentNetLastTrade",, "T")/100,"") -> -0.002940215616 | E48: 1750 | F48: 1750 | G48: S.US.WFM | H48: 48 | I48: S.US.LPTN
C49: S.US.GPRO | D49: =IFERROR(RTD("cqg.rtd", ,"ContractData",C49, "PerCentNetLastTrade",, "T")/100,"") -> 0.0478128179 | E49: 70 | F49: 70 | G49: S.US.GPRO | H49: 49 | I49: S.US.YRCW
C50: S.US.ON | D50: =IFERROR(RTD("cqg.rtd", ,"ContractData",C50, "PerCentNetLastTrade",, "T")/100,"") -> 0.0067170445 | E50: 928 | F50: 928 | G50: S.US.ON | H50: 50 | I50: S.US.SSH
C51: S.US.ERIC | D51: =IFERROR(RTD("cqg.rtd", ,"ContractData",C51, "PerCentNetLastTrade",, "T")/100,"") -> -0.001953125 | E51: 1690 | F51: 1690 | G51: S.US.ERIC | H51: 51 | I51: S.US.ALDX
C52: S.US.CELG | D52: =IFERROR(RTD("cqg.rtd", ,"ContractData",C52, "PerCentNetLastTrade",, "T")/100,"") -> -0.01138131499 | E52: 2152 | F52: 2152 | G52: S.US.CELG | H52: 52 | I52: S.US.CFRX
C53: S.US.MRVL | D53: =IFERROR(RTD("cqg.rtd", ,"ContractData",C53, "PerCentNetLastTrade",, "T")/100,"") -> 0.004172461752 | E53: 1100 | F53: 1100 | G53: S.US.MRVL | H53: 53 | I53: S.US.PIRS
C54: S.US.ASNA | D54: =IFERROR(RTD("cqg.rtd", ,"ContractData",C54, "PerCentNetLastTrade",, "T")/100,"") -> 0 | E54: 1374 | F54: 1374 | G54: S.US.ASNA | H54: 54 | I54: S.US.MNTX
C55: S.US.JBLU | D55: =IFERROR(RTD("cqg.rtd", ,"ContractData",C55, "PerCentNetLastTrade",, "T")/100,"") -> -0.008212560386 | E55: 2032 | F55: 2032 | G55: S.US.JBLU | H55: 55 | I55: S.US.HCM
C56: S.US.TXN | D56: =IFERROR(RTD("cqg.rtd", ,"ContractData",C56, "PerCentNetLastTrade",, "T")/100,"") -> -0.002822580645 | E56: 1740 | F56: 1740 | G56: S.US.TXN | H56: 56 | I56: S.US.DTRM
C57: S.US.OCLR | D57: =IFERROR(RTD("cqg.rtd", ,"ContractData",C57, "PerCentNetLastTrade",, "T")/100,"") -> -0.01422319475 | E57: 2232 | F57: 2232 | G57: S.US.OCLR | H57: 57 | I57: S.US.ZN
C58: S.US.FEYE | D58: =IFERROR(RTD("cqg.rtd", ,"ContractData",C58, "PerCentNetLastTrade",, "T")/100,"") -> -0.0007800312012 | E58: 1612 | F58: 1612 | G58: S.US.FEYE | H58: 58 | I58: S.US.DMLP
C59: S.US.SLM | D59: =IFERROR(RTD("cqg.rtd", ,"ContractData",C59, "PerCentNetLastTrade",, "T")/100,"") -> 0.02769230769 | E59: 206 | F59: 206 | G59: S.US.SLM | H59: 59 | I59: S.US.OSN
C60: S.US.SINO | D60: =IFERROR(RTD("cqg.rtd", ,"ContractData",C60, "PerCentNetLastTrade",, "T")/100,"") -> 0 | E60: 1375 | F60: 1375 | G60: S.US.SINO | H60: 60 | I60: S.US.SMCI
C61: S.US.FSLR | D61: =IFERROR(RTD("cqg.rtd", ,"ContractData",C61, "PerCentNetLastTrade",, "T")/100,"") -> 0.003005008347 | E61: 1182 | F61: 1182 | G61: S.US.FSLR | H61: 61 | I61: S.US.HEES
C62: S.US.AMZN | D62: =IFERROR(RTD("cqg.rtd", ,"ContractData",C62, "PerCentNetLastTrade",, "T")/100,"") -> -0.003304831349 | E62: 1774 | F62: 1774 | G62: S.US.AMZN | H62: 62 | I62: S.US.OFED
C63: S.US.CERN | D63: =IFERROR(RTD("cqg.rtd", ,"ContractData",C63, "PerCentNetLastTrade",, "T")/100,"") -> -0.008639742817 | E63: 2044 | F63: 2044 | G63: S.US.CERN | H63: 63 | I63: S.US.GPRE
C64: S.US.GEVO | D64: =IFERROR(RTD("cqg.rtd", ,"ContractData",C64, "PerCentNetLastTrade",, "T")/100,"") -> -0.0303030303 | E64: 2441 | F64: 2441 | G64: S.US.GEVO | H64: 64 | I64: S.US.AVXS
C65: S.US.WBA | D65: =IFERROR(RTD("cqg.rtd", ,"ContractData",C65, "PerCentNetLastTrade",, "T")/100,"") -> -0.006196656144 | E65: 1937 | F65: 1937 | G65: S.US.WBA | H65: 65 | I65: =IFERROR(VLOOKUP(H65,$F$1:$G$2860,2,FALSE),"") -> S.US.USAK
C66: S.US.MENT | D66: =IFERROR(RTD("cqg.rtd", ,"ContractData",C66, "PerCentNetLastTrade",, "T")/100,"") -> 0.0002732987155 | E66: 1366 | F66: =IFERROR(E66,"") -> 1366 | G66: S.US.MENT | H66: 66 | I66: S.US.CLNE
C67: S.US.AMGN | D67: =IFERROR(RTD("cqg.rtd", ,"ContractData",C67, "PerCentNetLastTrade",, "T")/100,"") -> -0.003698630137 | E67: 1802 | F67: 1802 | G67: =C67 -> S.US.AMGN | H67: =H66+1 -> 67 | I67: S.US.NTIC
C68: S.US.CTRP | D68: =IFERROR(RTD("cqg.rtd", ,"ContractData",C68, "PerCentNetLastTrade",, "T")/100,"") -> -0.007194244604 | E68: 1986 | F68: 1986 | G68: S.US.CTRP | H68: 68 | I68: S.US.FORK
C69: S.US.TSLA | D69: =IFERROR(RTD("cqg.rtd", ,"ContractData",C69, "PerCentNetLastTrade",, "T")/100,"") -> -0.003481563539 | E69: 1788 | F69: 1788 | G69: S.US.TSLA | H69: 69 | I69: S.US.DTYS
C70: S.US.WEN | D70: =IFERROR(RTD("cqg.rtd", ,"ContractData",C70, "PerCentNetLastTrade",, "T")/100,"") -> -0.001552795031 | E70: 1661 | F70: 1661 | G70: S.US.WEN | H70: 70 | I70: S.US.GPRO
C71: S.US.CY | D71: =IFERROR(RTD("cqg.rtd", ,"ContractData",C71, "PerCentNetLastTrade",, "T")/100,"") -> 0.004452359751 | E71: 1087 | F71: 1087 | G71: S.US.CY | H71: 71 | I71: S.US.FHCO
C72: S.US.ARRY | D72: =IFERROR(RTD("cqg.rtd", ,"ContractData",C72, "PerCentNetLastTrade",, "T")/100,"") -> -0.0340218712 | E72: 2466 | F72: 2466 | G72: S.US.ARRY | H72: 72 | I72: S.US.TITN
C73: S.US.STLD | D73: =IFERROR(RTD("cqg.rtd", ,"ContractData",C73, "PerCentNetLastTrade",, "T")/100,"") -> 0.01021856372 | E73: 710 | F73: 710 | G73: S.US.STLD | H73: 73 | I73: S.US.RUN
C74: S.US.LSCC | D74: =IFERROR(RTD("cqg.rtd", ,"ContractData",C74, "PerCentNetLastTrade",, "T")/100,"") -> 0.001420454545 | E74: 1292 | F74: 1292 | G74: S.US.LSCC | H74: 74 | I74: S.US.ICBK
C75: S.US.NTAP | D75: =IFERROR(RTD("cqg.rtd", ,"ContractData",C75, "PerCentNetLastTrade",, "T")/100,"") -> 0.004930156122 | E75: 1050 | F75: 1050 | G75: S.US.NTAP | H75: 75 | I75: S.US.FCEL
C76: S.US.MNST | D76: =IFERROR(RTD("cqg.rtd", ,"ContractData",C76, "PerCentNetLastTrade",, "T")/100,"") -> -0.007950530035 | E76: 2021 | F76: 2021 | G76: S.US.MNST | H76: 76 | I76: S.US.KNSL
C77: S.US.ESRX | D77: =IFERROR(RTD("cqg.rtd", ,"ContractData",C77, "PerCentNetLastTrade",, "T")/100,"") -> -0.0007806401249 | E77: 1613 | F77: 1613 | G77: S.US.ESRX | H77: 77 | I77: S.US.SAUC
C78: S.US.MNKD | D78: =IFERROR(RTD("cqg.rtd", ,"ContractData",C78, "PerCentNetLastTrade",, "T")/100,"") -> 0.02040816327 | E78: 348 | F78: 348 | G78: S.US.MNKD | H78: 78 | I78: S.US.AMRS
C79: S.US.FOX | D79: =IFERROR(RTD("cqg.rtd", ,"ContractData",C79, "PerCentNetLastTrade",, "T")/100,"") -> -0.008815232722 | E79: 2055 | F79: 2055 | G79: S.US.FOX | H79: 79 | I79: S.US.AKAO
C80: S.US.NXPI | D80: =IFERROR(RTD("cqg.rtd", ,"ContractData",C80, "PerCentNetLastTrade",, "T")/100,"") -> 0.001820940819 | E80: 1270 | F80: 1270 | G80: S.US.NXPI | H80: 80 | I80: S.US.FLDM
C81: S.US.NAVI | D81: =IFERROR(RTD("cqg.rtd", ,"ContractData",C81, "PerCentNetLastTrade",, "T")/100,"") -> 0.006980802792 | E81: 910 | F81: 910 | G81: S.US.NAVI | H81: 81 | I81: S.US.SIFY
C82: S.US.SABR | D82: =IFERROR(RTD("cqg.rtd", ,"ContractData",C82, "PerCentNetLastTrade",, "T")/100,"") -> -0.0003841721091 | E82: 1584 | F82: 1584 | G82: S.US.SABR | H82: 82 | I82: S.US.GOGL
C83: S.US.PBCT | D83: =IFERROR(RTD("cqg.rtd", ,"ContractData",C83, "PerCentNetLastTrade",, "T")/100,"") -> 0.0124391563 | E83: 602 | F83: 602 | G83: S.US.PBCT | H83: 83 | I83: S.US.DXPE
C84: S.US.TMUS | D84: =IFERROR(RTD("cqg.rtd", ,"ContractData",C84, "PerCentNetLastTrade",, "T")/100,"") -> -0.0005416140097 | E84: 1596 | F84: 1596 | G84: S.US.TMUS | H84: 84 | I84: S.US.SRTS
C85: S.US.EA | D85: =IFERROR(RTD("cqg.rtd", ,"ContractData",C85, "PerCentNetLastTrade",, "T")/100,"") -> -0.01314980951 | E85: 2202 | F85: 2202 | G85: S.US.EA | H85: 85 | I85: S.US.VTVT
C86: S.US.AGNC | D86: =IFERROR(RTD("cqg.rtd", ,"ContractData",C86, "PerCentNetLastTrade",, "T")/100,"") -> -0.01998947922 | E86: 2350 | F86: 2350 | G86: S.US.AGNC | H86: 86 | I86: S.US.PHIIK
C87: S.US.WDC | D87: =IFERROR(RTD("cqg.rtd", ,"ContractData",C87, "PerCentNetLastTrade",, "T")/100,"") -> 0.006861337163 | E87: 920 | F87: 920 | G87: S.US.WDC | H87: 87 | I87: S.US.WATT
C88: S.US.CEMP | D88: =IFERROR(RTD("cqg.rtd", ,"ContractData",C88, "PerCentNetLastTrade",, "T")/100,"") -> 0 | E88: 1376 | F88: 1376 | G88: S.US.CEMP | H88: 88 | I88: S.US.DLBS
C89: S.US.STX | D89: =IFERROR(RTD("cqg.rtd", ,"ContractData",C89, "PerCentNetLastTrade",, "T")/100,"") -> 0.004303797468 | E89: 1094 | F89: 1094 | G89: S.US.STX | H89: 89 | I89: S.US.MTRX
C90: S.US.BBRY | D90: =IFERROR(RTD("cqg.rtd", ,"ContractData",C90, "PerCentNetLastTrade",, "T")/100,"") -> 0.01612903226 | E90: 457 | F90: 457 | G90: S.US.BBRY | H90: 90 | I90: S.US.SPCB
C91: S.US.OPK | D91: =IFERROR(RTD("cqg.rtd", ,"ContractData",C91, "PerCentNetLastTrade",, "T")/100,"") -> -0.003805899144 | E91: 1810 | F91: 1810 | G91: S.US.OPK | H91: 91 | I91: S.US.AUBN
C92: S.US.URBN | D92: =IFERROR(RTD("cqg.rtd", ,"ContractData",C92, "PerCentNetLastTrade",, "T")/100,"") -> -0.005243676743 | E92: 1899 | F92: 1899 | G92: S.US.URBN | H92: 92 | I92: S.US.HIIQ
C93: S.US.KHC | D93: =IFERROR(RTD("cqg.rtd", ,"ContractData",C93, "PerCentNetLastTrade",, "T")/100,"") -> -0.01226190476 | E93: 2182 | F93: 2182 | G93: S.US.KHC | H93: 93 | I93: S.US.ACOR
C94: S.US.DISCA | D94: =IFERROR(RTD("cqg.rtd", ,"ContractData",C94, "PerCentNetLastTrade",, "T")/100,"") -> -0.004701627486 | E94: 1870 | F94: 1870 | G94: S.US.DISCA | H94: 94 | I94: S.US.WCST
C95: S.US.ORIG | D95: =IFERROR(RTD("cqg.rtd", ,"ContractData",C95, "PerCentNetLastTrade",, "T")/100,"") -> 0.1285714286 | E95: 10 | F95: 10 | G95: S.US.ORIG | H95: 95 | I95: S.US.VNOM
C96: S.US.ZION | D96: =IFERROR(RTD("cqg.rtd", ,"ContractData",C96, "PerCentNetLastTrade",, "T")/100,"") -> 0.02779220779 | E96: 204 | F96: 204 | G96: S.US.ZION | H96: 96 | I96: S.US.APLP
C97: S.US.AMRS | D97: =IFERROR(RTD("cqg.rtd", ,"ContractData",C97, "PerCentNetLastTrade",, "T")/100,"") -> 0.04494382022 | E97: 78 | F97: 78 | G97: S.US.AMRS | H97: 97 | I97: S.US.PMBC
C98: S.US.PLUG | D98: =IFERROR(RTD("cqg.rtd", ,"ContractData",C98, "PerCentNetLastTrade",, "T")/100,"") -> 0 | E98: 1377 | F98: 1377 | G98: S.US.PLUG | H98: 98 | I98: S.US.ERII
C99: S.US.MAT | D99: =IFERROR(RTD("cqg.rtd", ,"ContractData",C99, "PerCentNetLastTrade",, "T")/100,"") -> 0.005386565272 | E99: 1023 | F99: 1023 | G99: S.US.MAT | H99: 99 | I99: S.US.HYGS
C100: S.US.IMNP | D100: =IFERROR(RTD("cqg.rtd", ,"ContractData",C100, "PerCentNetLastTrade",, "T")/100,"") -> -0.05882352941 | E100: 2534 | F100: 2534 | G100: S.US.IMNP | H100: 100 | I100: S.US.RNET
C101: S.US.MAR | D101: =IFERROR(RTD("cqg.rtd", ,"ContractData",C101, "PerCentNetLastTrade",, "T")/100,"") -> -0.01137656428 | E101: 2151 | F101: 2151 | G101: S.US.MAR | H101: 101 | I101: S.US.ADXS
C102: S.US.HZNP | D102: =IFERROR(RTD("cqg.rtd", ,"ContractData",C102, "PerCentNetLastTrade",, "T")/100,"") -> -0.01947743468 | E102: 2346 | F102: 2346 | G102: S.US.HZNP | H102: 102 | I102: S.US.IMMY
C103: S.US.MOMO | D103: =IFERROR(RTD("cqg.rtd", ,"ContractData",C103, "PerCentNetLastTrade",, "T")/100,"") -> -0.02929061785 | E103: 2435 | F103: 2435 | G103: S.US.MOMO | H103: 103 | I103: S.US.SHOS
C104: S.US.IONS | D104: =IFERROR(RTD("cqg.rtd", ,"ContractData",C104, "PerCentNetLastTrade",, "T")/100,"") -> -0.01837043441 | E104: 2324 | F104: 2324 | G104: S.US.IONS | H104: 104 | I104: S.US.INVE
C105: S.US.ALXN | D105: =IFERROR(RTD("cqg.rtd", ,"ContractData",C105, "PerCentNetLastTrade",, "T")/100,"") -> -0.01385460626 | E105: 2220 | F105: 2220 | G105: S.US.ALXN | H105: 105 | I105: S.US.VTNR
C106: S.US.GT | D106: =IFERROR(RTD("cqg.rtd", ,"ContractData",C106, "PerCentNetLastTrade",, "T")/100,"") -> -0.01509312781 | E106: 2260 | F106: 2260 | G106: S.US.GT | H106: 106 | I106: S.US.FBRC
C107: S.US.MPEL | D107: =IFERROR(RTD("cqg.rtd", ,"ContractData",C107, "PerCentNetLastTrade",, "T")/100,"") -> 0.01359832636 | E107: 556 | F107: 556 | G107: S.US.MPEL | H107: 107 | I107: S.US.TGTX
C108: S.US.LBTYK | D108: =IFERROR(RTD("cqg.rtd", ,"ContractData",C108, "PerCentNetLastTrade",, "T")/100,"") -> -0.01704728208 | E108: 2294 | F108: 2294 | G108: S.US.LBTYK | H108: 108 | I108: S.US.RBCN
C109: S.US.PDLI | D109: =IFERROR(RTD("cqg.rtd", ,"ContractData",C109, "PerCentNetLastTrade",, "T")/100,"") -> -0.03056768559 | E109: 2443 | F109: 2443 | G109: S.US.PDLI | H109: 109 | I109: S.US.IPCI
C110: S.US.ROST | D110: =IFERROR(RTD("cqg.rtd", ,"ContractData",C110, "PerCentNetLastTrade",, "T")/100,"") -> -0.005250109377 | E110: 1900 | F110: 1900 | G110: S.US.ROST | H110: 110 | I110: S.US.ARTX
C111: S.US.ACHN | D111: =IFERROR(RTD("cqg.rtd", ,"ContractData",C111, "PerCentNetLastTrade",, "T")/100,"") -> -0.002386634845 | E111: 1714 | F111: 1714 | G111: S.US.ACHN | H111: 111 | I111: S.US.ARCW
C112: S.US.COMM | D112: =IFERROR(RTD("cqg.rtd", ,"ContractData",C112, "PerCentNetLastTrade",, "T")/100,"") -> -0.001656086116 | E112: 1687 | F112: 1687 | G112: S.US.COMM | H112: 112 | I112: S.US.DRRX
C113: S.US.TRIP | D113: =IFERROR(RTD("cqg.rtd", ,"ContractData",C113, "PerCentNetLastTrade",, "T")/100,"") -> -0.003853955375 | E113: 1814 | F113: 1814 | G113: S.US.TRIP | H113: 113 | I113: S.US.VVUS
C114: S.US.HTBX | D114: =IFERROR(RTD("cqg.rtd", ,"ContractData",C114, "PerCentNetLastTrade",, "T")/100,"") -> -0.05369127517 | E114: 2523 | F114: 2523 | G114: S.US.HTBX | H114: 114 | I114: S.US.WSTL
C115: S.US.QVCA | D115: =IFERROR(RTD("cqg.rtd", ,"ContractData",C115, "PerCentNetLastTrade",, "T")/100,"") -> -0.001394700139 | E115: 1654 | F115: 1654 | G115: S.US.QVCA | H115: 115 | I115: S.US.VTL
C116: S.US.ETFC | D116: =IFERROR(RTD("cqg.rtd", ,"ContractData",C116, "PerCentNetLastTrade",, "T")/100,"") -> 0.01673026123 | E116: 436 | F116: 436 | G116: S.US.ETFC | H116: 116 | I116: S.US.SOFO
C117: S.US.WYNN | D117: =IFERROR(RTD("cqg.rtd", ,"ContractData",C117, "PerCentNetLastTrade",, "T")/100,"") -> 0.02735745065 | E117: 211 | F117: 211 | G117: S.US.WYNN | H117: 117 | I117: S.US.NEON
C118: S.US.FOLD | D118: =IFERROR(RTD("cqg.rtd", ,"ContractData",C118, "PerCentNetLastTrade",, "T")/100,"") -> -0.05529953917 | E118: 2524 | F118: 2524 | G118: S.US.FOLD | H118: 118 | I118: S.US.CNIT
C119: S.US.FLEX | D119: =IFERROR(RTD("cqg.rtd", ,"ContractData",C119, "PerCentNetLastTrade",, "T")/100,"") -> -0.0006877579092 | E119: 1608 | F119: 1608 | G119: S.US.FLEX | H119: 119 | I119: S.US.PRAA
C120: S.US.PAAS | D120: =IFERROR(RTD("cqg.rtd", ,"ContractData",C120, "PerCentNetLastTrade",, "T")/100,"") -> -0.01288056206 | E120: 2196 | F120: 2196 | G120: S.US.PAAS | H120: 120 | I120: S.US.LAYN
C121: S.US.NWSA | D121: =IFERROR(RTD("cqg.rtd", ,"ContractData",C121, "PerCentNetLastTrade",, "T")/100,"") -> -0.001733102253 | E121: 1671 | F121: 1671 | G121: S.US.NWSA | H121: 121 | I121: S.US.PFBX
C122: S.US.MACK | D122: =IFERROR(RTD("cqg.rtd", ,"ContractData",C122, "PerCentNetLastTrade",, "T")/100,"") -> -0.01706484642 | E122: 2296 | F122: 2296 | G122: S.US.MACK | H122: 122 | I122: S.US.TREE
C123: S.US.DLTR | D123: =IFERROR(RTD("cqg.rtd", ,"ContractData",C123, "PerCentNetLastTrade",, "T")/100,"") -> -0.01170960187 | E123: 2165 | F123: 2165 | G123: S.US.DLTR | H123: 123 | I123: S.US.APVO
C124: S.US.TTMI | D124: =IFERROR(RTD("cqg.rtd", ,"ContractData",C124, "PerCentNetLastTrade",, "T")/100,"") -> -0.01715511079 | E124: 2299 | F124: 2299 | G124: S.US.TTMI | H124: 124 | I124: S.US.LMIA
C125: S.US.DVAX | D125: =IFERROR(RTD("cqg.rtd", ,"ContractData",C125, "PerCentNetLastTrade",, "T")/100,"") -> -0.03157894737 | E125: 2454 | F125: 2454 | G125: S.US.DVAX | H125: 125 | I125: S.US.GULF
C126: S.US.SFM | D126: =IFERROR(RTD("cqg.rtd", ,"ContractData",C126, "PerCentNetLastTrade",, "T")/100,"") -> -0.00048828125 | E126: 1595 | F126: 1595 | G126: S.US.SFM | H126: 126 | I126: S.US.KPTI
C127: S.US.MDRX | D127: =IFERROR(RTD("cqg.rtd", ,"ContractData",C127, "PerCentNetLastTrade",, "T")/100,"") -> 0.0100456621 | E127: 718 | F127: 718 | G127: S.US.MDRX | H127: 127 | I127: S.US.FORM
C128: S.US.DCIX | D128: =IFERROR(RTD("cqg.rtd", ,"ContractData",C128, "PerCentNetLastTrade",, "T")/100,"") -> 0.02528089888 | E128: 240 | F128: 240 | G128: S.US.DCIX | H128: 128 | I128: S.US.SNDE
C129: S.US.LBTYA | D129: =IFERROR(RTD("cqg.rtd", ,"ContractData",C129, "PerCentNetLastTrade",, "T")/100,"") -> -0.01838578997 | E129: 2325 | F129: 2325 | G129: S.US.LBTYA | H129: 129 | I129: =IFERROR(VLOOKUP(H129,$F$1:$G$2860,2,FALSE),"") -> S.US.SCVL
C130: S.US.HOLX | D130: =IFERROR(RTD("cqg.rtd", ,"ContractData",C130, "PerCentNetLastTrade",, "T")/100,"") -> -0.01436634171 | E130: 2237 | F130: =IFERROR(E130,"") -> 2237 | G130: S.US.HOLX | H130: 130 | I130: S.US.TOPS
C131: S.US.CXRX | D131: =IFERROR(RTD("cqg.rtd", ,"ContractData",C131, "PerCentNetLastTrade",, "T")/100,"") -> -0.01140684411 | E131: 2153 | F131: 2153 | G131: =C131 -> S.US.CXRX | H131: =H130+1 -> 131 | I131: S.US.ANY
C132: S.US.SWHC | D132: =IFERROR(RTD("cqg.rtd", ,"ContractData",C132, "PerCentNetLastTrade",, "T")/100,"") -> -0.02958333333 | E132: 2439 | F132: 2439 | G132: S.US.SWHC | H132: 132 | I132: S.US.KNDI
C133: S.US.ADI | D133: =IFERROR(RTD("cqg.rtd", ,"ContractData",C133, "PerCentNetLastTrade",, "T")/100,"") -> -0.008721320274 | E133: 2047 | F133: 2047 | G133: S.US.ADI | H133: 133 | I133: S.US.PEIX
C134: S.US.CLDX | D134: =IFERROR(RTD("cqg.rtd", ,"ContractData",C134, "PerCentNetLastTrade",, "T")/100,"") -> -0.01243781095 | E134: 2183 | F134: 2183 | G134: S.US.CLDX | H134: 134 | I134: S.US.MDGS
C135: S.US.MDCA | D135: =IFERROR(RTD("cqg.rtd", ,"ContractData",C135, "PerCentNetLastTrade",, "T")/100,"") -> 0.02833333333 | E135: 199 | F135: 199 | G135: S.US.MDCA | H135: 135 | I135: S.US.ADMP
C136: S.US.AMTD | D136: =IFERROR(RTD("cqg.rtd", ,"ContractData",C136, "PerCentNetLastTrade",, "T")/100,"") -> 0.02067437854 | E136: 343 | F136: 343 | G136: S.US.AMTD | H136: 136 | I136: S.US.RADA
C137: S.US.NUAN | D137: =IFERROR(RTD("cqg.rtd", ,"ContractData",C137, "PerCentNetLastTrade",, "T")/100,"") -> -0.003676470588 | E137: 1801 | F137: 1801 | G137: S.US.NUAN | H137: 137 | I137: S.US.AZRX
C138: S.US.PTEN | D138: =IFERROR(RTD("cqg.rtd", ,"ContractData",C138, "PerCentNetLastTrade",, "T")/100,"") -> 0.106271777 | E138: 18 | F138: 18 | G138: S.US.PTEN | H138: 138 | I138: S.US.CIVB
C139: S.US.VIAB | D139: =IFERROR(RTD("cqg.rtd", ,"ContractData",C139, "PerCentNetLastTrade",, "T")/100,"") -> 0.01813261164 | E139: 404 | F139: 404 | G139: S.US.VIAB | H139: 139 | I139: S.US.NWFL
C140: S.US.SGYP | D140: =IFERROR(RTD("cqg.rtd", ,"ContractData",C140, "PerCentNetLastTrade",, "T")/100,"") -> -0.003710575139 | E140: 1804 | F140: 1804 | G140: S.US.SGYP | H140: 140 | I140: S.US.JOUT
C141: S.US.ESEA | D141: =IFERROR(RTD("cqg.rtd", ,"ContractData",C141, "PerCentNetLastTrade",, "T")/100,"") -> 0.02127659574 | E141: 326 | F141: 326 | G141: S.US.ESEA | H141: 141 | I141: S.US.KIN
C142: S.US.ISBC | D142: =IFERROR(RTD("cqg.rtd", ,"ContractData",C142, "PerCentNetLastTrade",, "T")/100,"") -> 0.008771929825 | E142: 809 | F142: 809 | G142: S.US.ISBC | H142: 142 | I142: S.US.RKDA
C143: S.US.PTCT | D143: =IFERROR(RTD("cqg.rtd", ,"ContractData",C143, "PerCentNetLastTrade",, "T")/100,"") -> 0.006102877071 | E143: 964 | F143: 964 | G143: S.US.PTCT | H143: 143 | I143: S.US.LCNB
C144: S.US.FAST | D144: =IFERROR(RTD("cqg.rtd", ,"ContractData",C144, "PerCentNetLastTrade",, "T")/100,"") -> 0.01446500745 | E144: 511 | F144: 511 | G144: S.US.FAST | H144: 144 | I144: S.US.RTIX
C145: S.US.SPWR | D145: =IFERROR(RTD("cqg.rtd", ,"ContractData",C145, "PerCentNetLastTrade",, "T")/100,"") -> -0.01164483261 | E145: 2163 | F145: 2163 | G145: S.US.SPWR | H145: 145 | I145: S.US.FTEK
C146: S.US.PAYX | D146: =IFERROR(RTD("cqg.rtd", ,"ContractData",C146, "PerCentNetLastTrade",, "T")/100,"") -> -0.0003363605785 | E146: 1579 | F146: 1579 | G146: S.US.PAYX | H146: 146 | I146: S.US.MMLP
C147: S.US.LLTC | D147: =IFERROR(RTD("cqg.rtd", ,"ContractData",C147, "PerCentNetLastTrade",, "T")/100,"") -> -0.001438389004 | E147: 1656 | F147: 1656 | G147: S.US.LLTC | H147: 147 | I147: S.US.CRVS
C148: S.US.YNDX | D148: =IFERROR(RTD("cqg.rtd", ,"ContractData",C148, "PerCentNetLastTrade",, "T")/100,"") -> 0.01029252438 | E148: 708 | F148: 708 | G148: S.US.YNDX | H148: 148 | I148: S.US.ARTW
C149: S.US.XLNX | D149: =IFERROR(RTD("cqg.rtd", ,"ContractData",C149, "PerCentNetLastTrade",, "T")/100,"") -> 0.005554526939 | E149: 1013 | F149: 1013 | G149: S.US.XLNX | H149: 149 | I149: S.US.GEMP
C150: S.US.EXAS | D150: =IFERROR(RTD("cqg.rtd", ,"ContractData",C150, "PerCentNetLastTrade",, "T")/100,"") -> -0.007255936675 | E150: 1991 | F150: 1991 | G150: S.US.EXAS | H150: 150 | I150: S.US.FRPT
C151: S.US.WB | D151: =IFERROR(RTD("cqg.rtd", ,"ContractData",C151, "PerCentNetLastTrade",, "T")/100,"") -> -0.003866228494 | E151: 1816 | F151: 1816 | G151: S.US.WB | H151: 151 | I151: S.US.INTX
C152: S.US.INFO | D152: =IFERROR(RTD("cqg.rtd", ,"ContractData",C152, "PerCentNetLastTrade",, "T")/100,"") -> 0.01066217733 | E152: 685 | F152: 685 | G152: S.US.INFO | H152: 152 | I152: S.US.CACQ
C153: S.US.ADBE | D153: =IFERROR(RTD("cqg.rtd", ,"ContractData",C153, "PerCentNetLastTrade",, "T")/100,"") -> -0.005145307289 | E153: 1891 | F153: 1891 | G153: S.US.ADBE | H153: 153 | I153: S.US.RDNT
C154: S.US.CAR | D154: =IFERROR(RTD("cqg.rtd", ,"ContractData",C154, "PerCentNetLastTrade",, "T")/100,"") -> 0.002869066249 | E154: 1193 | F154: 1193 | G154: S.US.CAR | H154: 154 | I154: S.US.GBT
C155: S.US.HIMX | D155: =IFERROR(RTD("cqg.rtd", ,"ContractData",C155, "PerCentNetLastTrade",, "T")/100,"") -> 0.00272479564 | E155: 1206 | F155: 1206 | G155: S.US.HIMX | H155: 155 | I155: S.US.CIDM
C156: S.US.ACAD | D156: =IFERROR(RTD("cqg.rtd", ,"ContractData",C156, "PerCentNetLastTrade",, "T")/100,"") -> 0.01012658228 | E156: 713 | F156: 713 | G156: S.US.ACAD | H156: 156 | I156: S.US.OSBC
C157: S.US.WIN | D157: =IFERROR(RTD("cqg.rtd", ,"ContractData",C157, "PerCentNetLastTrade",, "T")/100,"") -> -0.006747638327 | E157: 1964 | F157: 1964 | G157: S.US.WIN | H157: 157 | I157: S.US.NFEC
C158: S.US.SNH | D158: =IFERROR(RTD("cqg.rtd", ,"ContractData",C158, "PerCentNetLastTrade",, "T")/100,"") -> -0.02679059595 | E158: 2416 | F158: 2416 | G158: S.US.SNH | H158: 158 | I158: S.US.CHEK
C159: S.US.WETF | D159: =IFERROR(RTD("cqg.rtd", ,"ContractData",C159, "PerCentNetLastTrade",, "T")/100,"") -> 0.02493074792 | E159: 245 | F159: 245 | G159: S.US.WETF | H159: 159 | I159: S.US.ROSG
C160: S.US.NVCN | D160: =IFERROR(RTD("cqg.rtd", ,"ContractData",C160, "PerCentNetLastTrade",, "T")/100,"") -> -0.01886792453 | E160: 2334 | F160: 2334 | G160: S.US.NVCN | H160: 160 | I160: S.US.BPTH
C161: S.US.PDCO | D161: =IFERROR(RTD("cqg.rtd", ,"ContractData",C161, "PerCentNetLastTrade",, "T")/100,"") -> -0.0002572678158 | E161: 1577 | F161: 1577 | G161: S.US.PDCO | H161: 161 | I161: S.US.HLIT
C162: S.US.JUNO | D162: =IFERROR(RTD("cqg.rtd", ,"ContractData",C162, "PerCentNetLastTrade",, "T")/100,"") -> -0.02650260293 | E162: 2413 | F162: 2413 | G162: S.US.JUNO | H162: 162 | I162: S.US.GASS
C163: S.US.SKLN | D163: =IFERROR(RTD("cqg.rtd", ,"ContractData",C163, "PerCentNetLastTrade",, "T")/100,"") -> -0.04225352113 | E163: 2495 | F163: 2495 | G163: S.US.SKLN | H163: 163 | I163: S.US.WPRT
C164: S.US.AVGO | D164: =IFERROR(RTD("cqg.rtd", ,"ContractData",C164, "PerCentNetLastTrade",, "T")/100,"") -> -0.01048731832 | E164: 2117 | F164: 2117 | G164: S.US.AVGO | H164: 164 | I164: S.US.CBAY
C165: S.US.AKAM | D165: =IFERROR(RTD("cqg.rtd", ,"ContractData",C165, "PerCentNetLastTrade",, "T")/100,"") -> -0.009066587396 | E165: 2065 | F165: 2065 | G165: S.US.AKAM | H165: 165 | I165: S.US.OTEL
C166: S.US.ELGX | D166: =IFERROR(RTD("cqg.rtd", ,"ContractData",C166, "PerCentNetLastTrade",, "T")/100,"") -> -0.01783264746 | E166: 2309 | F166: 2309 | G166: S.US.ELGX | H166: 166 | I166: S.US.OZRK
C167: S.US.MCHP | D167: =IFERROR(RTD("cqg.rtd", ,"ContractData",C167, "PerCentNetLastTrade",, "T")/100,"") -> 0.008783886112 | E167: 808 | F167: 808 | G167: S.US.MCHP | H167: 167 | I167: S.US.GPOR
C168: S.US.ZIOP | D168: =IFERROR(RTD("cqg.rtd", ,"ContractData",C168, "PerCentNetLastTrade",, "T")/100,"") -> -0.02514792899 | E168: 2396 | F168: 2396 | G168: S.US.ZIOP | H168: 168 | I168: S.US.CSX
C169: S.US.COST | D169: =IFERROR(RTD("cqg.rtd", ,"ContractData",C169, "PerCentNetLastTrade",, "T")/100,"") -> -0.001848428835 | E169: 1680 | F169: 1680 | G169: S.US.COST | H169: 169 | I169: S.US.MIND
C170: S.US.AMRN | D170: =IFERROR(RTD("cqg.rtd", ,"ContractData",C170, "PerCentNetLastTrade",, "T")/100,"") -> -0.009063444109 | E170: 2064 | F170: 2064 | G170: S.US.AMRN | H170: 170 | I170: S.US.DGLD
C171: S.US.IDTI | D171: =IFERROR(RTD("cqg.rtd", ,"ContractData",C171, "PerCentNetLastTrade",, "T")/100,"") -> -0.0374800638 | E171: 2480 | F171: 2480 | G171: S.US.IDTI | H171: 171 | I171: S.US.EGLE
C172: S.US.VIP | D172: =IFERROR(RTD("cqg.rtd", ,"ContractData",C172, "PerCentNetLastTrade",, "T")/100,"") -> 0.03048780488 | E172: 177 | F172: 177 | G172: S.US.VIP | H172: 172 | I172: S.US.TRS
C173: S.US.CA | D173: =IFERROR(RTD("cqg.rtd", ,"ContractData",C173, "PerCentNetLastTrade",, "T")/100,"") -> -0.009236453202 | E173: 2070 | F173: 2070 | G173: S.US.CA | H173: 173 | I173: S.US.RTK
C174: S.US.REXX | D174: =IFERROR(RTD("cqg.rtd", ,"ContractData",C174, "PerCentNetLastTrade",, "T")/100,"") -> 0.1842105263 | E174: 5 | F174: 5 | G174: S.US.REXX | H174: 174 | I174: S.US.NAUH
C175: S.US.FTNT | D175: =IFERROR(RTD("cqg.rtd", ,"ContractData",C175, "PerCentNetLastTrade",, "T")/100,"") -> -0.002314814815 | E175: 1710 | F175: 1710 | G175: S.US.FTNT | H175: 175 | I175: S.US.SGMO
C176: S.US.CHTR | D176: =IFERROR(RTD("cqg.rtd", ,"ContractData",C176, "PerCentNetLastTrade",, "T")/100,"") -> -0.01950158651 | E176: 2347 | F176: 2347 | G176: S.US.CHTR | H176: 176 | I176: S.US.CCNE
C177: S.US.HDS | D177: =IFERROR(RTD("cqg.rtd", ,"ContractData",C177, "PerCentNetLastTrade",, "T")/100,"") -> 0.02182385035 | E177: 310 | F177: 310 | G177: S.US.HDS | H177: 177 | I177: S.US.VIP
C178: S.US.IBB | D178: =IFERROR(RTD("cqg.rtd", ,"ContractData",C178, "PerCentNetLastTrade",, "T")/100,"") -> -0.006671185473 | E178: 1961 | F178: 1961 | G178: S.US.IBB | H178: 178 | I178: S.US.RUSHA
C179: S.US.ACWI | D179: =IFERROR(RTD("cqg.rtd", ,"ContractData",C179, "PerCentNetLastTrade",, "T")/100,"") -> 0.0006811989101 | E179: 1351 | F179: 1351 | G179: S.US.ACWI | H179: 179 | I179: S.US.ZEUS
C180: S.US.BEAV | D180: =IFERROR(RTD("cqg.rtd", ,"ContractData",C180, "PerCentNetLastTrade",, "T")/100,"") -> 0.003672174929 | E180: 1135 | F180: 1135 | G180: S.US.BEAV | H180: 180 | I180: S.US.AUPH
C181: S.US.ADP | D181: =IFERROR(RTD("cqg.rtd", ,"ContractData",C181, "PerCentNetLastTrade",, "T")/100,"") -> -0.002473206925 | E181: 1717 | F181: 1717 | G181: S.US.ADP | H181: 181 | I181: S.US.DXYN
C182: S.US.TROW | D182: =IFERROR(RTD("cqg.rtd", ,"ContractData",C182, "PerCentNetLastTrade",, "T")/100,"") -> 0.01281002998 | E182: 582 | F182: 582 | G182: S.US.TROW | H182: 182 | I182: S.US.GTLS
C183: S.US.SWKS | D183: =IFERROR(RTD("cqg.rtd", ,"ContractData",C183, "PerCentNetLastTrade",, "T")/100,"") -> -0.001942501943 | E183: 1689 | F183: 1689 | G183: S.US.SWKS | H183: 183 | I183: S.US.STLY
C184: S.US.TUBE | D184: =IFERROR(RTD("cqg.rtd", ,"ContractData",C184, "PerCentNetLastTrade",, "T")/100,"") -> 0.0028510335 | E184: 1196 | F184: 1196 | G184: S.US.TUBE | H184: 184 | I184: S.US.BBGI
C185: S.US.PPC | D185: =IFERROR(RTD("cqg.rtd", ,"ContractData",C185, "PerCentNetLastTrade",, "T")/100,"") -> -0.01967213115 | E185: 2348 | F185: 2348 | G185: S.US.PPC | H185: 185 | I185: S.US.HALL
C186: S.US.SRPT | D186: =IFERROR(RTD("cqg.rtd", ,"ContractData",C186, "PerCentNetLastTrade",, "T")/100,"") -> -0.02723311547 | E186: 2419 | F186: 2419 | G186: S.US.SRPT | H186: 186 | I186: S.US.ABTL
C187: S.US.GOOGL | D187: =IFERROR(RTD("cqg.rtd", ,"ContractData",C187, "PerCentNetLastTrade",, "T")/100,"") -> -0.004167511147 | E187: 1832 | F187: 1832 | G187: S.US.GOOGL | H187: 187 | I187: S.US.WFBI
C188: S.US.TTWO | D188: =IFERROR(RTD("cqg.rtd", ,"ContractData",C188, "PerCentNetLastTrade",, "T")/100,"") -> -0.005989219405 | E188: 1928 | F188: 1928 | G188: S.US.TTWO | H188: 188 | I188: S.US.TGA
C189: S.US.PSEC | D189: =IFERROR(RTD("cqg.rtd", ,"ContractData",C189, "PerCentNetLastTrade",, "T")/100,"") -> 0 | E189: 1378 | F189: 1378 | G189: S.US.PSEC | H189: 189 | I189: S.US.AVNW
C190: S.US.BIDU | D190: =IFERROR(RTD("cqg.rtd", ,"ContractData",C190, "PerCentNetLastTrade",, "T")/100,"") -> -0.009930251803 | E190: 2094 | F190: 2094 | G190: S.US.BIDU | H190: 190 | I190: S.US.WKHS
C191: S.US.CSIQ | D191: =IFERROR(RTD("cqg.rtd", ,"ContractData",C191, "PerCentNetLastTrade",, "T")/100,"") -> 0.002638522427 | E191: 1212 | F191: 1212 | G191: S.US.CSIQ | H191: 191 | I191: S.US.RAIL
C192: S.US.DEPO | D192: =IFERROR(RTD("cqg.rtd", ,"ContractData",C192, "PerCentNetLastTrade",, "T")/100,"") -> -0.01419158642 | E192: 2230 | F192: 2230 | G192: S.US.DEPO | H192: 192 | I192: S.US.SIGM
C193: S.US.SHIP | D193: =IFERROR(RTD("cqg.rtd", ,"ContractData",C193, "PerCentNetLastTrade",, "T")/100,"") -> 0.02222222222 | E193: 301 | F193: 301 | G193: S.US.SHIP | H193: 193 | I193: =IFERROR(VLOOKUP(H193,$F$1:$G$2860,2,FALSE),"") -> S.US.MVIS
C194: S.US.EBIO | D194: =IFERROR(RTD("cqg.rtd", ,"ContractData",C194, "PerCentNetLastTrade",, "T")/100,"") -> -0.03862660944 | E194: 2484 | F194: =IFERROR(E194,"") -> 2484 | G194: S.US.EBIO | H194: 194 | I194: S.US.SBBP
C195: S.US.CENX | D195: =IFERROR(RTD("cqg.rtd", ,"ContractData",C195, "PerCentNetLastTrade",, "T")/100,"") -> 0.02176278564 | E195: 311 | F195: 311 | G195: =C195 -> S.US.CENX | H195: =H194+1 -> 195 | I195: S.US.GENC
C196: S.US.SSRI | D196: =IFERROR(RTD("cqg.rtd", ,"ContractData",C196, "PerCentNetLastTrade",, "T")/100,"") -> -0.01404212638 | E196: 2225 | F196: 2225 | G196: S.US.SSRI | H196: 196 | I196: S.US.AMTX
C197: S.US.CME | D197: =IFERROR(RTD("cqg.rtd", ,"ContractData",C197, "PerCentNetLastTrade",, "T")/100,"") -> 0.001331321559 | E197: 1298 | F197: 1298 | G197: S.US.CME | H197: 197 | I197: S.US.STDY
C198: S.US.ADSK | D198: =IFERROR(RTD("cqg.rtd", ,"ContractData",C198, "PerCentNetLastTrade",, "T")/100,"") -> -0.05500930109 | E198: 2526 | F198: 2526 | G198: S.US.ADSK | H198: 198 | I198: S.US.CPLP
C199: S.US.HALO | D199: =IFERROR(RTD("cqg.rtd", ,"ContractData",C199, "PerCentNetLastTrade",, "T")/100,"") -> -0.002485501243 | E199: 1719 | F199: 1719 | G199: S.US.HALO | H199: 199 | I199: S.US.MDCA
C200: S.US.ACIA | D200: =IFERROR(RTD("cqg.rtd", ,"ContractData",C200, "PerCentNetLastTrade",, "T")/100,"") -> 0.01089571247 | E200: 676 | F200: 676 | G200: S.US.ACIA | H200: 200 | I200: S.US.CASC
... 2844 more rows

Sheet NYSE (hidden)
C1: S.US.BAC | D1: =IFERROR(RTD("cqg.rtd", ,"ContractData",C1, "PerCentNetLastTrade",, "T")/100,"") -> 0.02316412026 | E1: 352 | F1: =IFERROR(E1,"") -> 352 | G1: =C1 -> S.US.BAC | H1: 1 | I1: =IFERROR(VLOOKUP(H1,$F$1:$G$2522,2,FALSE),"") -> S.US.SM | J1: =IFERROR(RTD("cqg.rtd", ,"ContractData",I1, "PerCentNetLastTrade",, "T")/100,"") -> 0.2168599185 | L1: =MIN(D1:D2522) -> -0.1353383459 | M1: =VLOOKUP(L1,D1:G2522,3,FALSE) -> 2475 | N1: =VLOOKUP(M1,$H$1:$I$2522,2,FALSE) -> S.US.CMRE | O1: =IFERROR(RTD("cqg.rtd", ,"ContractData",N1, "PerCentNetLastTrade",, "T")/100,"") -> -0.1353383459
C2: S.US.CHK | D2: =IFERROR(RTD("cqg.rtd", ,"ContractData",C2, "PerCentNetLastTrade",, "T")/100,"") -> 0.08163265306 | E2: 91 | F2: =IFERROR(E2,"") -> 91 | G2: =C2 -> S.US.CHK | H2: =H1+1 -> 2 | I2: S.US.JONE | J2: =IFERROR(RTD("cqg.rtd", ,"ContractData",I2, "PerCentNetLastTrade",, "T")/100,"") -> 0.2157894737 | M2: =M1-1 -> 2474 | N2: S.US.AEO | O2: =IFERROR(RTD("cqg.rtd", ,"ContractData",N2, "PerCentNetLastTrade",, "T")/100,"") -> -0.12321523
C3: S.US.FCX | D3: =IFERROR(RTD("cqg.rtd", ,"ContractData",C3, "PerCentNetLastTrade",, "T")/100,"") -> 0.01803607214 | E3: 451 | F3: 451 | G3: S.US.FCX | H3: =H2+1 -> 3 | I3: S.US.CRC | J3: =IFERROR(RTD("cqg.rtd", ,"ContractData",I3, "PerCentNetLastTrade",, "T")/100,"") -> 0.2141078838 | M3: =M2-1 -> 2473 | N3: S.US.FBP | O3: =IFERROR(RTD("cqg.rtd", ,"ContractData",N3, "PerCentNetLastTrade",, "T")/100,"") -> -0.07221350078
C4: S.US.WFT | D4: =IFERROR(RTD("cqg.rtd", ,"ContractData",C4, "PerCentNetLastTrade",, "T")/100,"") -> 0.1273148148 | E4: 37 | F4: 37 | G4: S.US.WFT | H4: 4 | I4: S.US.OAS | J4: =IFERROR(RTD("cqg.rtd", ,"ContractData",I4, "PerCentNetLastTrade",, "T")/100,"") -> 0.2056313993 | M4: 2472 | N4: S.US.VRX | O4: =IFERROR(RTD("cqg.rtd", ,"ContractData",N4, "PerCentNetLastTrade",, "T")/100,"") -> -0.06818181818
C5: S.US.VALE | D5: =IFERROR(RTD("cqg.rtd", ,"ContractData",C5, "PerCentNetLastTrade",, "T")/100,"") -> -0.001169590643 | E5: 1458 | F5: 1458 | G5: S.US.VALE | H5: 5 | I5: S.US.WPX | J5: =IFERROR(RTD("cqg.rtd", ,"ContractData",I5, "PerCentNetLastTrade",, "T")/100,"") -> 0.1888341544 | M5: 2471 | N5: S.US.DRD | O5: =IFERROR(RTD("cqg.rtd", ,"ContractData",N5, "PerCentNetLastTrade",, "T")/100,"") -> -0.06034482759
C6: S.US.PFE | D6: =IFERROR(RTD("cqg.rtd", ,"ContractData",C6, "PerCentNetLastTrade",, "T")/100,"") -> -0.002192982456 | E6: 1555 | F6: 1555 | G6: S.US.PFE | H6: 6 | I6: S.US.HLX | J6: =IFERROR(RTD("cqg.rtd", ,"ContractData",I6, "PerCentNetLastTrade",, "T")/100,"") -> 0.1759562842 | M6: 2470 | N6: S.US.FPI | O6: =IFERROR(RTD("cqg.rtd", ,"ContractData",N6, "PerCentNetLastTrade",, "T")/100,"") -> -0.05827702703
C7: S.US.F | D7: =IFERROR(RTD("cqg.rtd", ,"ContractData",C7, "PerCentNetLastTrade",, "T")/100,"") -> 0.00755033557 | E7: 838 | F7: 838 | G7: S.US.F | H7: 7 | I7: S.US.CRR | J7: =IFERROR(RTD("cqg.rtd", ,"ContractData",I7, "PerCentNetLastTrade",, "T")/100,"") -> 0.1755162242 | M7: 2469 | N7: S.US.OOMA | O7: =IFERROR(RTD("cqg.rtd", ,"ContractData",N7, "PerCentNetLastTrade",, "T")/100,"") -> -0.05789473684
C8: S.US.GE | D8: =IFERROR(RTD("cqg.rtd", ,"ContractData",C8, "PerCentNetLastTrade",, "T")/100,"") -> 0 | E8: 1326 | F8: 1326 | G8: S.US.GE | H8: 8 | I8: S.US.CLR | J8: =IFERROR(RTD("cqg.rtd", ,"ContractData",I8, "PerCentNetLastTrade",, "T")/100,"") -> 0.1747511121 | M8: 2468 | N8: S.US.EVGN | O8: =IFERROR(RTD("cqg.rtd", ,"ContractData",N8, "PerCentNetLastTrade",, "T")/100,"") -> -0.05061082024
C9: S.US.WFC | D9: =IFERROR(RTD("cqg.rtd", ,"ContractData",C9, "PerCentNetLastTrade",, "T")/100,"") -> 0.01214809101 | E9: 619 | F9: 619 | G9: S.US.WFC | H9: 9 | I9: S.US.FMSA | J9: =IFERROR(RTD("cqg.rtd", ,"ContractData",I9, "PerCentNetLastTrade",, "T")/100,"") -> 0.1675 | M9: 2467 | N9: S.US.NOMD | O9: =IFERROR(RTD("cqg.rtd", ,"ContractData",N9, "PerCentNetLastTrade",, "T")/100,"") -> -0.05
C10: S.US.RF | D10: =IFERROR(RTD("cqg.rtd", ,"ContractData",C10, "PerCentNetLastTrade",, "T")/100,"") -> 0.02655538695 | E10: 312 | F10: 312 | G10: S.US.RF | H10: 10 | I10: S.US.DNR | J10: =IFERROR(RTD("cqg.rtd", ,"ContractData",I10, "PerCentNetLastTrade",, "T")/100,"") -> 0.1660777385 | M10: 2466 | N10: S.US.GWRE | O10: =IFERROR(RTD("cqg.rtd", ,"ContractData",N10, "PerCentNetLastTrade",, "T")/100,"") -> -0.04969591659
C11: S.US.VRX | D11: =IFERROR(RTD("cqg.rtd", ,"ContractData",C11, "PerCentNetLastTrade",, "T")/100,"") -> -0.06818181818 | E11: 2472 | F11: 2472 | G11: S.US.VRX | H11: 11 | I11: S.US.SN
C12: S.US.PBR | D12: =IFERROR(RTD("cqg.rtd", ,"ContractData",C12, "PerCentNetLastTrade",, "T")/100,"") -> 0.07715736041 | E12: 99 | F12: 99 | G12: S.US.PBR | H12: 12 | I12: S.US.EPE
C13: S.US.C | D13: =IFERROR(RTD("cqg.rtd", ,"ContractData",C13, "PerCentNetLastTrade",, "T")/100,"") -> 0.01639048991 | E13: 496 | F13: 496 | G13: S.US.C | H13: 13 | I13: S.US.ERF
C14: S.US.AKS | D14: =IFERROR(RTD("cqg.rtd", ,"ContractData",C14, "PerCentNetLastTrade",, "T")/100,"") -> 0.03355704698 | E14: 250 | F14: 250 | G14: S.US.AKS | H14: 14 | I14: S.US.ATW
C15: S.US.T | D15: =IFERROR(RTD("cqg.rtd", ,"ContractData",C15, "PerCentNetLastTrade",, "T")/100,"") -> -0.0116514691 | E15: 2148 | F15: 2148 | G15: S.US.T | H15: 15 | I15: S.US.SGY
C16: S.US.ABEV | D16: =IFERROR(RTD("cqg.rtd", ,"ContractData",C16, "PerCentNetLastTrade",, "T")/100,"") -> 0.01603206413 | E16: 503 | F16: 503 | G16: S.US.ABEV | H16: 16 | I16: S.US.WPXP
C17: S.US.X | D17: =IFERROR(RTD("cqg.rtd", ,"ContractData",C17, "PerCentNetLastTrade",, "T")/100,"") -> 0.03337612323 | E17: 252 | F17: 252 | G17: S.US.X | H17: 17 | I17: S.US.NADL
C18: S.US.JPM | D18: =IFERROR(RTD("cqg.rtd", ,"ContractData",C18, "PerCentNetLastTrade",, "T")/100,"") -> 0.01115053218 | E18: 655 | F18: 655 | G18: S.US.JPM | H18: 18 | I18: S.US.FET
C19: S.US.MT | D19: =IFERROR(RTD("cqg.rtd", ,"ContractData",C19, "PerCentNetLastTrade",, "T")/100,"") -> 0.0187416332 | E19: 430 | F19: 430 | G19: S.US.MT | H19: 19 | I19: S.US.CWEI
C20: S.US.S | D20: =IFERROR(RTD("cqg.rtd", ,"ContractData",C20, "PerCentNetLastTrade",, "T")/100,"") -> 0.0075 | E20: 839 | F20: 839 | G20: S.US.S | H20: 20 | I20: S.US.KOS
C21: S.US.ABX | D21: =IFERROR(RTD("cqg.rtd", ,"ContractData",C21, "PerCentNetLastTrade",, "T")/100,"") -> -0.03367875648 | E21: 2457 | F21: 2457 | G21: S.US.ABX | H21: 21 | I21: S.US.CPE
C22: S.US.WLL | D22: =IFERROR(RTD("cqg.rtd", ,"ContractData",C22, "PerCentNetLastTrade",, "T")/100,"") -> 0.1503198294 | E22: 22 | F22: 22 | G22: S.US.WLL | H22: 22 | I22: S.US.WLL
C23: S.US.CX | D23: =IFERROR(RTD("cqg.rtd", ,"ContractData",C23, "PerCentNetLastTrade",, "T")/100,"") -> 0.01147959184 | E23: 646 | F23: 646 | G23: S.US.CX | H23: 23 | I23: S.US.PE
C24: S.US.TWTR | D24: =IFERROR(RTD("cqg.rtd", ,"ContractData",C24, "PerCentNetLastTrade",, "T")/100,"") -> 0.02473886751 | E24: 336 | F24: 336 | G24: S.US.TWTR | H24: 24 | I24: S.US.ECR
C25: S.US.KEY | D25: =IFERROR(RTD("cqg.rtd", ,"ContractData",C25, "PerCentNetLastTrade",, "T")/100,"") -> 0.02704291593 | E25: 308 | F25: 308 | G25: S.US.KEY | H25: 25 | I25: S.US.NBR
C26: S.US.MRO | D26: =IFERROR(RTD("cqg.rtd", ,"ContractData",C26, "PerCentNetLastTrade",, "T")/100,"") -> 0.1371237458 | E26: 28 | F26: 28 | G26: S.US.MRO | H26: 26 | I26: S.US.HCLP
C27: S.US.JCP | D27: =IFERROR(RTD("cqg.rtd", ,"ContractData",C27, "PerCentNetLastTrade",, "T")/100,"") -> 0.009433962264 | E27: 735 | F27: 735 | G27: S.US.JCP | H27: 27 | I27: S.US.LPI
C28: S.US.SWN | D28: =IFERROR(RTD("cqg.rtd", ,"ContractData",C28, "PerCentNetLastTrade",, "T")/100,"") -> 0.01553062985 | E28: 512 | F28: 512 | G28: S.US.SWN | H28: 28 | I28: S.US.MRO
C29: S.US.CTL | D29: =IFERROR(RTD("cqg.rtd", ,"ContractData",C29, "PerCentNetLastTrade",, "T")/100,"") -> -0.002891367204 | E29: 1612 | F29: 1612 | G29: S.US.CTL | H29: 29 | I29: S.US.MTDR
C30: S.US.AUY | D30: =IFERROR(RTD("cqg.rtd", ,"ContractData",C30, "PerCentNetLastTrade",, "T")/100,"") -> -0.01672240803 | E30: 2217 | F30: 2217 | G30: S.US.AUY | H30: 30 | I30: S.US.SDRL
C31: S.US.BABA | D31: =IFERROR(RTD("cqg.rtd", ,"ContractData",C31, "PerCentNetLastTrade",, "T")/100,"") -> -0.01358037688 | E31: 2226 | F31: 2226 | G31: S.US.BABA | H31: 31 | I31: S.US.BAS
C32: S.US.VZ | D32: =IFERROR(RTD("cqg.rtd", ,"ContractData",C32, "PerCentNetLastTrade",, "T")/100,"") -> -0.007456828885 | E32: 1960 | F32: 1960 | G32: S.US.VZ | H32: 32 | I32: S.US.ESV
C33: S.US.KGC | D33: =IFERROR(RTD("cqg.rtd", ,"ContractData",C33, "PerCentNetLastTrade",, "T")/100,"") -> -0.0237388724 | E33: 2418 | F33: 2418 | G33: S.US.KGC | H33: 33 | I33: S.US.SPN
C34: S.US.CLF | D34: =IFERROR(RTD("cqg.rtd", ,"ContractData",C34, "PerCentNetLastTrade",, "T")/100,"") -> 0.01257142857 | E34: 608 | F34: 608 | G34: S.US.CLF | H34: 34 | I34: S.US.NE
C35: S.US.ITUB | D35: =IFERROR(RTD("cqg.rtd", ,"ContractData",C35, "PerCentNetLastTrade",, "T")/100,"") -> 0.01461988304 | E35: 536 | F35: 536 | G35: S.US.ITUB | H35: 35 | I35: S.US.EMES
C36: S.US.RIG | D36: =IFERROR(RTD("cqg.rtd", ,"ContractData",C36, "PerCentNetLastTrade",, "T")/100,"") -> 0.110707804 | E36: 55 | F36: 55 | G36: S.US.RIG | H36: 36 | I36: S.US.NFX
C37: S.US.KO | D37: =IFERROR(RTD("cqg.rtd", ,"ContractData",C37, "PerCentNetLastTrade",, "T")/100,"") -> -0.005346294046 | E37: 1812 | F37: 1812 | G37: S.US.KO | H37: 37 | I37: S.US.WFT
C38: S.US.GM | D38: =IFERROR(RTD("cqg.rtd", ,"ContractData",C38, "PerCentNetLastTrade",, "T")/100,"") -> 0.001446340758 | E38: 1231 | F38: 1231 | G38: S.US.GM | H38: 38 | I38: S.US.HOS
C39: S.US.ECA | D39: =IFERROR(RTD("cqg.rtd", ,"ContractData",C39, "PerCentNetLastTrade",, "T")/100,"") -> 0.09195402299 | E39: 76 | F39: 76 | G39: S.US.ECA | H39: 39 | I39: S.US.DO
C40: S.US.FIT | D40: =IFERROR(RTD("cqg.rtd", ,"ContractData",C40, "PerCentNetLastTrade",, "T")/100,"") -> 0.004830917874 | E40: 993 | F40: 993 | G40: S.US.FIT | H40: 40 | I40: S.US.QEP
C41: S.US.MS | D41: =IFERROR(RTD("cqg.rtd", ,"ContractData",C41, "PerCentNetLastTrade",, "T")/100,"") -> 0.01551724138 | E41: 513 | F41: 513 | G41: S.US.MS | H41: 41 | I41: S.US.HES
C42: S.US.RAD | D42: =IFERROR(RTD("cqg.rtd", ,"ContractData",C42, "PerCentNetLastTrade",, "T")/100,"") -> -0.01242236025 | E42: 2175 | F42: 2175 | G42: S.US.RAD | H42: 42 | I42: S.US.GLF
C43: S.US.HL | D43: =IFERROR(RTD("cqg.rtd", ,"ContractData",C43, "PerCentNetLastTrade",, "T")/100,"") -> -0.02884615385 | E43: 2443 | F43: 2443 | G43: S.US.HL | H43: 43 | I43: S.US.ERA
C44: S.US.HPQ | D44: =IFERROR(RTD("cqg.rtd", ,"ContractData",C44, "PerCentNetLastTrade",, "T")/100,"") -> 0 | E44: 1327 | F44: 1327 | G44: S.US.HPQ | H44: 44 | I44: S.US.RES
C45: S.US.VALEP | D45: =IFERROR(RTD("cqg.rtd", ,"ContractData",C45, "PerCentNetLastTrade",, "T")/100,"") -> -0.01295336788 | E45: 2193 | F45: 2193 | G45: S.US.VALEP | H45: 45 | I45: S.US.DVN
C46: S.US.HPE | D46: =IFERROR(RTD("cqg.rtd", ,"ContractData",C46, "PerCentNetLastTrade",, "T")/100,"") -> -0.0008424599832 | E46: 1434 | F46: 1434 | G46: S.US.HPE | H46: 46 | I46: S.US.WTI
C47: S.US.TEVA | D47: =IFERROR(RTD("cqg.rtd", ,"ContractData",C47, "PerCentNetLastTrade",, "T")/100,"") -> 0.003697834126 | E47: 1085 | F47: 1085 | G47: S.US.TEVA | H47: 47 | I47: S.US.RSPP
C48: S.US.BBD | D48: =IFERROR(RTD("cqg.rtd", ,"ContractData",C48, "PerCentNetLastTrade",, "T")/100,"") -> 0.02235294118 | E48: 362 | F48: 362 | G48: S.US.BBD | H48: 48 | I48: S.US.BBG
C49: S.US.NE | D49: =IFERROR(RTD("cqg.rtd", ,"ContractData",C49, "PerCentNetLastTrade",, "T")/100,"") -> 0.1310861423 | E49: 34 | F49: 34 | G49: S.US.NE | H49: 49 | I49: S.US.CPG
C50: S.US.KMI | D50: =IFERROR(RTD("cqg.rtd", ,"ContractData",C50, "PerCentNetLastTrade",, "T")/100,"") -> 0.03691588785 | E50: 223 | F50: 223 | G50: S.US.KMI | H50: 50 | I50: S.US.SLCA
C51: S.US.OAS | D51: =IFERROR(RTD("cqg.rtd", ,"ContractData",C51, "PerCentNetLastTrade",, "T")/100,"") -> 0.2056313993 | E51: 4 | F51: 4 | G51: S.US.OAS | H51: 51 | I51: S.US.MUR
C52: S.US.FCAU | D52: =IFERROR(RTD("cqg.rtd", ,"ContractData",C52, "PerCentNetLastTrade",, "T")/100,"") -> 0.01456953642 | E52: 542 | F52: 542 | G52: S.US.FCAU | H52: 52 | I52: S.US.CIE
C53: S.US.NOK | D53: =IFERROR(RTD("cqg.rtd", ,"ContractData",C53, "PerCentNetLastTrade",, "T")/100,"") -> 0.002331002331 | E53: 1165 | F53: 1165 | G53: S.US.NOK | H53: 53 | I53: S.US.RDC
C54: S.US.ORCL | D54: =IFERROR(RTD("cqg.rtd", ,"ContractData",C54, "PerCentNetLastTrade",, "T")/100,"") -> -0.001972872996 | E54: 1532 | F54: 1532 | G54: S.US.ORCL | H54: 54 | I54: S.US.RIGP
C55: S.US.GGB | D55: =IFERROR(RTD("cqg.rtd", ,"ContractData",C55, "PerCentNetLastTrade",, "T")/100,"") -> 0.00488997555 | E55: 988 | F55: 988 | G55: S.US.GGB | H55: 55 | I55: S.US.RIG
C56: S.US.LC | D56: =IFERROR(RTD("cqg.rtd", ,"ContractData",C56, "PerCentNetLastTrade",, "T")/100,"") -> 0.005338078292 | E56: 954 | F56: 954 | G56: S.US.LC | H56: 56 | I56: S.US.UNT
C57: S.US.PBRA | D57: =IFERROR(RTD("cqg.rtd", ,"ContractData",C57, "PerCentNetLastTrade",, "T")/100,"") -> 0.07665505226 | E57: 100 | F57: 100 | G57: S.US.PBRA | H57: 57 | I57: S.US.PQ
C58: S.US.BMY | D58: =IFERROR(RTD("cqg.rtd", ,"ContractData",C58, "PerCentNetLastTrade",, "T")/100,"") -> -0.002838892832 | E58: 1609 | F58: 1609 | G58: S.US.BMY | H58: 58 | I58: S.US.BTE
C59: S.US.CVS | D59: =IFERROR(RTD("cqg.rtd", ,"ContractData",C59, "PerCentNetLastTrade",, "T")/100,"") -> 0.009356879283 | E59: 739 | F59: 739 | G59: S.US.CVS | H59: 59 | I59: S.US.PGH
C60: S.US.MRK | D60: =IFERROR(RTD("cqg.rtd", ,"ContractData",C60, "PerCentNetLastTrade",, "T")/100,"") -> -0.003537546229 | E60: 1667 | F60: 1667 | G60: S.US.MRK | H60: 60 | I60: S.US.BCEI
C61: S.US.HST | D61: =IFERROR(RTD("cqg.rtd", ,"ContractData",C61, "PerCentNetLastTrade",, "T")/100,"") -> 0.006936416185 | E61: 899 | F61: 899 | G61: S.US.HST | H61: 61 | I61: S.US.FTK
C62: S.US.V | D62: =IFERROR(RTD("cqg.rtd", ,"ContractData",C62, "PerCentNetLastTrade",, "T")/100,"") -> -0.01427668983 | E62: 2241 | F62: 2241 | G62: S.US.V | H62: 62 | I62: S.US.CVE
C63: S.US.XOM | D63: =IFERROR(RTD("cqg.rtd", ,"ContractData",C63, "PerCentNetLastTrade",, "T")/100,"") -> 0.01746216531 | E63: 465 | F63: 465 | G63: S.US.XOM | H63: 63 | I63: S.US.PDS
C64: S.US.SCHW | D64: =IFERROR(RTD("cqg.rtd", ,"ContractData",C64, "PerCentNetLastTrade",, "T")/100,"") -> 0.01118044722 | E64: 660 | F64: 660 | G64: S.US.SCHW | H64: 64 | I64: S.US.EGN
C65: S.US.DNR | D65: =IFERROR(RTD("cqg.rtd", ,"ContractData",C65, "PerCentNetLastTrade",, "T")/100,"") -> 0.1660777385 | E65: 10 | F65: 10 | G65: S.US.DNR | H65: 65 | I65: =IFERROR(VLOOKUP(H65,$F$1:$G$2522,2,FALSE),"") -> S.US.CXO
C66: S.US.WMT | D66: =IFERROR(RTD("cqg.rtd", ,"ContractData",C66, "PerCentNetLastTrade",, "T")/100,"") -> -0.008827238335 | E66: 2026 | F66: =IFERROR(E66,"") -> 2026 | G66: =C66 -> S.US.WMT | H66: 66 | I66: S.US.NR
C67: S.US.DAL | D67: =IFERROR(RTD("cqg.rtd", ,"ContractData",C67, "PerCentNetLastTrade",, "T")/100,"") -> -0.00123482198 | E67: 1464 | F67: 1464 | G67: S.US.DAL | H67: =H66+1 -> 67 | I67: S.US.XEC
C68: S.US.PG | D68: =IFERROR(RTD("cqg.rtd", ,"ContractData",C68, "PerCentNetLastTrade",, "T")/100,"") -> -0.004705030764 | E68: 1760 | F68: 1760 | G68: S.US.PG | H68: 68 | I68: S.US.PES
C69: S.US.ABBV | D69: =IFERROR(RTD("cqg.rtd", ,"ContractData",C69, "PerCentNetLastTrade",, "T")/100,"") -> -0.01347621367 | E69: 2225 | F69: 2225 | G69: S.US.ABBV | H69: 69 | I69: S.US.REN
C70: S.US.IBN | D70: =IFERROR(RTD("cqg.rtd", ,"ContractData",C70, "PerCentNetLastTrade",, "T")/100,"") -> 0.05444887118 | E70: 137 | F70: 137 | G70: S.US.IBN | H70: 70 | I70: S.US.BRS
C71: S.US.GG | D71: =IFERROR(RTD("cqg.rtd", ,"ContractData",C71, "PerCentNetLastTrade",, "T")/100,"") -> -0.03199404762 | E71: 2453 | F71: 2453 | G71: S.US.GG | H71: 71 | I71: S.US.SEMG
C72: S.US.BSX | D72: =IFERROR(RTD("cqg.rtd", ,"ContractData",C72, "PerCentNetLastTrade",, "T")/100,"") -> -0.01540683678 | E72: 2273 | F72: 2273 | G72: S.US.BSX | H72: 72 | I72: S.US.APC
C73: S.US.COTY | D73: =IFERROR(RTD("cqg.rtd", ,"ContractData",C73, "PerCentNetLastTrade",, "T")/100,"") -> -0.009718670077 | E73: 2072 | F73: 2072 | G73: S.US.COTY | H73: 73 | I73: S.US.HAL
C74: S.US.HLT | D74: =IFERROR(RTD("cqg.rtd", ,"ContractData",C74, "PerCentNetLastTrade",, "T")/100,"") -> -0.002821442967 | E74: 1607 | F74: 1607 | G74: S.US.HLT | H74: 74 | I74: S.US.TRGP
C75: S.US.DIS | D75: =IFERROR(RTD("cqg.rtd", ,"ContractData",C75, "PerCentNetLastTrade",, "T")/100,"") -> 0.0003009932778 | E75: 1321 | F75: 1321 | G75: S.US.DIS | H75: 75 | I75: S.US.AAV
C76: S.US.USB | D76: =IFERROR(RTD("cqg.rtd", ,"ContractData",C76, "PerCentNetLastTrade",, "T")/100,"") -> 0.008961303462 | E76: 758 | F76: 758 | G76: S.US.USB | H76: 76 | I76: S.US.ECA
C77: S.US.KR | D77: =IFERROR(RTD("cqg.rtd", ,"ContractData",C77, "PerCentNetLastTrade",, "T")/100,"") -> -0.01540785498 | E77: 2291 | F77: 2291 | G77: S.US.KR | H77: 77 | I77: S.US.TTI
C78: S.US.NEM | D78: =IFERROR(RTD("cqg.rtd", ,"ContractData",C78, "PerCentNetLastTrade",, "T")/100,"") -> -0.03785394933 | E78: 2462 | F78: 2462 | G78: S.US.NEM | H78: 78 | I78: S.US.PWE
C79: S.US.IAG | D79: =IFERROR(RTD("cqg.rtd", ,"ContractData",C79, "PerCentNetLastTrade",, "T")/100,"") -> -0.01861702128 | E79: 2344 | F79: 2344 | G79: S.US.IAG | H79: 79 | I79: S.US.PAA
C80: S.US.GNW | D80: =IFERROR(RTD("cqg.rtd", ,"ContractData",C80, "PerCentNetLastTrade",, "T")/100,"") -> 0.01647058824 | E80: 494 | F80: 494 | G80: S.US.GNW | H80: 80 | I80: S.US.TK
C81: S.US.ETE | D81: =IFERROR(RTD("cqg.rtd", ,"ContractData",C81, "PerCentNetLastTrade",, "T")/100,"") -> 0.03580097087 | E81: 229 | F81: 229 | G81: S.US.ETE | H81: 81 | I81: S.US.COP
C82: S.US.MGM | D82: =IFERROR(RTD("cqg.rtd", ,"ContractData",C82, "PerCentNetLastTrade",, "T")/100,"") -> -0.002078281954 | E82: 1545 | F82: 1545 | G82: S.US.MGM | H82: 82 | I82: S.US.TOO
C83: S.US.NKE | D83: =IFERROR(RTD("cqg.rtd", ,"ContractData",C83, "PerCentNetLastTrade",, "T")/100,"") -> -0.001185068141 | E83: 1461 | F83: 1461 | G83: S.US.NKE | H83: 83 | I83: S.US.PACD
C84: S.US.VIPS | D84: =IFERROR(RTD("cqg.rtd", ,"ContractData",C84, "PerCentNetLastTrade",, "T")/100,"") -> -0.01308900524 | E84: 2201 | F84: 2201 | G84: S.US.VIPS | H84: 84 | I84: S.US.OIS
C85: S.US.ABT | D85: =IFERROR(RTD("cqg.rtd", ,"ContractData",C85, "PerCentNetLastTrade",, "T")/100,"") -> -0.008778724503 | E85: 2029 | F85: 2029 | G85: S.US.ABT | H85: 85 | I85: S.US.MEP
C86: S.US.SYF | D86: =IFERROR(RTD("cqg.rtd", ,"ContractData",C86, "PerCentNetLastTrade",, "T")/100,"") -> 0.01301775148 | E86: 586 | F86: 586 | G86: S.US.SYF | H86: 86 | I86: S.US.EGY
C87: S.US.WPX | D87: =IFERROR(RTD("cqg.rtd", ,"ContractData",C87, "PerCentNetLastTrade",, "T")/100,"") -> 0.1888341544 | E87: 5 | F87: 5 | G87: S.US.WPX | H87: 87 | I87: S.US.TDW
C88: S.US.XRX | D88: =IFERROR(RTD("cqg.rtd", ,"ContractData",C88, "PerCentNetLastTrade",, "T")/100,"") -> -0.00422832981 | E88: 1725 | F88: 1725 | G88: S.US.XRX | H88: 88 | I88: S.US.DNOW
C89: S.US.COP | D89: =IFERROR(RTD("cqg.rtd", ,"ContractData",C89, "PerCentNetLastTrade",, "T")/100,"") -> 0.08727108298 | E89: 81 | F89: 81 | G89: S.US.COP | H89: 89 | I89: S.US.CNQ
C90: S.US.GLW | D90: =IFERROR(RTD("cqg.rtd", ,"ContractData",C90, "PerCentNetLastTrade",, "T")/100,"") -> 0.001654944146 | E90: 1217 | F90: 1217 | G90: S.US.GLW | H90: 90 | I90: S.US.ICD
C91: S.US.JNJ | D91: =IFERROR(RTD("cqg.rtd", ,"ContractData",C91, "PerCentNetLastTrade",, "T")/100,"") -> -0.007912517781 | E91: 1985 | F91: 1985 | G91: S.US.JNJ | H91: 91 | I91: S.US.CHK
C92: S.US.SDRL | D92: =IFERROR(RTD("cqg.rtd", ,"ContractData",C92, "PerCentNetLastTrade",, "T")/100,"") -> 0.1346938776 | E92: 30 | F92: 30 | G92: S.US.SDRL | H92: 92 | I92: S.US.HK
C93: S.US.HTZ | D93: =IFERROR(RTD("cqg.rtd", ,"ContractData",C93, "PerCentNetLastTrade",, "T")/100,"") -> 0.008423586041 | E93: 787 | F93: 787 | G93: S.US.HTZ | H93: 93 | I93: S.US.PAGP
C94: S.US.CVX | D94: =IFERROR(RTD("cqg.rtd", ,"ContractData",C94, "PerCentNetLastTrade",, "T")/100,"") -> 0.01984635083 | E94: 404 | F94: 404 | G94: S.US.CVX | H94: 94 | I94: S.US.EOG
C95: S.US.MET | D95: =IFERROR(RTD("cqg.rtd", ,"ContractData",C95, "PerCentNetLastTrade",, "T")/100,"") -> 0.01457833549 | E95: 539 | F95: 539 | G95: S.US.MET | H95: 95 | I95: S.US.EXTN
C96: S.US.ESV | D96: =IFERROR(RTD("cqg.rtd", ,"ContractData",C96, "PerCentNetLastTrade",, "T")/100,"") -> 0.1332470893 | E96: 32 | F96: 32 | G96: S.US.ESV | H96: 96 | I96: S.US.NBL
C97: S.US.HAL | D97: =IFERROR(RTD("cqg.rtd", ,"ContractData",C97, "PerCentNetLastTrade",, "T")/100,"") -> 0.09332496338 | E97: 73 | F97: 73 | G97: S.US.HAL | H97: 97 | I97: S.US.EC
C98: S.US.CFG | D98: =IFERROR(RTD("cqg.rtd", ,"ContractData",C98, "PerCentNetLastTrade",, "T")/100,"") -> 0.02500771843 | E98: 331 | F98: 331 | G98: S.US.CFG | H98: 98 | I98: S.US.CGG
C99: S.US.AIG | D99: =IFERROR(RTD("cqg.rtd", ,"ContractData",C99, "PerCentNetLastTrade",, "T")/100,"") -> 0.008533501896 | E99: 774 | F99: 774 | G99: S.US.AIG | H99: 99 | I99: S.US.PBR
C100: S.US.GPS | D100: =IFERROR(RTD("cqg.rtd", ,"ContractData",C100, "PerCentNetLastTrade",, "T")/100,"") -> 0.007131537242 | E100: 860 | F100: 860 | G100: S.US.GPS | H100: 100 | I100: S.US.PBRA
C101: S.US.MDT | D101: =IFERROR(RTD("cqg.rtd", ,"ContractData",C101, "PerCentNetLastTrade",, "T")/100,"") -> -0.01334786162 | E101: 2221 | F101: 2221 | G101: S.US.MDT | H101: 101 | I101: S.US.ROYT
C102: S.US.TCK | D102: =IFERROR(RTD("cqg.rtd", ,"ContractData",C102, "PerCentNetLastTrade",, "T")/100,"") -> 0.009523809524 | E102: 726 | F102: 726 | G102: S.US.TCK | H102: 102 | I102: S.US.APA
C103: S.US.LLY | D103: =IFERROR(RTD("cqg.rtd", ,"ContractData",C103, "PerCentNetLastTrade",, "T")/100,"") -> -0.001340282949 | E103: 1474 | F103: 1474 | G103: S.US.LLY | H103: 103 | I103: S.US.CHU
C104: S.US.VER | D104: =IFERROR(RTD("cqg.rtd", ,"ContractData",C104, "PerCentNetLastTrade",, "T")/100,"") -> -0.0234741784 | E104: 2415 | F104: 2415 | G104: S.US.VER | H104: 104 | I104: S.US.PXD
C105: S.US.AZN | D105: =IFERROR(RTD("cqg.rtd", ,"ContractData",C105, "PerCentNetLastTrade",, "T")/100,"") -> -0.01160614002 | E105: 2145 | F105: 2145 | G105: S.US.AZN | H105: 105 | I105: S.US.PKD
C106: S.US.CRM | D106: =IFERROR(RTD("cqg.rtd", ,"ContractData",C106, "PerCentNetLastTrade",, "T")/100,"") -> -0.00164541341 | E106: 1502 | F106: 1502 | G106: S.US.CRM | H106: 106 | I106: S.US.CVEO
C107: S.US.LOW | D107: =IFERROR(RTD("cqg.rtd", ,"ContractData",C107, "PerCentNetLastTrade",, "T")/100,"") -> -0.002404186112 | E107: 1576 | F107: 1576 | G107: S.US.LOW | H107: 107 | I107: S.US.DPM
C108: S.US.EGO | D108: =IFERROR(RTD("cqg.rtd", ,"ContractData",C108, "PerCentNetLastTrade",, "T")/100,"") -> -0.0184501845 | E108: 2339 | F108: 2339 | G108: S.US.EGO | H108: 108 | I108: S.US.IO
C109: S.US.AA | D109: =IFERROR(RTD("cqg.rtd", ,"ContractData",C109, "PerCentNetLastTrade",, "T")/100,"") -> -0.02018163471 | E109: 2371 | F109: 2371 | G109: S.US.AA | H109: 109 | I109: S.US.BXE
C110: S.US.BBY | D110: =IFERROR(RTD("cqg.rtd", ,"ContractData",C110, "PerCentNetLastTrade",, "T")/100,"") -> 0.003726435774 | E110: 1071 | F110: 1071 | G110: S.US.BBY | H110: 110 | I110: S.US.HP
C111: S.US.AGN | D111: =IFERROR(RTD("cqg.rtd", ,"ContractData",C111, "PerCentNetLastTrade",, "T")/100,"") -> -0.004983388704 | E111: 1782 | F111: 1782 | G111: S.US.AGN | H111: 111 | I111: S.US.CEQP
C112: S.US.MPC | D112: =IFERROR(RTD("cqg.rtd", ,"ContractData",C112, "PerCentNetLastTrade",, "T")/100,"") -> 0.003914745542 | E112: 1021 | F112: 1021 | G112: S.US.MPC | H112: 112 | I112: S.US.GLOG
C113: S.US.MO | D113: =IFERROR(RTD("cqg.rtd", ,"ContractData",C113, "PerCentNetLastTrade",, "T")/100,"") -> -0.001687634244 | E113: 1504 | F113: 1504 | G113: S.US.MO | H113: 113 | I113: S.US.SDLP
C114: S.US.DOW | D114: =IFERROR(RTD("cqg.rtd", ,"ContractData",C114, "PerCentNetLastTrade",, "T")/100,"") -> 0.007593998889 | E114: 821 | F114: 821 | G114: S.US.DOW | H114: 114 | I114: S.US.GPRK
C115: S.US.RAI | D115: =IFERROR(RTD("cqg.rtd", ,"ContractData",C115, "PerCentNetLastTrade",, "T")/100,"") -> -0.0007278020378 | E115: 1423 | F115: 1423 | G115: S.US.RAI | H115: 115 | I115: S.US.AMFW
C116: S.US.LUV | D116: =IFERROR(RTD("cqg.rtd", ,"ContractData",C116, "PerCentNetLastTrade",, "T")/100,"") -> -0.001905165114 | E116: 1522 | F116: 1522 | G116: S.US.LUV | H116: 116 | I116: S.US.TMST
C117: S.US.M | D117: =IFERROR(RTD("cqg.rtd", ,"ContractData",C117, "PerCentNetLastTrade",, "T")/100,"") -> -0.000941397976 | E117: 1441 | F117: 1441 | G117: S.US.M | H117: 117 | I117: S.US.FI
C118: S.US.DB | D118: =IFERROR(RTD("cqg.rtd", ,"ContractData",C118, "PerCentNetLastTrade",, "T")/100,"") -> 0.0102960103 | E118: 698 | F118: 698 | G118: S.US.DB | H118: 118 | I118: S.US.WLK
C119: S.US.CF | D119: =IFERROR(RTD("cqg.rtd", ,"ContractData",C119, "PerCentNetLastTrade",, "T")/100,"") -> 0.04921618666 | E119: 155 | F119: 155 | G119: S.US.CF | H119: 119 | I119: S.US.MVO
C120: S.US.POT | D120: =IFERROR(RTD("cqg.rtd", ,"ContractData",C120, "PerCentNetLastTrade",, "T")/100,"") -> 0.02564102564 | E120: 327 | F120: 327 | G120: S.US.POT | H120: 120 | I120: S.US.CRK
C121: S.US.CYH | D121: =IFERROR(RTD("cqg.rtd", ,"ContractData",C121, "PerCentNetLastTrade",, "T")/100,"") -> 0.009225092251 | E121: 745 | F121: 745 | G121: S.US.CYH | H121: 121 | I121: S.US.SUN
C122: S.US.NLY | D122: =IFERROR(RTD("cqg.rtd", ,"ContractData",C122, "PerCentNetLastTrade",, "T")/100,"") -> -0.01928640309 | E122: 2356 | F122: 2356 | G122: S.US.NLY | H122: 122 | I122: S.US.SU
C123: S.US.BBT | D123: =IFERROR(RTD("cqg.rtd", ,"ContractData",C123, "PerCentNetLastTrade",, "T")/100,"") -> 0.0174405436 | E123: 467 | F123: 467 | G123: S.US.BBT | H123: 123 | I123: S.US.NDP
C124: S.US.INFY | D124: =IFERROR(RTD("cqg.rtd", ,"ContractData",C124, "PerCentNetLastTrade",, "T")/100,"") -> 0.001379310345 | E124: 1234 | F124: 1234 | G124: S.US.INFY | H124: 124 | I124: S.US.WG
C125: S.US.WMB | D125: =IFERROR(RTD("cqg.rtd", ,"ContractData",C125, "PerCentNetLastTrade",, "T")/100,"") -> 0.05323193916 | E125: 140 | F125: 140 | G125: S.US.WMB | H125: 125 | I125: S.US.MDR
C126: S.US.EXC | D126: =IFERROR(RTD("cqg.rtd", ,"ContractData",C126, "PerCentNetLastTrade",, "T")/100,"") -> -0.02079619727 | E126: 2384 | F126: 2384 | G126: S.US.EXC | H126: 126 | I126: S.US.TGP
C127: S.US.BK | D127: =IFERROR(RTD("cqg.rtd", ,"ContractData",C127, "PerCentNetLastTrade",, "T")/100,"") -> 0.01041445271 | E127: 690 | F127: 690 | G127: S.US.BK | H127: 127 | I127: S.US.VET
C128: S.US.ALLY | D128: =IFERROR(RTD("cqg.rtd", ,"ContractData",C128, "PerCentNetLastTrade",, "T")/100,"") -> 0.02231447846 | E128: 363 | F128: 363 | G128: S.US.ALLY | H128: 128 | I128: S.US.NOV
C129: S.US.AG | D129: =IFERROR(RTD("cqg.rtd", ,"ContractData",C129, "PerCentNetLastTrade",, "T")/100,"") -> -0.0213963964 | E129: 2388 | F129: 2388 | G129: S.US.AG | H129: 129 | I129: =IFERROR(VLOOKUP(H129,$F$1:$G$2522,2,FALSE),"") -> S.US.NDRO
C130: S.US.JCI | D130: =IFERROR(RTD("cqg.rtd", ,"ContractData",C130, "PerCentNetLastTrade",, "T")/100,"") -> 0.004847950639 | E130: 991 | F130: =IFERROR(E130,"") -> 991 | G130: =C130 -> S.US.JCI | H130: 130 | I130: S.US.NOA
C131: S.US.NBR | D131: =IFERROR(RTD("cqg.rtd", ,"ContractData",C131, "PerCentNetLastTrade",, "T")/100,"") -> 0.1427486712 | E131: 25 | F131: 25 | G131: S.US.NBR | H131: =H130+1 -> 131 | I131: S.US.JMF
C132: S.US.SQ | D132: =IFERROR(RTD("cqg.rtd", ,"ContractData",C132, "PerCentNetLastTrade",, "T")/100,"") -> 0.03130016051 | E132: 270 | F132: 270 | G132: S.US.SQ | H132: 132 | I132: S.US.LPG
C133: S.US.BKD | D133: =IFERROR(RTD("cqg.rtd", ,"ContractData",C133, "PerCentNetLastTrade",, "T")/100,"") -> -0.002546689304 | E133: 1586 | F133: 1586 | G133: S.US.BKD | H133: 133 | I133: S.US.IPI
C134: S.US.TGT | D134: =IFERROR(RTD("cqg.rtd", ,"ContractData",C134, "PerCentNetLastTrade",, "T")/100,"") -> -0.008034689453 | E134: 1988 | F134: 1988 | G134: S.US.TGT | H134: 134 | I134: S.US.MRC
C135: S.US.AMX | D135: =IFERROR(RTD("cqg.rtd", ,"ContractData",C135, "PerCentNetLastTrade",, "T")/100,"") -> 0.003352891869 | E135: 1091 | F135: 1091 | G135: S.US.AMX | H135: 135 | I135: S.US.JPEP
C136: S.US.SO | D136: =IFERROR(RTD("cqg.rtd", ,"ContractData",C136, "PerCentNetLastTrade",, "T")/100,"") -> -0.01428275719 | E136: 2245 | F136: 2245 | G136: S.US.SO | H136: 136 | I136: S.US.TS
C137: S.US.SRC | D137: =IFERROR(RTD("cqg.rtd", ,"ContractData",C137, "PerCentNetLastTrade",, "T")/100,"") -> -0.02700270027 | E137: 2433 | F137: 2433 | G137: S.US.SRC | H137: 137 | I137: S.US.IBN
C138: S.US.GFI | D138: =IFERROR(RTD("cqg.rtd", ,"ContractData",C138, "PerCentNetLastTrade",, "T")/100,"") -> -0.003115264798 | E138: 1634 | F138: 1634 | G138: S.US.GFI | H138: 138 | I138: S.US.STO
C139: S.US.TSM | D139: =IFERROR(RTD("cqg.rtd", ,"ContractData",C139, "PerCentNetLastTrade",, "T")/100,"") -> 0.005076142132 | E139: 970 | F139: 970 | G139: S.US.TSM | H139: 139 | I139: S.US.JMLP
C140: S.US.OXY | D140: =IFERROR(RTD("cqg.rtd", ,"ContractData",C140, "PerCentNetLastTrade",, "T")/100,"") -> 0.03847861477 | E140: 204 | F140: 204 | G140: S.US.OXY | H140: 140 | I140: S.US.WMB
C141: S.US.HD | D141: =IFERROR(RTD("cqg.rtd", ,"ContractData",C141, "PerCentNetLastTrade",, "T")/100,"") -> -0.004628915291 | E141: 1751 | F141: 1751 | G141: S.US.HD | H141: 141 | I141: S.US.MTW
C142: S.US.LVLT | D142: =IFERROR(RTD("cqg.rtd", ,"ContractData",C142, "PerCentNetLastTrade",, "T")/100,"") -> -0.001602278797 | E142: 1499 | F142: 1499 | G142: S.US.LVLT | H142: 142 | I142: S.US.REX
C143: S.US.P | D143: =IFERROR(RTD("cqg.rtd", ,"ContractData",C143, "PerCentNetLastTrade",, "T")/100,"") -> 0.02762923351 | E143: 302 | F143: 302 | G143: S.US.P | H143: 143 | I143: S.US.AROC
C144: S.US.SAN | D144: =IFERROR(RTD("cqg.rtd", ,"ContractData",C144, "PerCentNetLastTrade",, "T")/100,"") -> 0.008928571429 | E144: 760 | F144: 760 | G144: S.US.SAN | H144: 144 | I144: S.US.SD
C145: S.US.SLW | D145: =IFERROR(RTD("cqg.rtd", ,"ContractData",C145, "PerCentNetLastTrade",, "T")/100,"") -> -0.02837259101 | E145: 2444 | F145: 2444 | G145: S.US.SLW | H145: 145 | I145: S.US.ENLC
C146: S.US.PHM | D146: =IFERROR(RTD("cqg.rtd", ,"ContractData",C146, "PerCentNetLastTrade",, "T")/100,"") -> -0.01036806636 | E146: 2096 | F146: 2096 | G146: S.US.PHM | H146: 146 | I146: S.US.CLB
C147: S.US.PM | D147: =IFERROR(RTD("cqg.rtd", ,"ContractData",C147, "PerCentNetLastTrade",, "T")/100,"") -> -0.00651214128 | E147: 1911 | F147: 1911 | G147: S.US.PM | H147: 147 | I147: S.US.NAO
C148: S.US.AVP | D148: =IFERROR(RTD("cqg.rtd", ,"ContractData",C148, "PerCentNetLastTrade",, "T")/100,"") -> 0.001831501832 | E148: 1201 | F148: 1201 | G148: S.US.AVP | H148: 148 | I148: S.US.CGI
C149: S.US.AES | D149: =IFERROR(RTD("cqg.rtd", ,"ContractData",C149, "PerCentNetLastTrade",, "T")/100,"") -> -0.01262626263 | E149: 2219 | F149: 2219 | G149: S.US.AES | H149: 149 | I149: S.US.DK
C150: S.US.FDC | D150: =IFERROR(RTD("cqg.rtd", ,"ContractData",C150, "PerCentNetLastTrade",, "T")/100,"") -> -0.00202020202 | E150: 1541 | F150: 1541 | G150: S.US.FDC | H150: 150 | I150: S.US.ECT
C151: S.US.MPW | D151: =IFERROR(RTD("cqg.rtd", ,"ContractData",C151, "PerCentNetLastTrade",, "T")/100,"") -> -0.01067323481 | E151: 2107 | F151: 2107 | G151: S.US.MPW | H151: 151 | I151: S.US.CKH
C152: S.US.TWX | D152: =IFERROR(RTD("cqg.rtd", ,"ContractData",C152, "PerCentNetLastTrade",, "T")/100,"") -> -0.004735765795 | E152: 1763 | F152: 1763 | G152: S.US.TWX | H152: 152 | I152: S.US.OII
C153: S.US.TWLO | D153: =IFERROR(RTD("cqg.rtd", ,"ContractData",C153, "PerCentNetLastTrade",, "T")/100,"") -> 0.006843201428 | E153: 872 | F153: 872 | G153: S.US.TWLO | H153: 153 | I153: S.US.PBT
C154: S.US.CS | D154: =IFERROR(RTD("cqg.rtd", ,"ContractData",C154, "PerCentNetLastTrade",, "T")/100,"") -> 0.004538577912 | E154: 1006 | F154: 1006 | G154: S.US.CS | H154: 154 | I154: S.US.MFCB
C155: S.US.COG | D155: =IFERROR(RTD("cqg.rtd", ,"ContractData",C155, "PerCentNetLastTrade",, "T")/100,"") -> 0.00303555941 | E155: 1114 | F155: 1114 | G155: S.US.COG | H155: 155 | I155: S.US.CF
C156: S.US.BP | D156: =IFERROR(RTD("cqg.rtd", ,"ContractData",C156, "PerCentNetLastTrade",, "T")/100,"") -> 0.03400954654 | E156: 247 | F156: 247 | G156: S.US.BP | H156: 156 | I156: S.US.AMID
C157: S.US.DVN | D157: =IFERROR(RTD("cqg.rtd", ,"ContractData",C157, "PerCentNetLastTrade",, "T")/100,"") -> 0.1176470588 | E157: 45 | F157: 45 | G157: S.US.DVN | H157: 157 | I157: S.US.XCO
C158: S.US.NRG | D158: =IFERROR(RTD("cqg.rtd", ,"ContractData",C158, "PerCentNetLastTrade",, "T")/100,"") -> 0.01237842617 | E158: 579 | F158: 579 | G158: S.US.NRG | H158: 158 | I158: S.US.SMM
C159: S.US.CAT | D159: =IFERROR(RTD("cqg.rtd", ,"ContractData",C159, "PerCentNetLastTrade",, "T")/100,"") -> 0.00776265419 | E159: 823 | F159: 823 | G159: S.US.CAT | H159: 159 | I159: S.US.DRQ
C160: S.US.UA | D160: =IFERROR(RTD("cqg.rtd", ,"ContractData",C160, "PerCentNetLastTrade",, "T")/100,"") -> 0.003236245955 | E160: 1101 | F160: 1101 | G160: S.US.UA | H160: 160 | I160: S.US.FLS
C161: S.US.AEO | D161: =IFERROR(RTD("cqg.rtd", ,"ContractData",C161, "PerCentNetLastTrade",, "T")/100,"") -> -0.12321523 | E161: 2474 | F161: 2474 | G161: S.US.AEO | H161: 161 | I161: S.US.KRA
C162: S.US.TSN | D162: =IFERROR(RTD("cqg.rtd", ,"ContractData",C162, "PerCentNetLastTrade",, "T")/100,"") -> -0.01933514247 | E162: 2358 | F162: 2358 | G162: S.US.TSN | H162: 162 | I162: S.US.CEO
C163: S.US.HMY | D163: =IFERROR(RTD("cqg.rtd", ,"ContractData",C163, "PerCentNetLastTrade",, "T")/100,"") -> -0.03017241379 | E163: 2447 | F163: 2447 | G163: S.US.HMY | H163: 163 | I163: S.US.DOV
C164: S.US.NVO | D164: =IFERROR(RTD("cqg.rtd", ,"ContractData",C164, "PerCentNetLastTrade",, "T")/100,"") -> 0.03545232274 | E164: 234 | F164: 234 | G164: S.US.NVO | H164: 164 | I164: S.US.TEGP
C165: S.US.MOS | D165: =IFERROR(RTD("cqg.rtd", ,"ContractData",C165, "PerCentNetLastTrade",, "T")/100,"") -> 0.02180339985 | E165: 378 | F165: 378 | G165: S.US.MOS | H165: 165 | I165: S.US.NTG
C166: S.US.LYG | D166: =IFERROR(RTD("cqg.rtd", ,"ContractData",C166, "PerCentNetLastTrade",, "T")/100,"") -> 0.003460207612 | E166: 1084 | F166: 1084 | G166: S.US.LYG | H166: 166 | I166: S.US.LYB
C167: S.US.CDE | D167: =IFERROR(RTD("cqg.rtd", ,"ContractData",C167, "PerCentNetLastTrade",, "T")/100,"") -> -0.01923076923 | E167: 2353 | F167: 2353 | G167: S.US.CDE | H167: 167 | I167: S.US.BPT
C168: S.US.DHI | D168: =IFERROR(RTD("cqg.rtd", ,"ContractData",C168, "PerCentNetLastTrade",, "T")/100,"") -> -0.02704576976 | E168: 2436 | F168: 2436 | G168: S.US.DHI | H168: 168 | I168: S.US.VOC
C169: S.US.SLB | D169: =IFERROR(RTD("cqg.rtd", ,"ContractData",C169, "PerCentNetLastTrade",, "T")/100,"") -> 0.03653653654 | E169: 224 | F169: 224 | G169: S.US.SLB | H169: 169 | I169: S.US.YPF
C170: S.US.VLO | D170: =IFERROR(RTD("cqg.rtd", ,"ContractData",C170, "PerCentNetLastTrade",, "T")/100,"") -> -0.02901050651 | E170: 2445 | F170: 2445 | G170: S.US.VLO | H170: 170 | I170: S.US.NGS
C171: S.US.BBVA | D171: =IFERROR(RTD("cqg.rtd", ,"ContractData",C171, "PerCentNetLastTrade",, "T")/100,"") -> 0.00325203252 | E171: 1100 | F171: 1100 | G171: S.US.BBVA | H171: 171 | I171: S.US.KEX
C172: S.US.BCS | D172: =IFERROR(RTD("cqg.rtd", ,"ContractData",C172, "PerCentNetLastTrade",, "T")/100,"") -> 0.006597549482 | E172: 886 | F172: 886 | G172: S.US.BCS | H172: 172 | I172: S.US.UTI
C173: S.US.HCP | D173: =IFERROR(RTD("cqg.rtd", ,"ContractData",C173, "PerCentNetLastTrade",, "T")/100,"") -> -0.0125 | E173: 2179 | F173: 2179 | G173: S.US.HCP | H173: 173 | I173: S.US.OKE
C174: S.US.UAL | D174: =IFERROR(RTD("cqg.rtd", ,"ContractData",C174, "PerCentNetLastTrade",, "T")/100,"") -> -0.009323006311 | E174: 2052 | F174: 2052 | G174: S.US.UAL | H174: 174 | I174: S.US.GNRT
C175: S.US.MTG | D175: =IFERROR(RTD("cqg.rtd", ,"ContractData",C175, "PerCentNetLastTrade",, "T")/100,"") -> 0.002178649237 | E175: 1178 | F175: 1178 | G175: S.US.MTG | H175: 175 | I175: S.US.CHKPD
C176: S.US.HCA | D176: =IFERROR(RTD("cqg.rtd", ,"ContractData",C176, "PerCentNetLastTrade",, "T")/100,"") -> -0.01328299776 | E176: 2212 | F176: 2212 | G176: S.US.HCA | H176: 176 | I176: S.US.SSL
C177: S.US.THC | D177: =IFERROR(RTD("cqg.rtd", ,"ContractData",C177, "PerCentNetLastTrade",, "T")/100,"") -> 0.004002668446 | E177: 1048 | F177: 1048 | G177: S.US.THC | H177: 177 | I177: S.US.TNK
C178: S.US.APC | D178: =IFERROR(RTD("cqg.rtd", ,"ContractData",C178, "PerCentNetLastTrade",, "T")/100,"") -> 0.09375 | E178: 72 | F178: 72 | G178: S.US.APC | H178: 178 | I178: S.US.KYE
C179: S.US.DYN | D179: =IFERROR(RTD("cqg.rtd", ,"ContractData",C179, "PerCentNetLastTrade",, "T")/100,"") -> -0.01340782123 | E179: 2218 | F179: 2218 | G179: S.US.DYN | H179: 179 | I179: S.US.E
C180: S.US.EPD | D180: =IFERROR(RTD("cqg.rtd", ,"ContractData",C180, "PerCentNetLastTrade",, "T")/100,"") -> 0.02210817213 | E180: 367 | F180: 367 | G180: S.US.EPD | H180: 180 | I180: S.US.SJT
C181: S.US.CPE | D181: =IFERROR(RTD("cqg.rtd", ,"ContractData",C181, "PerCentNetLastTrade",, "T")/100,"") -> 0.1529411765 | E181: 21 | F181: 21 | G181: S.US.CPE | H181: 181 | I181: S.US.SRF
C182: S.US.PEP | D182: =IFERROR(RTD("cqg.rtd", ,"ContractData",C182, "PerCentNetLastTrade",, "T")/100,"") -> -0.01375073142 | E182: 2249 | F182: 2249 | G182: S.US.PEP | H182: 182 | I182: S.US.SCX
C183: S.US.YUM | D183: =IFERROR(RTD("cqg.rtd", ,"ContractData",C183, "PerCentNetLastTrade",, "T")/100,"") -> 0.0006295247088 | E183: 1304 | F183: 1304 | G183: S.US.YUM | H183: 183 | I183: S.US.LRN
C184: S.US.HBI | D184: =IFERROR(RTD("cqg.rtd", ,"ContractData",C184, "PerCentNetLastTrade",, "T")/100,"") -> -0.000852151683 | E184: 1435 | F184: 1435 | G184: S.US.HBI | H184: 184 | I184: S.US.HRI
C185: S.US.KSS | D185: =IFERROR(RTD("cqg.rtd", ,"ContractData",C185, "PerCentNetLastTrade",, "T")/100,"") -> -0.005541189509 | E185: 1826 | F185: 1826 | G185: S.US.KSS | H185: 185 | I185: S.US.TIF
C186: S.US.BX | D186: =IFERROR(RTD("cqg.rtd", ,"ContractData",C186, "PerCentNetLastTrade",, "T")/100,"") -> 0.01000384763 | E186: 710 | F186: 710 | G186: S.US.BX | H186: 186 | I186: S.US.ENLK
C187: S.US.CPN | D187: =IFERROR(RTD("cqg.rtd", ,"ContractData",C187, "PerCentNetLastTrade",, "T")/100,"") -> -0.0008673026886 | E187: 1436 | F187: 1436 | G187: S.US.CPN | H187: 187 | I187: S.US.GEL
C188: S.US.AU | D188: =IFERROR(RTD("cqg.rtd", ,"ContractData",C188, "PerCentNetLastTrade",, "T")/100,"") -> -0.00990990991 | E188: 2082 | F188: 2082 | G188: S.US.AU | H188: 188 | I188: S.US.URI
C189: S.US.KIM | D189: =IFERROR(RTD("cqg.rtd", ,"ContractData",C189, "PerCentNetLastTrade",, "T")/100,"") -> -0.01075268817 | E189: 2109 | F189: 2109 | G189: S.US.KIM | H189: 189 | I189: S.US.NSH
C190: S.US.STI | D190: =IFERROR(RTD("cqg.rtd", ,"ContractData",C190, "PerCentNetLastTrade",, "T")/100,"") -> 0.01701212358 | E190: 475 | F190: 475 | G190: S.US.STI | H190: 190 | I190: S.US.BHI
C191: S.US.JNPR | D191: =IFERROR(RTD("cqg.rtd", ,"ContractData",C191, "PerCentNetLastTrade",, "T")/100,"") -> 0.008215085885 | E191: 795 | F191: 795 | G191: S.US.JNPR | H191: 191 | I191: S.US.KMF
C192: S.US.AXP | D192: =IFERROR(RTD("cqg.rtd", ,"ContractData",C192, "PerCentNetLastTrade",, "T")/100,"") -> 0.005175549028 | E192: 958 | F192: 958 | G192: S.US.AXP | H192: 192 | I192: S.US.RDSB
C193: S.US.ETP | D193: =IFERROR(RTD("cqg.rtd", ,"ContractData",C193, "PerCentNetLastTrade",, "T")/100,"") -> 0.04096889952 | E193: 199 | F193: 199 | G193: S.US.ETP | H193: 193 | I193: =IFERROR(VLOOKUP(H193,$F$1:$G$2522,2,FALSE),"") -> S.US.NL
C194: S.US.CNX | D194: =IFERROR(RTD("cqg.rtd", ,"ContractData",C194, "PerCentNetLastTrade",, "T")/100,"") -> 0.02470355731 | E194: 337 | F194: =IFERROR(E194,"") -> 337 | G194: =C194 -> S.US.CNX | H194: 194 | I194: S.US.MIE
C195: S.US.NWL | D195: =IFERROR(RTD("cqg.rtd", ,"ContractData",C195, "PerCentNetLastTrade",, "T")/100,"") -> -0.01811670529 | E195: 2342 | F195: 2342 | G195: S.US.NWL | H195: =H194+1 -> 195 | I195: S.US.PHX
C196: S.US.SFUN | D196: =IFERROR(RTD("cqg.rtd", ,"ContractData",C196, "PerCentNetLastTrade",, "T")/100,"") -> 0.01034482759 | E196: 695 | F196: 695 | G196: S.US.SFUN | H196: 196 | I196: S.US.WMLP
C197: S.US.GGP | D197: =IFERROR(RTD("cqg.rtd", ,"ContractData",C197, "PerCentNetLastTrade",, "T")/100,"") -> -0.01013250195 | E197: 2088 | F197: 2088 | G197: S.US.GGP | H197: 197 | I197: S.US.MTZ
C198: S.US.CBS | D198: =IFERROR(RTD("cqg.rtd", ,"ContractData",C198, "PerCentNetLastTrade",, "T")/100,"") -> 0.0009836065574 | E198: 1268 | F198: 1268 | G198: S.US.CBS | H198: 198 | I198: S.US.CHKR
C199: S.US.BHI | D199: =IFERROR(RTD("cqg.rtd", ,"ContractData",C199, "PerCentNetLastTrade",, "T")/100,"") -> 0.04282407407 | E199: 190 | F199: 190 | G199: S.US.BHI | H199: 199 | I199: S.US.ETP
C200: S.US.SYY | D200: =IFERROR(RTD("cqg.rtd", ,"ContractData",C200, "PerCentNetLastTrade",, "T")/100,"") -> -0.007793653739 | E200: 1966 | F200: 1966 | G200: S.US.SYY | H200: 200 | I200: S.US.ARCH
... 2844 more rows
